Workbook

Sheet Control Panel (hidden)
AA1: Not Started
B2: 0 | C2: Overall Status | AA2: In Progress
AA3: Complete
C4: Task | F4: Status | H4: Staff | J4: Staff Notes?
C5: 1 - Update Basic RFP Info | F5: =C20 -> Not Started | H5: =C22 -> PM Staff | J5: =IF(ISBLANK(K21)=TRUE,"None",CHAR(34) & LEFT(K21,50) & IF(LEN(K21)>50,"…","") & CHAR(34)) -> None | AA5: Yes
C6: 2 - Confirm Codes and Conditional Formatting | F6: =C30 -> Not Started | H6: =C32 -> PM Staff | J6: =IF(ISBLANK(K31)=TRUE,"None",CHAR(34) & LEFT(K31,50) & IF(LEN(K31)>50,"…","") & CHAR(34)) -> "Make sure to confirm definitions are consistent wi…" | AA6: No
C7: 3 - Enter RFP Modules & Copy Objective/Specs | F7: =C46 -> Not Started | H7: =C48 -> PM Staff | J7: =IF(ISBLANK(K68)=TRUE,"None",CHAR(34) & LEFT(K68,50) & IF(LEN(K68)>50,"…","") & CHAR(34)) -> None
C8: 4 - QA Module Specs | F8: =C101 -> Not Started | H8: =C103 -> PM Staff | J8: =IF(ISBLANK(K102)=TRUE,"None",CHAR(34) & LEFT(K102,50) & IF(LEN(K102)>50,"…","") & CHAR(34)) -> None
C9: 5 - Protect Workbook and Save as XLSX | F9: =C112 -> Not Started | H9: =C114 -> PM Staff | J9: =IF(ISBLANK(K113)=TRUE,"None",CHAR(34) & LEFT(K113,50) & IF(LEN(K113)>50,"…","") & CHAR(34)) -> "New and improved Macro automatically allows vendor…"
C10: =B117 -> RFP Released
C11: 6 - Update Proposal Information | F11: =C121 -> Not Started | H11: =C123 -> PM Staff | J11: =IF(ISBLANK(G122)=TRUE,"None",CHAR(34) & LEFT(G122,50) & IF(LEN(G122)>50,"…","") & CHAR(34)) -> None
C12: 7 - Review/Resolve Response Errors | F12: =C129 -> Not Started | H12: =C131 -> PM Staff | J12: =IF(ISBLANK(G130)=TRUE,"None",CHAR(34) & LEFT(G130,50) & IF(LEN(G130)>50,"…","") & CHAR(34)) -> None
C13: 8 - Print Reports to PDF | F13: =C136 -> Not Started | H13: =C138 -> PM Staff | J13: =IF(ISBLANK(K137)=TRUE,"None",CHAR(34) & LEFT(K137,50) & IF(LEN(K137)>50,"…","") & CHAR(34)) -> "Run filters by opening filter XLSM worksheet until…"
C14: 9 - Copy RFP Data to Central Analysis (Vendor 1) | F14: =C147 -> Not Started | H14: =C149 -> PM Staff | J14: =IF(ISBLANK(I149)=TRUE,"None",CHAR(34) & LEFT(I149,50) & IF(LEN(I149)>50,"…","") & CHAR(34)) -> None
C15: 10 - Copy Vendor Data to Central Analysis | F15: =C218 -> Not Started | H15: =C220 -> PM Staff | J15: =IF(ISBLANK(I219)=TRUE,"None",CHAR(34) & LEFT(I219,50) & IF(LEN(I219)>50,"…","") & CHAR(34)) -> None
B18: 1 | C18: Update Basic RFP Info Vendor Form Set-up:
C20: Not Started | E20: Basic RFP Info | I20: Definitions? | K20: Staff Notes
E21: City of St. Louis, MO | G21: MO | I21: Yes
C22: PM Staff | E22: City of St. Louis | G22: St. Louis
E23: ERP System Selection | I23: Vendor Modules?
E24: August 9th, 2019 12:00pm CST | I24: Yes
E25: Selection Committee | I25: Replace this text with the primary product name(s) which satisfy requirements.
B28: 2 | C28: Confirm Priority, Availability, Defintions and Conditional Formatting:
C30: Not Started | E30: Spec Priority | F30: Code | G30: Points | I30: Conditional Format | K30: Staff Notes
E31: Required | F31: R | G31: 4 | I31: 0.9 | K31: Make sure to confirm definitions are consistent with the RFP!
C32: PM Staff | E32: Desired | F32: D | G32: 2 | I32: 0.8
E33: Optional | F33: O | G33: 1 | I33: 0
F34: -
E35: Vendor Compliance | F35: Code | G35: Percent | H35: Definition
E36: Yes | F36: Y | G36: 1 | H36: Functionality is provided out of the box through the completion of a task associated with a routine configurable area that includes, but is not limited to, user-defined fields, delivered or configurable workflows, alerts or notifications, standard import/export, table driven setups and standard reports with no changes. These configuration areas will not be affected by a future upgrade. The proposed services include implementation and training on this functionality, unless specifically excluded in the Statement of Work, as part of the deployment of the solution.
E37: Reporting | F37: R | G37: 0.75 | H37: Functionality is provided through reports generated using proposed Reporting Tools.
E38: Third Party | F38: T | G38: 0.75 | H38: Functionality is provided by proposed third party functionality (i.e., third party is defined as a separate software vendor from the primary software vendor). The pricing of all third party products that provide this functionality MUST be included in the cost proposal.
E39: Modification | F39: M | G39: 0.5 | H39: Functionality is provided through customization to the application, including creation of a new workflow or development of a custom interface, that may have an impact on future upgradability.
E40: Future | F40: F | G40: 0.25 | H40: Functionality is provided through a future general availability (GA) release that is scheduled to occur within 1 year of the proposal response.
E41: No | F41: N | G41: 0 | H41: Functionality is not provided.
B44: 3 | C44: Enter RFP Modules, RFP Section, and Weight. Copy Module Objectives and specs. Format sheets:
C46: Not Started | E46: Module Name | F46: RFP | G46: Weight | I46: Module Status | K46: Click to Rename/Hide Tabs AFTER copying modules to left: | N46: Invalid Priorities?
E47: Accounts Payable | F47: 4.2 | G47: =1/25 -> 0.04 | I47: Not Started | N47: =SUMPRODUCT(--ISNA(MATCH('Accounts Payable'!$C$13:$C$181,$F$31:$F$34,0)))-COUNTIF('Accounts Payable'!$C$13:$C$181,"") -> 0
C48: PM Staff | E48: Bank Reconciliation | F48: 4.3 | G48: =1/25 -> 0.04 | I48: Not Started | N48: =SUMPRODUCT(--ISNA(MATCH('Bank Reconciliation'!$C$13:$C$53,$F$31:$F$34,0)))-COUNTIF('Bank Reconciliation'!$C$13:$C$53,"") -> 0
E49: Budgeting | F49: 4.4 | G49: 0.04 | I49: Not Started | N49: =SUMPRODUCT(--ISNA(MATCH(Budgeting!$C$13:$C$148,$F$31:$F$34,0)))-COUNTIF(Budgeting!$C$13:$C$148,"") -> 0
E50: Cash Management | F50: 4.5 | G50: 0.04 | I50: Not Started | N50: =SUMPRODUCT(--ISNA(MATCH('Cash Management'!$C$13:$C$61,$F$31:$F$34,0)))-COUNTIF('Cash Management'!$C$13:$C$61,"") -> 0
E51: Cash Receipting | F51: 4.6 | G51: 0.04 | I51: Not Started | K51: Module Prep Instructions | N51: =SUMPRODUCT(--ISNA(MATCH('Cash Receipting'!$C$13:$C$105,$F$31:$F$34,0)))-COUNTIF('Cash Receipting'!$C$13:$C$105,"") -> 0
E52: Contract Management | F52: 4.7 | G52: 0.04 | I52: Not Started | K52: 1. Copy and paste Objective for each module. 2. Copy and paste (with formatting) Specification and Priority columns for each module to appropriate sheet. 3. Click "Format Sheet" button in column AC to apply formatting, data validation, and delete extra rows. 4. Ensure there are no invalid priorities. 5. QA each sheet addressing the following items: - Spell Check - Topic Areas Headers (grey and bolded) - Consistently indented sub-specifications - Page Header - Print Preview to verify overall appearance | N52: =SUMPRODUCT(--ISNA(MATCH('Contract Management'!$C$13:$C$109,$F$31:$F$34,0)))-COUNTIF('Contract Management'!$C$13:$C$109,"") -> 0
E53: Debt Management | F53: 4.8 | G53: 0.04 | I53: Not Started | N53: =SUMPRODUCT(--ISNA(MATCH('Debt Management'!$C$13:$C$23,$F$31:$F$34,0)))-COUNTIF('Debt Management'!$C$13:$C$23,"") -> 0
E54: Employee and Manager Self Service | F54: 4.9 | G54: 0.04 | I54: Not Started | N54: =SUMPRODUCT(--ISNA(MATCH('Employee and Manager Self Servi'!$C$13:$C$79,$F$31:$F$34,0)))-COUNTIF('Employee and Manager Self Servi'!$C$13:$C$79,"") -> 0
E55: Employee Benefits | F55: 4.10 | G55: 0.04 | I55: Not Started | N55: =SUMPRODUCT(--ISNA(MATCH('Employee Benefits'!$C$13:$C$121,$F$31:$F$34,0)))-COUNTIF('Employee Benefits'!$C$13:$C$121,"") -> 0
E56: Fixed Assets | F56: 4.11 | G56: 0.04 | I56: Not Started | N56: =SUMPRODUCT(--ISNA(MATCH('Fixed Assets'!$C$13:$C$161,$F$31:$F$34,0)))-COUNTIF('Fixed Assets'!$C$13:$C$161,"") -> 0
E57: General and Technical | F57: 4.12 | G57: 0.04 | I57: Not Started | N57: =SUMPRODUCT(--ISNA(MATCH('General and Technical'!$C$13:$C$237,$F$31:$F$34,0)))-COUNTIF('General and Technical'!$C$13:$C$237,"") -> 0
E58: General Ledger and Financial Reporting | F58: 4.13 | G58: 0.04 | I58: Not Started | N58: =SUMPRODUCT(--ISNA(MATCH('General Ledger and Financial Re'!$C$13:$C$179,$F$31:$F$34,0)))-COUNTIF('General Ledger and Financial Re'!$C$13:$C$179,"") -> 0
E59: Grant Accounting | F59: 4.14 | G59: 0.04 | I59: Not Started | N59: =SUMPRODUCT(--ISNA(MATCH('Grant Accounting'!$C$13:$C$63,$F$31:$F$34,0)))-COUNTIF('Grant Accounting'!$C$13:$C$63,"") -> 0
E60: Human Resources Core and Position Control | F60: 4.15 | G60: 0.04 | I60: Not Started | N60: =SUMPRODUCT(--ISNA(MATCH('Human Resources Core and Positi'!$C$13:$C$150,$F$31:$F$34,0)))-COUNTIF('Human Resources Core and Positi'!$C$13:$C$150,"") -> 0
E61: Inventory Management | F61: 4.16 | G61: 0.04 | I61: Not Started | N61: =SUMPRODUCT(--ISNA(MATCH('Inventory Management'!$C$13:$C$117,$F$31:$F$34,0)))-COUNTIF('Inventory Management'!$C$13:$C$117,"") -> 0
E62: Investment Management | F62: 4.17 | G62: 0.04 | I62: Not Started | N62: =SUMPRODUCT(--ISNA(MATCH('Investment Management'!$C$13:$C$41,$F$31:$F$34,0)))-COUNTIF('Investment Management'!$C$13:$C$41,"") -> 0
E63: Learning Management | F63: 4.18 | G63: 0.04 | I63: Not Started | N63: =SUMPRODUCT(--ISNA(MATCH('Learning Management'!$C$13:$C$73,$F$31:$F$34,0)))-COUNTIF('Learning Management'!$C$13:$C$73,"") -> 0
E64: Miscellaneous Billing and Accounts Receivable | F64: 4.19 | G64: 0.04 | I64: Not Started | N64: =SUMPRODUCT(--ISNA(MATCH('Miscellaneous Billing and Accou'!$C$13:$C$114,$F$31:$F$34,0)))-COUNTIF('Miscellaneous Billing and Accou'!$C$13:$C$114,"") -> 0
E65: Payroll | F65: 4.20 | G65: 0.04 | I65: Not Started | N65: =SUMPRODUCT(--ISNA(MATCH(Payroll!$C$13:$C$375,$F$31:$F$34,0)))-COUNTIF(Payroll!$C$13:$C$375,"") -> 0
E66: Pension Administration | F66: 4.21 | G66: 0.04 | I66: Not Started | N66: =SUMPRODUCT(--ISNA(MATCH('Pension Administration'!$C$13:$C$89,$F$31:$F$34,0)))-COUNTIF('Pension Administration'!$C$13:$C$89,"") -> 0
E67: Performance Management | F67: 4.22 | G67: 0.04 | I67: Not Started | K67: Staff Notes | N67: =SUMPRODUCT(--ISNA(MATCH('Performance Management'!$C$13:$C$41,$F$31:$F$34,0)))-COUNTIF('Performance Management'!$C$13:$C$41,"") -> 0
E68: Project Accounting | F68: 4.23 | G68: 0.04 | I68: Not Started | N68: =SUMPRODUCT(--ISNA(MATCH('Project Accounting'!$C$13:$C$99,$F$31:$F$34,0)))-COUNTIF('Project Accounting'!$C$13:$C$99,"") -> 0
E69: Purchasing | F69: 4.24 | G69: 0.04 | I69: Not Started | N69: =SUMPRODUCT(--ISNA(MATCH(Purchasing!$C$13:$C$267,$F$31:$F$34,0)))-COUNTIF(Purchasing!$C$13:$C$267,"") -> 0
E70: Recruitment and Applicant Tracking | F70: 4.25 | G70: 0.04 | I70: Not Started | N70: =SUMPRODUCT(--ISNA(MATCH('Recruitment and Applicant Track'!$C$13:$C$138,$F$31:$F$34,0)))-COUNTIF('Recruitment and Applicant Track'!$C$13:$C$138,"") -> 0
E71: Time and Attendance | F71: 4.26 | G71: 0.04 | I71: Not Started | N71: =SUMPRODUCT(--ISNA(MATCH('Time and Attendance'!$C$13:$C$248,$F$31:$F$34,0)))-COUNTIF('Time and Attendance'!$C$13:$C$248,"") -> 0
E72: Module 26 | F72: 4.27 | I72: Not Started | N72: =SUMPRODUCT(--ISNA(MATCH('Module 26'!$C$13:$C$1012,$F$31:$F$34,0)))-COUNTIF('Module 26'!$C$13:$C$1012,"") -> 0
E73: Module 27 | F73: 4.28 | I73: Not Started | N73: =SUMPRODUCT(--ISNA(MATCH('Module 27'!$C$13:$C$1012,$F$31:$F$34,0)))-COUNTIF('Module 27'!$C$13:$C$1012,"") -> 0
E74: Module 28 | F74: 4.29 | I74: Not Started | N74: =SUMPRODUCT(--ISNA(MATCH('Module 28'!#REF!,$F$31:$F$34,0)))-COUNTIF('Module 28'!#REF!,"") -> 
E75: Module 29 | F75: 4.30 | I75: Not Started | N75: =SUMPRODUCT(--ISNA(MATCH('Module 29'!#REF!,$F$31:$F$34,0)))-COUNTIF('Module 29'!#REF!,"") -> 
E76: Module 30 | F76: 4.31 | I76: Not Started | N76: =SUMPRODUCT(--ISNA(MATCH('Module 30'!#REF!,$F$31:$F$34,0)))-COUNTIF('Module 30'!#REF!,"") -> 
E77: Module 31 | F77: 4.32 | I77: Not Started | N77: =SUMPRODUCT(--ISNA(MATCH('Module 31'!#REF!,$F$31:$F$34,0)))-COUNTIF('Module 31'!#REF!,"") -> 
E78: Module 32 | F78: 4.33 | I78: Not Started | N78: =SUMPRODUCT(--ISNA(MATCH('Module 32'!#REF!,$F$31:$F$34,0)))-COUNTIF('Module 32'!#REF!,"") -> 
E79: Module 33 | F79: 4.34 | I79: Not Started | N79: =SUMPRODUCT(--ISNA(MATCH('Module 33'!#REF!,$F$31:$F$34,0)))-COUNTIF('Module 33'!#REF!,"") -> 
E80: Module 34 | F80: 4.35 | I80: Not Started | N80: =SUMPRODUCT(--ISNA(MATCH('Module 34'!#REF!,$F$31:$F$34,0)))-COUNTIF('Module 34'!#REF!,"") -> 
E81: Module 35 | F81: 4.36 | I81: Not Started | N81: =SUMPRODUCT(--ISNA(MATCH('Module 35'!#REF!,$F$31:$F$34,0)))-COUNTIF('Module 35'!#REF!,"") -> 
E82: Module 36 | F82: 4.37 | I82: Not Started | N82: =SUMPRODUCT(--ISNA(MATCH('Module 36'!#REF!,$F$31:$F$34,0)))-COUNTIF('Module 36'!#REF!,"") -> 
E83: Module 37 | F83: 4.38 | I83: Not Started | N83: =SUMPRODUCT(--ISNA(MATCH('Module 37'!#REF!,$F$31:$F$34,0)))-COUNTIF('Module 37'!#REF!,"") -> 
E84: Module 38 | F84: 4.39 | I84: Not Started | N84: =SUMPRODUCT(--ISNA(MATCH('Module 38'!#REF!,$F$31:$F$34,0)))-COUNTIF('Module 38'!#REF!,"") -> 
E85: Module 39 | F85: 4.40 | I85: Not Started | N85: =SUMPRODUCT(--ISNA(MATCH('Module 39'!#REF!,$F$31:$F$34,0)))-COUNTIF('Module 39'!#REF!,"") -> 
E86: Module 40 | F86: 4.41 | I86: Not Started | N86: =SUMPRODUCT(--ISNA(MATCH('Module 40'!#REF!,$F$31:$F$34,0)))-COUNTIF('Module 40'!#REF!,"") -> 
E87: Module 41 | F87: 4.42 | I87: Not Started | N87: =SUMPRODUCT(--ISNA(MATCH('Module 41'!#REF!,$F$31:$F$34,0)))-COUNTIF('Module 41'!#REF!,"") -> 
E88: Module 42 | F88: 4.43 | I88: Not Started | N88: =SUMPRODUCT(--ISNA(MATCH('Module 42'!#REF!,$F$31:$F$34,0)))-COUNTIF('Module 42'!#REF!,"") -> 
E89: Module 43 | F89: 4.44 | I89: Not Started | N89: =SUMPRODUCT(--ISNA(MATCH('Module 43'!#REF!,$F$31:$F$34,0)))-COUNTIF('Module 43'!#REF!,"") -> 
E90: Module 44 | F90: 4.45 | I90: Not Started | N90: =SUMPRODUCT(--ISNA(MATCH('Module 44'!#REF!,$F$31:$F$34,0)))-COUNTIF('Module 44'!#REF!,"") -> 
E91: Module 45 | F91: 4.46 | I91: Not Started | N91: =SUMPRODUCT(--ISNA(MATCH('Module 45'!#REF!,$F$31:$F$34,0)))-COUNTIF('Module 45'!#REF!,"") -> 
E92: Module 46 | F92: 4.47 | I92: Not Started | N92: =SUMPRODUCT(--ISNA(MATCH('Module 46'!#REF!,$F$31:$F$34,0)))-COUNTIF('Module 46'!#REF!,"") -> 
E93: Module 47 | F93: 4.48 | I93: Not Started | N93: =SUMPRODUCT(--ISNA(MATCH('Module 47'!#REF!,$F$31:$F$34,0)))-COUNTIF('Module 47'!#REF!,"") -> 
E94: Module 48 | F94: 4.49 | I94: Not Started | N94: =SUMPRODUCT(--ISNA(MATCH('Module 48'!#REF!,$F$31:$F$34,0)))-COUNTIF('Module 48'!#REF!,"") -> 
E95: Module 49 | F95: 4.50 | I95: Not Started | N95: =SUMPRODUCT(--ISNA(MATCH('Module 49'!#REF!,$F$31:$F$34,0)))-COUNTIF('Module 49'!#REF!,"") -> 
E96: Module 50 | F96: 4.51 | I96: Not Started | N96: =SUMPRODUCT(--ISNA(MATCH('Module 50'!#REF!,$F$31:$F$34,0)))-COUNTIF('Module 50'!#REF!,"") -> 
B99: 4 | C99: QA and Prepare for Release:
C101: Not Started | E101: Perform Spell Check | I101: Not Started | K101: Staff Notes
E102: Hide unused modules in overall table of Summary Tab | I102: Not Started
C103: PM Staff | E103: Hide unused module details tables in Summary Tab | I103: Not Started
E104: Set page breaks in Summary Tab | I104: Not Started
E105: Print Preview all sheets and perform final QA | I105: Not Started
E106: Enter test responses for each module. Confirm logic. | I106: Not Started
E107: Final QA and Sign-off | I107: Not Started
B110: 5 | C110: Protect Workbook and Save as XLSX:
C112: Not Started | E112: Click to protect workbook and sheets | K112: Staff Notes
K113: New and improved Macro automatically allows vendor to enter their name in cell A1 of the first module. Verify that module headers refer to the name of the module spreadsheet and do not say 'module 1' and so on. This may need to be updated through the page setup function.
C114: PM Staff
B117: RFP Released
B119: 6 | C119: Update Proposal Information:
C121: Not Started | E121: Proposal Information | G121: Staff Notes
E122: Vendor Long Name
C123: PM Staff | E123: Vendor Short Name
E124: Date Received
B127: 7 | C127: Review and Resolve Errors in Vendor Response:
C129: Not Started | E129: Errors in Vendor Response? | G129: Staff Notes
E130: =IF(SUM(Summary!B4:B989)>0,"Yes","No") -> No
C131: PM Staff
B134: 8 | C134: Print Reports to PDF
C136: Not Started | E136: Print Summary Tab | I136: Not Started | K136: Staff Notes
E137: Apply Comments Filter. Select and Print All Module Tabs | I137: Not Started | K137: Run filters by opening filter XLSM worksheet until installed on staff PCs.
C138: PM Staff | E138: Apply H/M and N/F Filter. Select and Print All Module Tabs | I138: Not Started
E139: Apply Modifcations Filter. Select and Print All Module Tabs | I139: Not Started
E140: Clear Filters | I140: Not Started
E141: QA Step 6 | I141: Not Started
E142: QA Step 7 | I142: Not Started
B145: 9 | C145: Copy Yellow Cells to Step 1 in Central Analysis Worksheet Dashboard for Vendor 1 Only:
C147: Not Started | E147: Copy to Step 1 of Central Analysis for Vendor 1 | I147: Staff Notes
E148: (copy from here)
C149: PM Staff | E149: =E21 -> City of St. Louis, MO
E150: =E22 -> City of St. Louis | F150: =I31 -> 0.9 | G150: =G21 -> MO
E151: ERP System Selection | F151: =I32 -> 0.8 | G151: =G22 -> St. Louis
E152: August 9th, 2019 12:00pm CST
E153: Selection Committee
E154: =E47 -> Accounts Payable | F154: =F47 -> 4.2 | G154: 0.04
E155: =E48 -> Bank Reconciliation | F155: 4.3 | G155: 0.04
E156: =E49 -> Budgeting | F156: 4.4 | G156: 0.04
E157: =E50 -> Cash Management | F157: 4.5 | G157: 0.04
E158: =E51 -> Cash Receipting | F158: 4.6 | G158: 0.04
E159: =E52 -> Contract Management | F159: 4.7 | G159: 0.04
E160: =E53 -> Debt Management | F160: 4.8 | G160: 0.04
E161: =E54 -> Employee and Manager Self Service | F161: 4.9 | G161: 0.04
E162: =E55 -> Employee Benefits | F162: 4.10 | G162: 0.04
E163: =E56 -> Fixed Assets | F163: 4.11 | G163: 0.04
E164: =E57 -> General and Technical | F164: 4.12 | G164: 0.04
E165: =E58 -> General Ledger and Financial Reporting | F165: 4.13 | G165: 0.04
E166: =E59 -> Grant Accounting | F166: 4.14 | G166: 0.04
E167: =E60 -> Human Resources Core and Position Control | F167: 4.15 | G167: 0.04
E168: =E61 -> Inventory Management | F168: 4.16 | G168: 0.04
E169: =E62 -> Investment Management | F169: 4.17 | G169: 0.04
E170: =E63 -> Learning Management | F170: 4.18 | G170: 0.04
E171: =E64 -> Miscellaneous Billing and Accounts Receivable | F171: 4.19 | G171: 0.04
E172: =E65 -> Payroll | F172: 4.20 | G172: 0.04
E173: =E66 -> Pension Administration | F173: 4.21 | G173: 0.04
E174: =E67 -> Performance Management | F174: 4.22 | G174: 0.04
E175: =E68 -> Project Accounting | F175: 4.23 | G175: 0.04
E176: =E69 -> Purchasing | F176: 4.24 | G176: 0.04
E177: =E70 -> Recruitment and Applicant Tracking | F177: 4.25 | G177: 0.04
E178: =E71 -> Time and Attendance | F178: 4.26 | G178: 0.04
E179: =E72 -> Module 26 | F179: 4.27 | G179: 0
E180: =E73 -> Module 27 | F180: 4.28 | G180: 0
E181: =E74 -> Module 28 | F181: 4.29 | G181: 0
E182: =E75 -> Module 29 | F182: 4.30 | G182: 0
E183: =E76 -> Module 30 | F183: 4.31 | G183: 0
E184: =E77 -> Module 31 | F184: 4.32 | G184: 0
E185: =E78 -> Module 32 | F185: 4.33 | G185: 0
E186: =E79 -> Module 33 | F186: 4.34 | G186: 0
E187: =E80 -> Module 34 | F187: 4.35 | G187: 0
E188: =E81 -> Module 35 | F188: 4.36 | G188: 0
E189: =E82 -> Module 36 | F189: 4.37 | G189: 0
E190: =E83 -> Module 37 | F190: 4.38 | G190: 0
E191: =E84 -> Module 38 | F191: 4.39 | G191: 0
E192: =E85 -> Module 39 | F192: 4.40 | G192: 0
E193: =E86 -> Module 40 | F193: 4.41 | G193: 0
E194: =E87 -> Module 41 | F194: 4.42 | G194: 0
E195: =E88 -> Module 42 | F195: 4.43 | G195: 0
E196: =E89 -> Module 43 | F196: 4.44 | G196: 0
E197: =E90 -> Module 44 | F197: 4.45 | G197: 0
E198: =E91 -> Module 45 | F198: 4.46 | G198: 0
E199: =E92 -> Module 46 | F199: 4.47 | G199: 0
E200: =E93 -> Module 47 | F200: 4.48 | G200: 0
E201: =E94 -> Module 48 | F201: 4.49 | G201: 0
E202: =E95 -> Module 49 | F202: 4.50 | G202: 0
E203: =E96 -> Module 50 | F203: 4.51 | G203: 0
E204: =E31 -> Required | F204: =F31 -> R | G204: 4
E205: =E32 -> Desired | F205: D | G205: 2
E206: =E33 -> Optional | F206: O | G206: 1
E207: =E36 -> Yes | F207: =F36 -> Y | G207: 1
E208: =E37 -> Reporting | F208: R | G208: 0.75
E209: =E38 -> Third Party | F209: T | G209: 0.75
E210: =E39 -> Modification | F210: M | G210: 0.5
E211: =E40 -> Future | F211: F | G211: 0.25
E212: =E41 -> No | F212: N | G212: 0
G213: (to here)
B216: 10 | C216: Copy Yellow Cells to Step 2 in Central Analysis Worksheet Dashboard for ALL vendors:
C218: Not Started | E218: Copy to Step 2 of Central Analysis for ALL Vendors | I218: Staff Notes
E219: (copy from here)
C220: PM Staff | E220: =E122 -> Vendor Long Name
E221: =E123 -> Vendor Short Name | F221: =Summary!H64 -> 0
E222: =E124 -> Date Received | F222: =Summary!H65 -> 0
E223: =Summary!E14 -> Accounts Payable | F223: =Summary!H14 -> N/A | G223: =IF('Accounts Payable'!$D$10="Replace this text with primary module name that satisfies requirements.","",'Accounts Payable'!$D$10) -> Replace this text with the primary product name(s) which satisfy requirements.
E224: =Summary!E15 -> Bank Reconciliation | F224: =Summary!H15 -> N/A | G224: =IF('Bank Reconciliation'!$D$10="Replace this text with primary module name that satisfies requirements.","",'Bank Reconciliation'!$D$10) -> Replace this text with the primary product name(s) which satisfy requirements.
E225: =Summary!E16 -> Budgeting | F225: =Summary!H16 -> N/A | G225: =IF(Budgeting!$D$10="Replace this text with primary module name that satisfies requirements.","",Budgeting!$D$10) -> Replace this text with the primary product name(s) which satisfy requirements.
E226: =Summary!E17 -> Cash Management | F226: =Summary!H17 -> N/A | G226: =IF('Cash Management'!$D$10="Replace this text with primary module name that satisfies requirements.","",'Cash Management'!$D$10) -> Replace this text with the primary product name(s) which satisfy requirements.
E227: =Summary!E18 -> Cash Receipting | F227: =Summary!H18 -> N/A | G227: =IF('Cash Receipting'!$D$10="Replace this text with primary module name that satisfies requirements.","",'Cash Receipting'!$D$10) -> Replace this text with the primary product name(s) which satisfy requirements.
E228: =Summary!E19 -> Contract Management | F228: =Summary!H19 -> N/A | G228: =IF('Contract Management'!$D$10="Replace this text with primary module name that satisfies requirements.","",'Contract Management'!$D$10) -> Replace this text with the primary product name(s) which satisfy requirements.
E229: =Summary!E20 -> Debt Management | F229: =Summary!H20 -> N/A | G229: =IF('Debt Management'!$D$10="Replace this text with primary module name that satisfies requirements.","",'Debt Management'!$D$10) -> Replace this text with the primary product name(s) which satisfy requirements.
E230: =Summary!E21 -> Employee and Manager Self Service | F230: =Summary!H21 -> N/A | G230: =IF('Employee and Manager Self Servi'!$D$10="Replace this text with primary module name that satisfies requirements.","",'Employee and Manager Self Servi'!$D$10) -> Replace this text with the primary product name(s) which satisfy requirements.
E231: =Summary!E22 -> Employee Benefits | F231: =Summary!H22 -> N/A | G231: =IF('Employee Benefits'!$D$10="Replace this text with primary module name that satisfies requirements.","",'Employee Benefits'!$D$10) -> Replace this text with the primary product name(s) which satisfy requirements.
... 48 more rows

Sheet Summary (hidden)
A1: Error Check Columns | C1: Presentation Columns | L1: Calculation Columns
A2: DO NOT EDIT | C2: DO NOT EDIT | L2: DO NOT EDIT
D8: Software Specification Compliance Summary
D9: ='Control Panel'!E21 -> City of St. Louis, MO | H9: ="Proposal Due Date: " & TEXT('Control Panel'!E24,"MM/DD/YYYY") -> Proposal Due Date: August 9th, 2019 12:00pm CST
D10: ='Control Panel'!E23 -> ERP System Selection | H10: ="Date Received: " & TEXT('Control Panel'!E124,"MM/DD/YYYY") -> Date Received: Date Received
D11: ='Control Panel'!E122 -> Vendor Long Name
D13: Section | E13: Module | H13: Compliance | I13: Weighting | J13: Primary Product | L13: Average | M13: Isnum-Ave | N13: Isnum-Weight
D14: ='Control Panel'!F47 -> 4.2 | E14: ='Control Panel'!E47 -> Accounts Payable | H14: =$J84 -> N/A | I14: ='Control Panel'!G47 -> 0.04 | J14: ='Accounts Payable'!$D$10 -> Replace this text with the primary product name(s) which satisfy requirements. | L14: =IF(ISNUMBER(H14),H14*I14,"") ->  | M14: =IF(ISNUMBER(H14),L14,"NA") -> NA | N14: =IF(ISNUMBER(H14),I14,"NA") -> NA
D15: ='Control Panel'!F48 -> 4.3 | E15: ='Control Panel'!E48 -> Bank Reconciliation | H15: =$J95 -> N/A | I15: ='Control Panel'!G48 -> 0.04 | J15: ='Bank Reconciliation'!$D$10 -> Replace this text with the primary product name(s) which satisfy requirements. | M15: NA | N15: NA
D16: ='Control Panel'!F49 -> 4.4 | E16: ='Control Panel'!E49 -> Budgeting | H16: =$J106 -> N/A | I16: ='Control Panel'!G49 -> 0.04 | J16: =Budgeting!$D$10 -> Replace this text with the primary product name(s) which satisfy requirements. | M16: NA | N16: NA
D17: ='Control Panel'!F50 -> 4.5 | E17: ='Control Panel'!E50 -> Cash Management | H17: =$J117 -> N/A | I17: ='Control Panel'!G50 -> 0.04 | J17: ='Cash Management'!$D$10 -> Replace this text with the primary product name(s) which satisfy requirements. | M17: NA | N17: NA
D18: ='Control Panel'!F51 -> 4.6 | E18: ='Control Panel'!E51 -> Cash Receipting | H18: =$J128 -> N/A | I18: ='Control Panel'!G51 -> 0.04 | J18: ='Cash Receipting'!$D$10 -> Replace this text with the primary product name(s) which satisfy requirements. | M18: NA | N18: NA
D19: ='Control Panel'!F52 -> 4.7 | E19: ='Control Panel'!E52 -> Contract Management | H19: =$J139 -> N/A | I19: ='Control Panel'!G52 -> 0.04 | J19: ='Contract Management'!$D$10 -> Replace this text with the primary product name(s) which satisfy requirements. | M19: NA | N19: NA
D20: ='Control Panel'!F53 -> 4.8 | E20: ='Control Panel'!E53 -> Debt Management | H20: =$J150 -> N/A | I20: ='Control Panel'!G53 -> 0.04 | J20: ='Debt Management'!$D$10 -> Replace this text with the primary product name(s) which satisfy requirements. | M20: NA | N20: NA
D21: ='Control Panel'!F54 -> 4.9 | E21: ='Control Panel'!E54 -> Employee and Manager Self Service | H21: =$J161 -> N/A | I21: ='Control Panel'!G54 -> 0.04 | J21: ='Employee and Manager Self Servi'!$D$10 -> Replace this text with the primary product name(s) which satisfy requirements. | M21: NA | N21: NA
D22: ='Control Panel'!F55 -> 4.10 | E22: ='Control Panel'!E55 -> Employee Benefits | H22: =$J172 -> N/A | I22: ='Control Panel'!G55 -> 0.04 | J22: ='Employee Benefits'!$D$10 -> Replace this text with the primary product name(s) which satisfy requirements. | M22: NA | N22: NA
D23: ='Control Panel'!F56 -> 4.11 | E23: ='Control Panel'!E56 -> Fixed Assets | H23: =$J183 -> N/A | I23: ='Control Panel'!G56 -> 0.04 | J23: ='Fixed Assets'!$D$10 -> Replace this text with the primary product name(s) which satisfy requirements. | M23: NA | N23: NA
D24: ='Control Panel'!F57 -> 4.12 | E24: ='Control Panel'!E57 -> General and Technical | H24: =$J194 -> N/A | I24: ='Control Panel'!G57 -> 0.04 | J24: ='General and Technical'!$D$10 -> Replace this text with the primary product name(s) which satisfy requirements. | M24: NA | N24: NA
D25: ='Control Panel'!F58 -> 4.13 | E25: ='Control Panel'!E58 -> General Ledger and Financial Reporting | H25: =$J205 -> N/A | I25: ='Control Panel'!G58 -> 0.04 | J25: ='General Ledger and Financial Re'!$D$10 -> Replace this text with the primary product name(s) which satisfy requirements. | M25: NA | N25: NA
D26: ='Control Panel'!F59 -> 4.14 | E26: ='Control Panel'!E59 -> Grant Accounting | H26: =$J216 -> N/A | I26: ='Control Panel'!G59 -> 0.04 | J26: ='Grant Accounting'!$D$10 -> Replace this text with the primary product name(s) which satisfy requirements. | M26: NA | N26: NA
D27: ='Control Panel'!F60 -> 4.15 | E27: ='Control Panel'!E60 -> Human Resources Core and Position Control | H27: =$J227 -> N/A | I27: ='Control Panel'!G60 -> 0.04 | J27: ='Human Resources Core and Positi'!$D$10 -> Replace this text with the primary product name(s) which satisfy requirements. | M27: NA | N27: NA
D28: ='Control Panel'!F61 -> 4.16 | E28: ='Control Panel'!E61 -> Inventory Management | H28: =$J238 -> N/A | I28: ='Control Panel'!G61 -> 0.04 | J28: ='Inventory Management'!$D$10 -> Replace this text with the primary product name(s) which satisfy requirements. | M28: NA | N28: NA
D29: ='Control Panel'!F62 -> 4.17 | E29: ='Control Panel'!E62 -> Investment Management | H29: =$J249 -> N/A | I29: ='Control Panel'!G62 -> 0.04 | J29: ='Investment Management'!$D$10 -> Replace this text with the primary product name(s) which satisfy requirements. | M29: NA | N29: NA
D30: ='Control Panel'!F63 -> 4.18 | E30: ='Control Panel'!E63 -> Learning Management | H30: =$J260 -> N/A | I30: ='Control Panel'!G63 -> 0.04 | J30: ='Learning Management'!$D$10 -> Replace this text with the primary product name(s) which satisfy requirements. | M30: NA | N30: NA
D31: ='Control Panel'!F64 -> 4.19 | E31: ='Control Panel'!E64 -> Miscellaneous Billing and Accounts Receivable | H31: =$J271 -> N/A | I31: ='Control Panel'!G64 -> 0.04 | J31: ='Miscellaneous Billing and Accou'!$D$10 -> Replace this text with the primary product name(s) which satisfy requirements. | M31: NA | N31: NA
D32: ='Control Panel'!F65 -> 4.20 | E32: ='Control Panel'!E65 -> Payroll | H32: =$J282 -> N/A | I32: ='Control Panel'!G65 -> 0.04 | J32: =Payroll!$D$10 -> Replace this text with the primary product name(s) which satisfy requirements. | M32: NA | N32: NA
D33: ='Control Panel'!F66 -> 4.21 | E33: ='Control Panel'!E66 -> Pension Administration | H33: =$J293 -> N/A | I33: ='Control Panel'!G66 -> 0.04 | J33: ='Pension Administration'!$D$10 -> Replace this text with the primary product name(s) which satisfy requirements. | M33: NA | N33: NA
D34: ='Control Panel'!F67 -> 4.22 | E34: ='Control Panel'!E67 -> Performance Management | H34: =$J304 -> N/A | I34: ='Control Panel'!G67 -> 0.04 | J34: ='Performance Management'!$D$10 -> Replace this text with the primary product name(s) which satisfy requirements. | M34: NA | N34: NA
D35: ='Control Panel'!F68 -> 4.23 | E35: ='Control Panel'!E68 -> Project Accounting | H35: =$J315 -> N/A | I35: ='Control Panel'!G68 -> 0.04 | J35: ='Project Accounting'!$D$10 -> Replace this text with the primary product name(s) which satisfy requirements. | M35: NA | N35: NA
D36: ='Control Panel'!F69 -> 4.24 | E36: ='Control Panel'!E69 -> Purchasing | H36: =$J326 -> N/A | I36: ='Control Panel'!G69 -> 0.04 | J36: =Purchasing!$D$10 -> Replace this text with the primary product name(s) which satisfy requirements. | M36: NA | N36: NA
D37: ='Control Panel'!F70 -> 4.25 | E37: ='Control Panel'!E70 -> Recruitment and Applicant Tracking | H37: =$J337 -> N/A | I37: ='Control Panel'!G70 -> 0.04 | J37: ='Recruitment and Applicant Track'!$D$10 -> Replace this text with the primary product name(s) which satisfy requirements. | M37: NA | N37: NA
D38: ='Control Panel'!F71 -> 4.26 | E38: ='Control Panel'!E71 -> Time and Attendance | H38: =$J348 -> N/A | I38: ='Control Panel'!G71 -> 0.04 | J38: ='Time and Attendance'!$D$10 -> Replace this text with the primary product name(s) which satisfy requirements. | M38: NA | N38: NA
D39: ='Control Panel'!F72 -> 4.27 | E39: ='Control Panel'!E72 -> Module 26 | H39: =$J359 -> N/A | I39: ='Control Panel'!G72 -> 0 | J39: ='Module 26'!$D$10 -> Replace this text with the primary product name(s) which satisfy requirements. | M39: NA | N39: NA
D40: ='Control Panel'!F73 -> 4.28 | E40: ='Control Panel'!E73 -> Module 27 | H40: =$J370 -> N/A | I40: ='Control Panel'!G73 -> 0 | J40: ='Module 27'!$D$10 -> Replace this text with the primary product name(s) which satisfy requirements. | M40: NA | N40: NA
D41: ='Control Panel'!F74 -> 4.29 | E41: ='Control Panel'!E74 -> Module 28 | H41: =$J381 -> N/A | I41: ='Control Panel'!G74 -> 0 | J41: ='Module 28'!$D$10 -> Replace this text with the primary product name(s) which satisfy requirements. | M41: NA | N41: NA
D42: ='Control Panel'!F75 -> 4.30 | E42: ='Control Panel'!E75 -> Module 29 | H42: =$J392 -> N/A | I42: ='Control Panel'!G75 -> 0 | J42: ='Module 29'!$D$10 -> Replace this text with the primary product name(s) which satisfy requirements. | M42: NA | N42: NA
D43: ='Control Panel'!F76 -> 4.31 | E43: ='Control Panel'!E76 -> Module 30 | H43: =$J403 -> N/A | I43: ='Control Panel'!G76 -> 0 | J43: ='Module 30'!$D$10 -> Replace this text with the primary product name(s) which satisfy requirements. | M43: NA | N43: NA
D44: ='Control Panel'!F77 -> 4.32 | E44: ='Control Panel'!E77 -> Module 31 | H44: =$J414 -> N/A | I44: ='Control Panel'!G77 -> 0 | J44: ='Module 31'!$D$10 -> Replace this text with the primary product name(s) which satisfy requirements. | M44: NA | N44: NA
D45: ='Control Panel'!F78 -> 4.33 | E45: ='Control Panel'!E78 -> Module 32 | H45: =$J425 -> N/A | I45: ='Control Panel'!G78 -> 0 | J45: ='Module 32'!$D$10 -> Replace this text with the primary product name(s) which satisfy requirements. | M45: NA | N45: NA
D46: ='Control Panel'!F79 -> 4.34 | E46: ='Control Panel'!E79 -> Module 33 | H46: =$J436 -> N/A | I46: ='Control Panel'!G79 -> 0 | J46: ='Module 33'!$D$10 -> Replace this text with the primary product name(s) which satisfy requirements. | L46: =IF(ISNUMBER(H46),H46*I46,"") ->  | M46: =IF(ISNUMBER(H46),L46,"NA") -> NA | N46: =IF(ISNUMBER(H46),I46,"NA") -> NA
D47: ='Control Panel'!F80 -> 4.35 | E47: ='Control Panel'!E80 -> Module 34 | H47: =$J447 -> N/A | I47: ='Control Panel'!G80 -> 0 | J47: ='Module 34'!$D$10 -> Replace this text with the primary product name(s) which satisfy requirements. | M47: NA | N47: NA
D48: ='Control Panel'!F81 -> 4.36 | E48: ='Control Panel'!E81 -> Module 35 | H48: =$J458 -> N/A | I48: ='Control Panel'!G81 -> 0 | J48: ='Module 35'!$D$10 -> Replace this text with the primary product name(s) which satisfy requirements. | M48: NA | N48: NA
D49: ='Control Panel'!F82 -> 4.37 | E49: ='Control Panel'!E82 -> Module 36 | H49: =$J469 -> N/A | I49: ='Control Panel'!G82 -> 0 | J49: ='Module 36'!$D$10 -> Replace this text with the primary product name(s) which satisfy requirements. | M49: NA | N49: NA
D50: ='Control Panel'!F83 -> 4.38 | E50: ='Control Panel'!E83 -> Module 37 | H50: =$J480 -> N/A | I50: ='Control Panel'!G83 -> 0 | J50: ='Module 37'!$D$10 -> Replace this text with the primary product name(s) which satisfy requirements. | M50: NA | N50: NA
D51: ='Control Panel'!F84 -> 4.39 | E51: ='Control Panel'!E84 -> Module 38 | H51: =$J491 -> N/A | I51: ='Control Panel'!G84 -> 0 | J51: ='Module 38'!$D$10 -> Replace this text with the primary product name(s) which satisfy requirements. | M51: NA | N51: NA
D52: ='Control Panel'!F85 -> 4.40 | E52: ='Control Panel'!E85 -> Module 39 | H52: =$J502 -> N/A | I52: ='Control Panel'!G85 -> 0 | J52: ='Module 39'!$D$10 -> Replace this text with the primary product name(s) which satisfy requirements. | M52: NA | N52: NA
D53: ='Control Panel'!F86 -> 4.41 | E53: ='Control Panel'!E86 -> Module 40 | H53: =$J513 -> N/A | I53: ='Control Panel'!G86 -> 0 | J53: ='Module 40'!$D$10 -> Replace this text with the primary product name(s) which satisfy requirements. | M53: NA | N53: NA
D54: ='Control Panel'!F87 -> 4.42 | E54: ='Control Panel'!E87 -> Module 41 | H54: =$J524 -> N/A | I54: ='Control Panel'!G87 -> 0 | J54: ='Module 41'!$D$10 -> Replace this text with the primary product name(s) which satisfy requirements. | M54: NA | N54: NA
D55: ='Control Panel'!F88 -> 4.43 | E55: ='Control Panel'!E88 -> Module 42 | H55: =$J535 -> N/A | I55: ='Control Panel'!G88 -> 0 | J55: ='Module 42'!$D$10 -> Replace this text with the primary product name(s) which satisfy requirements. | M55: NA | N55: NA
D56: ='Control Panel'!F89 -> 4.44 | E56: ='Control Panel'!E89 -> Module 43 | H56: =$J546 -> N/A | I56: ='Control Panel'!G89 -> 0 | J56: ='Module 43'!$D$10 -> Replace this text with the primary product name(s) which satisfy requirements. | M56: NA | N56: NA
D57: ='Control Panel'!F90 -> 4.45 | E57: ='Control Panel'!E90 -> Module 44 | H57: =$J557 -> N/A | I57: ='Control Panel'!G90 -> 0 | J57: ='Module 44'!$D$10 -> Replace this text with the primary product name(s) which satisfy requirements. | M57: NA | N57: NA
D58: ='Control Panel'!F91 -> 4.46 | E58: ='Control Panel'!E91 -> Module 45 | H58: =$J568 -> N/A | I58: ='Control Panel'!G91 -> 0 | J58: ='Module 45'!$D$10 -> Replace this text with the primary product name(s) which satisfy requirements. | M58: NA | N58: NA
D59: ='Control Panel'!F92 -> 4.47 | E59: ='Control Panel'!E92 -> Module 46 | H59: =$J579 -> N/A | I59: ='Control Panel'!G92 -> 0 | J59: ='Module 46'!$D$10 -> Replace this text with the primary product name(s) which satisfy requirements. | M59: NA | N59: NA
D60: ='Control Panel'!F93 -> 4.48 | E60: ='Control Panel'!E93 -> Module 47 | H60: =$J590 -> N/A | I60: ='Control Panel'!G93 -> 0 | J60: ='Module 47'!$D$10 -> Replace this text with the primary product name(s) which satisfy requirements. | M60: NA | N60: NA
D61: ='Control Panel'!F94 -> 4.49 | E61: ='Control Panel'!E94 -> Module 48 | H61: =$J601 -> N/A | I61: ='Control Panel'!G94 -> 0 | J61: ='Module 48'!$D$10 -> Replace this text with the primary product name(s) which satisfy requirements. | M61: NA | N61: NA
D62: ='Control Panel'!F95 -> 4.50 | E62: ='Control Panel'!E95 -> Module 49 | H62: =$J612 -> N/A | I62: ='Control Panel'!G95 -> 0 | J62: ='Module 49'!$D$10 -> Replace this text with the primary product name(s) which satisfy requirements. | M62: NA | N62: NA
D63: ='Control Panel'!F96 -> 4.51 | E63: ='Control Panel'!E96 -> Module 50 | H63: =$J623 -> N/A | I63: ='Control Panel'!G96 -> 0 | J63: ='Module 50'!$D$10 -> Replace this text with the primary product name(s) which satisfy requirements. | M63: NA | N63: NA
D64: ="Weighted Average for "&'Control Panel'!E122&":" -> Weighted Average for Vendor Long Name: | H64: =L64 -> 0 | I64: =IF(SUM(I14:I63)=1,"","Error <> 100%") ->  | L64: =SUM(L14:L63) -> 0 | M64: =SUM(M14:M63) -> 0 | N64: =SUM(N14:N63) -> 0
D65: Weighted Average for Offered Modules: | H65: =IF(N64=0,0,M64/N64) -> 0
D67: ="* Weighting established by "&'Control Panel'!E21& " "&'Control Panel'!E25 -> * Weighting established by City of St. Louis, MO Selection Committee
D69: Total Potential Points Based on Specification Priority | I69: Legend
D70: Points | E70: Description
D71: ='Control Panel'!G31 -> 4 | E71: ='Control Panel'!E31&" Prioritized Requirements" -> Required Prioritized Requirements | I71: ='Control Panel'!$I$31*100 & "% compliant or greater." -> 90% compliant or greater.
D72: ='Control Panel'!G32 -> 2 | E72: ='Control Panel'!E32&" Prioritized Requirements" -> Desired Prioritized Requirements | I72: ='Control Panel'!$I$32*100 & "% compliant or greater, less than " & 'Control Panel'!$I$31*100 & "%." -> 80% compliant or greater, less than 90%.
D73: ='Control Panel'!G33 -> 1 | E73: ='Control Panel'!E33&" Prioritized Requirements" -> Optional Prioritized Requirements | I73: ="Less than " & 'Control Panel'!$I$32*100 & "% compliant." -> Less than 80% compliant.
D75: Percent of Total Potential Points Awarded Based on Vendor Availability Response
D76: Percent | E76: Response | F76: Description
D77: ='Control Panel'!G36 -> 1 | E77: ='Control Panel'!F36 -> Y | F77: ='Control Panel'!H36 -> Functionality is provided out of the box through the completion of a task associated with a routine configurable area that includes, but is not limited to, user-defined fields, delivered or configurable workflows, alerts or notifications, standard import/export, table driven setups and standard reports with no changes. These configuration areas will not be affected by a future upgrade. The proposed services include implementation and training on this functionality, unless specifically excluded in the Statement of Work, as part of the deployment of the solution.
D78: ='Control Panel'!G38 -> 0.75 | E78: ='Control Panel'!F37 -> R | F78: ='Control Panel'!H37 -> Functionality is provided through reports generated using proposed Reporting Tools.
D79: ='Control Panel'!G37 -> 0.75 | E79: ='Control Panel'!F38 -> T | F79: ='Control Panel'!H38 -> Functionality is provided by proposed third party functionality (i.e., third party is defined as a separate software vendor from the primary software vendor). The pricing of all third party products that provide this functionality MUST be included in the cost proposal.
D80: ='Control Panel'!G39 -> 0.5 | E80: ='Control Panel'!F39 -> M | F80: ='Control Panel'!H39 -> Functionality is provided through customization to the application, including creation of a new workflow or development of a custom interface, that may have an impact on future upgradability.
D81: ='Control Panel'!G40 -> 0.25 | E81: ='Control Panel'!F40 -> F | F81: ='Control Panel'!H40 -> Functionality is provided through a future general availability (GA) release that is scheduled to occur within 1 year of the proposal response.
D82: ='Control Panel'!G41 -> 0 | E82: ='Control Panel'!F41 -> N | F82: ='Control Panel'!H41 -> Functionality is not provided.
D84: ='Control Panel'!F47&" - "&'Control Panel'!E47 -> 4.2 - Accounts Payable | I84: Overall Compliance: | J84: =IF(SUM(M93:O93)=0,"N/A",SUM(M93:O93)/SUM(M86:O86)) -> N/A
D85: Availability | E85: Priority | H85: Total | I85: Comments | J85: Availability by Type | M85: ='Control Panel'!$F$31 -> R | N85: ='Control Panel'!$F$32 -> D | O85: ='Control Panel'!$F$33 -> O
E86: ='Control Panel'!$E$31 -> Required | F86: ='Control Panel'!$E$32 -> Desired | G86: ='Control Panel'!$E$33 -> Optional | L86: Max | M86: =E93*'Control Panel'!$G$31*'Control Panel'!$G$36 -> 336 | N86: =F93*'Control Panel'!$G$32*'Control Panel'!$G$36 -> 138 | O86: =G93*'Control Panel'!$G$33*'Control Panel'!$G$36 -> 3
D87: ='Control Panel'!$E$36 -> Yes | E87: =COUNTIFS('Accounts Payable'!$C:$C,'Control Panel'!$F$31,'Accounts Payable'!$AB:$AB,'Control Panel'!$F$36) -> 0 | F87: =COUNTIFS('Accounts Payable'!$C:$C,'Control Panel'!$F$32,'Accounts Payable'!$AB:$AB,'Control Panel'!$F$36) -> 0 | G87: =COUNTIFS('Accounts Payable'!$C:$C,'Control Panel'!$F$33,'Accounts Payable'!$AB:$AB,'Control Panel'!$F$36) -> 0 | H87: =SUM(E87:G87) -> 0 | I87: =COUNTIFS('Accounts Payable'!$G:$G,"<>",'Accounts Payable'!$AB:$AB,'Control Panel'!$F$36) -> 0 | L87: ='Control Panel'!$F$36 -> Y | M87: =E87*'Control Panel'!$G$31*'Control Panel'!$G$36 -> 0 | N87: =F87*'Control Panel'!$G$32*'Control Panel'!$G$36 -> 0 | O87: =G87*'Control Panel'!$G$33*'Control Panel'!$G$36 -> 0
D88: ='Control Panel'!$E$37 -> Reporting | E88: =COUNTIFS('Accounts Payable'!$C:$C,'Control Panel'!$F$31,'Accounts Payable'!$AB:$AB,'Control Panel'!$F$37) -> 0 | F88: =COUNTIFS('Accounts Payable'!$C:$C,'Control Panel'!$F$32,'Accounts Payable'!$AB:$AB,'Control Panel'!$F$37) -> 0 | G88: =COUNTIFS('Accounts Payable'!$C:$C,'Control Panel'!$F$33,'Accounts Payable'!$AB:$AB,'Control Panel'!$F$37) -> 0 | H88: =SUM(E88:G88) -> 0 | I88: =COUNTIFS('Accounts Payable'!$G:$G,"<>",'Accounts Payable'!$AB:$AB,'Control Panel'!$F$37) -> 0 | L88: ='Control Panel'!$F$37 -> R | M88: =E88*'Control Panel'!$G$31*'Control Panel'!$G$37 -> 0 | N88: =F88*'Control Panel'!$G$32*'Control Panel'!$G$37 -> 0 | O88: =G88*'Control Panel'!$G$33*'Control Panel'!$G$37 -> 0
D89: ='Control Panel'!$E$38 -> Third Party | E89: =COUNTIFS('Accounts Payable'!$C:$C,'Control Panel'!$F$31,'Accounts Payable'!$AB:$AB,'Control Panel'!$F$38) -> 0 | F89: =COUNTIFS('Accounts Payable'!$C:$C,'Control Panel'!$F$32,'Accounts Payable'!$AB:$AB,'Control Panel'!$F$38) -> 0 | G89: =COUNTIFS('Accounts Payable'!$C:$C,'Control Panel'!$F$33,'Accounts Payable'!$AB:$AB,'Control Panel'!$F$38) -> 0 | H89: 0 | I89: =COUNTIFS('Accounts Payable'!$G:$G,"<>",'Accounts Payable'!$AB:$AB,'Control Panel'!$F$38) -> 0 | L89: ='Control Panel'!$F$38 -> T | M89: =E89*'Control Panel'!$G$31*'Control Panel'!$G$38 -> 0 | N89: =F89*'Control Panel'!$G$32*'Control Panel'!$G$38 -> 0 | O89: =G89*'Control Panel'!$G$33*'Control Panel'!$G$38 -> 0
A90: Errors in response? | D90: ='Control Panel'!$E$39 -> Modification | E90: =COUNTIFS('Accounts Payable'!$C:$C,'Control Panel'!$F$31,'Accounts Payable'!$AB:$AB,'Control Panel'!$F$39) -> 0 | F90: =COUNTIFS('Accounts Payable'!$C:$C,'Control Panel'!$F$32,'Accounts Payable'!$AB:$AB,'Control Panel'!$F$39) -> 0 | G90: =COUNTIFS('Accounts Payable'!$C:$C,'Control Panel'!$F$33,'Accounts Payable'!$AB:$AB,'Control Panel'!$F$39) -> 0 | H90: 0 | I90: =COUNTIFS('Accounts Payable'!$G:$G,"<>",'Accounts Payable'!$AB:$AB,'Control Panel'!$F$39) -> 0 | L90: ='Control Panel'!$F$39 -> M | M90: =E90*'Control Panel'!$G$31*'Control Panel'!$G$39 -> 0 | N90: =F90*'Control Panel'!$G$32*'Control Panel'!$G$39 -> 0 | O90: =G90*'Control Panel'!$G$33*'Control Panel'!$G$39 -> 0
A91: (See column AB) | D91: ='Control Panel'!$E$40 -> Future | E91: =COUNTIFS('Accounts Payable'!$C:$C,'Control Panel'!$F$31,'Accounts Payable'!$AB:$AB,'Control Panel'!$F$40) -> 0 | F91: =COUNTIFS('Accounts Payable'!$C:$C,'Control Panel'!$F$32,'Accounts Payable'!$AB:$AB,'Control Panel'!$F$40) -> 0 | G91: =COUNTIFS('Accounts Payable'!$C:$C,'Control Panel'!$F$33,'Accounts Payable'!$AB:$AB,'Control Panel'!$F$40) -> 0 | H91: 0 | I91: =COUNTIFS('Accounts Payable'!$G:$G,"<>",'Accounts Payable'!$AB:$AB,'Control Panel'!$F$40) -> 0 | L91: ='Control Panel'!$F$40 -> F | M91: =E91*'Control Panel'!$G$31*'Control Panel'!$G$40 -> 0 | N91: =F91*'Control Panel'!$G$32*'Control Panel'!$G$40 -> 0 | O91: =G91*'Control Panel'!$G$33*'Control Panel'!$G$40 -> 0
A92: =IF('Accounts Payable'!$AC$12>0,"Yes","No") -> No | B92: =IF(A92="Yes",1,0) -> 0 | D92: ='Control Panel'!$E$41 -> No | E92: =COUNTIFS('Accounts Payable'!$C:$C,'Control Panel'!$F$31,'Accounts Payable'!$AB:$AB,'Control Panel'!$F$41) -> 84 | F92: =COUNTIFS('Accounts Payable'!$C:$C,'Control Panel'!$F$32,'Accounts Payable'!$AB:$AB,'Control Panel'!$F$41) -> 69 | G92: =COUNTIFS('Accounts Payable'!$C:$C,'Control Panel'!$F$33,'Accounts Payable'!$AB:$AB,'Control Panel'!$F$41) -> 3 | H92: 156 | I92: =COUNTIFS('Accounts Payable'!$G:$G,"<>",'Accounts Payable'!$AB:$AB,'Control Panel'!$F$41) -> 0 | L92: ='Control Panel'!$F$41 -> N | M92: =E92*'Control Panel'!$G$31*'Control Panel'!$G$41 -> 0 | N92: =F92*'Control Panel'!$G$32*'Control Panel'!$G$41 -> 0 | O92: =G92*'Control Panel'!$G$33*'Control Panel'!$G$41 -> 0
D93: Total: | E93: =SUM(E87:E92) -> 84 | F93: =SUM(F87:F92) -> 69 | G93: =SUM(G87:G92) -> 3 | H93: =SUM(H87:H92) -> 156 | I93: =SUM(I87:I92) -> 0 | L93: =D93 -> Total: | M93: =SUM(M87:M92) -> 0 | N93: =SUM(N87:N92) -> 0 | O93: =SUM(O87:O92) -> 0
L94: % | M94: =IF(M86=0,"NA",M93/M86) -> 0 | N94: 0 | O94: 0
D95: ='Control Panel'!F48&" - "&'Control Panel'!E48 -> 4.3 - Bank Reconciliation | I95: =$I$84 -> Overall Compliance: | J95: =IF(SUM(M104:O104)=0,"N/A",SUM(M104:O104)/SUM(M97:O97)) -> N/A
D96: =$D$85 -> Availability | E96: =$E$85 -> Priority | H96: =$H$85 -> Total | I96: =$I$85 -> Comments | J96: =$J$85 -> Availability by Type | M96: ='Control Panel'!$F$31 -> R | N96: ='Control Panel'!$F$32 -> D | O96: ='Control Panel'!$F$33 -> O
E97: ='Control Panel'!$E$31 -> Required | F97: ='Control Panel'!$E$32 -> Desired | G97: ='Control Panel'!$E$33 -> Optional | L97: Max | M97: =E104*'Control Panel'!$G$31*'Control Panel'!$G$36 -> 92 | N97: =F104*'Control Panel'!$G$32*'Control Panel'!$G$36 -> 22 | O97: =G104*'Control Panel'!$G$33*'Control Panel'!$G$36 -> 1
D98: ='Control Panel'!$E$36 -> Yes | E98: =COUNTIFS('Bank Reconciliation'!$C:$C,'Control Panel'!$F$31,'Bank Reconciliation'!$AB:$AB,'Control Panel'!$F$36) -> 0 | F98: =COUNTIFS('Bank Reconciliation'!$C:$C,'Control Panel'!$F$32,'Bank Reconciliation'!$AB:$AB,'Control Panel'!$F$36) -> 0 | G98: =COUNTIFS('Bank Reconciliation'!$C:$C,'Control Panel'!$F$33,'Bank Reconciliation'!$AB:$AB,'Control Panel'!$F$36) -> 0 | H98: =SUM(E98:G98) -> 0 | I98: =COUNTIFS('Bank Reconciliation'!$G:$G,"<>",'Bank Reconciliation'!$AB:$AB,'Control Panel'!$F$36) -> 0 | L98: ='Control Panel'!$F$36 -> Y | M98: =E98*'Control Panel'!$G$31*'Control Panel'!$G$36 -> 0 | N98: =F98*'Control Panel'!$G$32*'Control Panel'!$G$36 -> 0 | O98: =G98*'Control Panel'!$G$33*'Control Panel'!$G$36 -> 0
D99: ='Control Panel'!$E$37 -> Reporting | E99: =COUNTIFS('Bank Reconciliation'!$C:$C,'Control Panel'!$F$31,'Bank Reconciliation'!$AB:$AB,'Control Panel'!$F$37) -> 0 | F99: =COUNTIFS('Bank Reconciliation'!$C:$C,'Control Panel'!$F$32,'Bank Reconciliation'!$AB:$AB,'Control Panel'!$F$37) -> 0 | G99: =COUNTIFS('Bank Reconciliation'!$C:$C,'Control Panel'!$F$33,'Bank Reconciliation'!$AB:$AB,'Control Panel'!$F$37) -> 0 | H99: =SUM(E99:G99) -> 0 | I99: =COUNTIFS('Bank Reconciliation'!$G:$G,"<>",'Bank Reconciliation'!$AB:$AB,'Control Panel'!$F$37) -> 0 | L99: ='Control Panel'!$F$37 -> R | M99: =E99*'Control Panel'!$G$31*'Control Panel'!$G$37 -> 0 | N99: =F99*'Control Panel'!$G$32*'Control Panel'!$G$37 -> 0 | O99: =G99*'Control Panel'!$G$33*'Control Panel'!$G$37 -> 0
D100: ='Control Panel'!$E$38 -> Third Party | E100: =COUNTIFS('Bank Reconciliation'!$C:$C,'Control Panel'!$F$31,'Bank Reconciliation'!$AB:$AB,'Control Panel'!$F$38) -> 0 | F100: =COUNTIFS('Bank Reconciliation'!$C:$C,'Control Panel'!$F$32,'Bank Reconciliation'!$AB:$AB,'Control Panel'!$F$38) -> 0 | G100: =COUNTIFS('Bank Reconciliation'!$C:$C,'Control Panel'!$F$33,'Bank Reconciliation'!$AB:$AB,'Control Panel'!$F$38) -> 0 | H100: 0 | I100: =COUNTIFS('Bank Reconciliation'!$G:$G,"<>",'Bank Reconciliation'!$AB:$AB,'Control Panel'!$F$38) -> 0 | L100: ='Control Panel'!$F$38 -> T | M100: =E100*'Control Panel'!$G$31*'Control Panel'!$G$38 -> 0 | N100: =F100*'Control Panel'!$G$32*'Control Panel'!$G$38 -> 0 | O100: =G100*'Control Panel'!$G$33*'Control Panel'!$G$38 -> 0
A101: Errors in response? | D101: ='Control Panel'!$E$39 -> Modification | E101: =COUNTIFS('Bank Reconciliation'!$C:$C,'Control Panel'!$F$31,'Bank Reconciliation'!$AB:$AB,'Control Panel'!$F$39) -> 0 | F101: =COUNTIFS('Bank Reconciliation'!$C:$C,'Control Panel'!$F$32,'Bank Reconciliation'!$AB:$AB,'Control Panel'!$F$39) -> 0 | G101: =COUNTIFS('Bank Reconciliation'!$C:$C,'Control Panel'!$F$33,'Bank Reconciliation'!$AB:$AB,'Control Panel'!$F$39) -> 0 | H101: 0 | I101: =COUNTIFS('Bank Reconciliation'!$G:$G,"<>",'Bank Reconciliation'!$AB:$AB,'Control Panel'!$F$39) -> 0 | L101: ='Control Panel'!$F$39 -> M | M101: =E101*'Control Panel'!$G$31*'Control Panel'!$G$39 -> 0 | N101: =F101*'Control Panel'!$G$32*'Control Panel'!$G$39 -> 0 | O101: =G101*'Control Panel'!$G$33*'Control Panel'!$G$39 -> 0
A102: (See column AB) | D102: ='Control Panel'!$E$40 -> Future | E102: =COUNTIFS('Bank Reconciliation'!$C:$C,'Control Panel'!$F$31,'Bank Reconciliation'!$AB:$AB,'Control Panel'!$F$40) -> 0 | F102: =COUNTIFS('Bank Reconciliation'!$C:$C,'Control Panel'!$F$32,'Bank Reconciliation'!$AB:$AB,'Control Panel'!$F$40) -> 0 | G102: =COUNTIFS('Bank Reconciliation'!$C:$C,'Control Panel'!$F$33,'Bank Reconciliation'!$AB:$AB,'Control Panel'!$F$40) -> 0 | H102: 0 | I102: =COUNTIFS('Bank Reconciliation'!$G:$G,"<>",'Bank Reconciliation'!$AB:$AB,'Control Panel'!$F$40) -> 0 | L102: ='Control Panel'!$F$40 -> F | M102: =E102*'Control Panel'!$G$31*'Control Panel'!$G$40 -> 0 | N102: =F102*'Control Panel'!$G$32*'Control Panel'!$G$40 -> 0 | O102: =G102*'Control Panel'!$G$33*'Control Panel'!$G$40 -> 0
A103: =IF('Bank Reconciliation'!$AC$12>0,"Yes","No") -> No | B103: =IF(A103="Yes",1,0) -> 0 | D103: ='Control Panel'!$E$41 -> No | E103: =COUNTIFS('Bank Reconciliation'!$C:$C,'Control Panel'!$F$31,'Bank Reconciliation'!$AB:$AB,'Control Panel'!$F$41) -> 23 | F103: =COUNTIFS('Bank Reconciliation'!$C:$C,'Control Panel'!$F$32,'Bank Reconciliation'!$AB:$AB,'Control Panel'!$F$41) -> 11 | G103: =COUNTIFS('Bank Reconciliation'!$C:$C,'Control Panel'!$F$33,'Bank Reconciliation'!$AB:$AB,'Control Panel'!$F$41) -> 1 | H103: 35 | I103: =COUNTIFS('Bank Reconciliation'!$G:$G,"<>",'Bank Reconciliation'!$AB:$AB,'Control Panel'!$F$41) -> 0 | L103: ='Control Panel'!$F$41 -> N | M103: =E103*'Control Panel'!$G$31*'Control Panel'!$G$41 -> 0 | N103: =F103*'Control Panel'!$G$32*'Control Panel'!$G$41 -> 0 | O103: =G103*'Control Panel'!$G$33*'Control Panel'!$G$41 -> 0
D104: =$D$93 -> Total: | E104: =SUM(E98:E103) -> 23 | F104: =SUM(F98:F103) -> 11 | G104: =SUM(G98:G103) -> 1 | H104: =SUM(H98:H103) -> 35 | I104: =SUM(I98:I103) -> 0 | L104: =D104 -> Total: | M104: =SUM(M98:M103) -> 0 | N104: =SUM(N98:N103) -> 0 | O104: =SUM(O98:O103) -> 0
L105: % | M105: =IF(M97=0,"NA",M104/M97) -> 0 | N105: 0 | O105: 0
D106: ='Control Panel'!F49&" - "&'Control Panel'!E49 -> 4.4 - Budgeting | I106: =$I$84 -> Overall Compliance: | J106: =IF(SUM(M115:O115)=0,"N/A",SUM(M115:O115)/SUM(M108:O108)) -> N/A
D107: =$D$85 -> Availability | E107: =$E$85 -> Priority | H107: =$H$85 -> Total | I107: =$I$85 -> Comments | J107: =$J$85 -> Availability by Type | M107: ='Control Panel'!$F$31 -> R | N107: ='Control Panel'!$F$32 -> D | O107: ='Control Panel'!$F$33 -> O
E108: ='Control Panel'!$E$31 -> Required | F108: ='Control Panel'!$E$32 -> Desired | G108: ='Control Panel'!$E$33 -> Optional | L108: Max | M108: =E115*'Control Panel'!$G$31*'Control Panel'!$G$36 -> 84 | N108: =F115*'Control Panel'!$G$32*'Control Panel'!$G$36 -> 202 | O108: =G115*'Control Panel'!$G$33*'Control Panel'!$G$36 -> 2
D109: ='Control Panel'!$E$36 -> Yes | E109: =COUNTIFS(Budgeting!$C:$C,'Control Panel'!$F$31,Budgeting!$AB:$AB,'Control Panel'!$F$36) -> 0 | F109: =COUNTIFS(Budgeting!$C:$C,'Control Panel'!$F$32,Budgeting!$AB:$AB,'Control Panel'!$F$36) -> 0 | G109: =COUNTIFS(Budgeting!$C:$C,'Control Panel'!$F$33,Budgeting!$AB:$AB,'Control Panel'!$F$36) -> 0 | H109: =SUM(E109:G109) -> 0 | I109: =COUNTIFS(Budgeting!$G:$G,"<>",Budgeting!$AB:$AB,'Control Panel'!$F$36) -> 0 | L109: ='Control Panel'!$F$36 -> Y | M109: =E109*'Control Panel'!$G$31*'Control Panel'!$G$36 -> 0 | N109: =F109*'Control Panel'!$G$32*'Control Panel'!$G$36 -> 0 | O109: =G109*'Control Panel'!$G$33*'Control Panel'!$G$36 -> 0
D110: ='Control Panel'!$E$37 -> Reporting | E110: =COUNTIFS(Budgeting!$C:$C,'Control Panel'!$F$31,Budgeting!$AB:$AB,'Control Panel'!$F$37) -> 0 | F110: =COUNTIFS(Budgeting!$C:$C,'Control Panel'!$F$32,Budgeting!$AB:$AB,'Control Panel'!$F$37) -> 0 | G110: =COUNTIFS(Budgeting!$C:$C,'Control Panel'!$F$33,Budgeting!$AB:$AB,'Control Panel'!$F$37) -> 0 | H110: =SUM(E110:G110) -> 0 | I110: =COUNTIFS(Budgeting!$G:$G,"<>",Budgeting!$AB:$AB,'Control Panel'!$F$37) -> 0 | L110: ='Control Panel'!$F$37 -> R | M110: =E110*'Control Panel'!$G$31*'Control Panel'!$G$37 -> 0 | N110: =F110*'Control Panel'!$G$32*'Control Panel'!$G$37 -> 0 | O110: =G110*'Control Panel'!$G$33*'Control Panel'!$G$37 -> 0
D111: ='Control Panel'!$E$38 -> Third Party | E111: =COUNTIFS(Budgeting!$C:$C,'Control Panel'!$F$31,Budgeting!$AB:$AB,'Control Panel'!$F$38) -> 0 | F111: =COUNTIFS(Budgeting!$C:$C,'Control Panel'!$F$32,Budgeting!$AB:$AB,'Control Panel'!$F$38) -> 0 | G111: =COUNTIFS(Budgeting!$C:$C,'Control Panel'!$F$33,Budgeting!$AB:$AB,'Control Panel'!$F$38) -> 0 | H111: 0 | I111: =COUNTIFS(Budgeting!$G:$G,"<>",Budgeting!$AB:$AB,'Control Panel'!$F$38) -> 0 | L111: ='Control Panel'!$F$38 -> T | M111: =E111*'Control Panel'!$G$31*'Control Panel'!$G$38 -> 0 | N111: =F111*'Control Panel'!$G$32*'Control Panel'!$G$38 -> 0 | O111: =G111*'Control Panel'!$G$33*'Control Panel'!$G$38 -> 0
A112: Errors in response? | D112: ='Control Panel'!$E$39 -> Modification | E112: =COUNTIFS(Budgeting!$C:$C,'Control Panel'!$F$31,Budgeting!$AB:$AB,'Control Panel'!$F$39) -> 0 | F112: =COUNTIFS(Budgeting!$C:$C,'Control Panel'!$F$32,Budgeting!$AB:$AB,'Control Panel'!$F$39) -> 0 | G112: =COUNTIFS(Budgeting!$C:$C,'Control Panel'!$F$33,Budgeting!$AB:$AB,'Control Panel'!$F$39) -> 0 | H112: 0 | I112: =COUNTIFS(Budgeting!$G:$G,"<>",Budgeting!$AB:$AB,'Control Panel'!$F$39) -> 0 | L112: ='Control Panel'!$F$39 -> M | M112: =E112*'Control Panel'!$G$31*'Control Panel'!$G$39 -> 0 | N112: =F112*'Control Panel'!$G$32*'Control Panel'!$G$39 -> 0 | O112: =G112*'Control Panel'!$G$33*'Control Panel'!$G$39 -> 0
A113: (See column AB) | D113: ='Control Panel'!$E$40 -> Future | E113: =COUNTIFS(Budgeting!$C:$C,'Control Panel'!$F$31,Budgeting!$AB:$AB,'Control Panel'!$F$40) -> 0 | F113: =COUNTIFS(Budgeting!$C:$C,'Control Panel'!$F$32,Budgeting!$AB:$AB,'Control Panel'!$F$40) -> 0 | G113: =COUNTIFS(Budgeting!$C:$C,'Control Panel'!$F$33,Budgeting!$AB:$AB,'Control Panel'!$F$40) -> 0 | H113: 0 | I113: =COUNTIFS(Budgeting!$G:$G,"<>",Budgeting!$AB:$AB,'Control Panel'!$F$40) -> 0 | L113: ='Control Panel'!$F$40 -> F | M113: =E113*'Control Panel'!$G$31*'Control Panel'!$G$40 -> 0 | N113: =F113*'Control Panel'!$G$32*'Control Panel'!$G$40 -> 0 | O113: =G113*'Control Panel'!$G$33*'Control Panel'!$G$40 -> 0
A114: =IF(Budgeting!$AC$12>0,"Yes","No") -> No | B114: =IF(A114="Yes",1,0) -> 0 | D114: ='Control Panel'!$E$41 -> No | E114: =COUNTIFS(Budgeting!$C:$C,'Control Panel'!$F$31,Budgeting!$AB:$AB,'Control Panel'!$F$41) -> 21 | F114: =COUNTIFS(Budgeting!$C:$C,'Control Panel'!$F$32,Budgeting!$AB:$AB,'Control Panel'!$F$41) -> 101 | G114: =COUNTIFS(Budgeting!$C:$C,'Control Panel'!$F$33,Budgeting!$AB:$AB,'Control Panel'!$F$41) -> 2 | H114: 124 | I114: =COUNTIFS(Budgeting!$G:$G,"<>",Budgeting!$AB:$AB,'Control Panel'!$F$41) -> 0 | L114: ='Control Panel'!$F$41 -> N | M114: =E114*'Control Panel'!$G$31*'Control Panel'!$G$41 -> 0 | N114: =F114*'Control Panel'!$G$32*'Control Panel'!$G$41 -> 0 | O114: =G114*'Control Panel'!$G$33*'Control Panel'!$G$41 -> 0
D115: =$D$93 -> Total: | E115: =SUM(E109:E114) -> 21 | F115: =SUM(F109:F114) -> 101 | G115: =SUM(G109:G114) -> 2 | H115: =SUM(H109:H114) -> 124 | I115: =SUM(I109:I114) -> 0 | L115: =D115 -> Total: | M115: =SUM(M109:M114) -> 0 | N115: =SUM(N109:N114) -> 0 | O115: =SUM(O109:O114) -> 0
L116: % | M116: =IF(M108=0,"NA",M115/M108) -> 0 | N116: 0 | O116: 0
D117: ='Control Panel'!F50&" - "&'Control Panel'!E50 -> 4.5 - Cash Management | I117: =$I$84 -> Overall Compliance: | J117: =IF(SUM(M126:O126)=0,"N/A",SUM(M126:O126)/SUM(M119:O119)) -> N/A
D118: =$D$85 -> Availability | E118: =$E$85 -> Priority | H118: =$H$85 -> Total | I118: =$I$85 -> Comments | J118: =$J$85 -> Availability by Type | M118: ='Control Panel'!$F$31 -> R | N118: ='Control Panel'!$F$32 -> D | O118: ='Control Panel'!$F$33 -> O
E119: ='Control Panel'!$E$31 -> Required | F119: ='Control Panel'!$E$32 -> Desired | G119: ='Control Panel'!$E$33 -> Optional | L119: Max | M119: =E126*'Control Panel'!$G$31*'Control Panel'!$G$36 -> 56 | N119: =F126*'Control Panel'!$G$32*'Control Panel'!$G$36 -> 30 | O119: =G126*'Control Panel'!$G$33*'Control Panel'!$G$36 -> 15
D120: ='Control Panel'!$E$36 -> Yes | E120: =COUNTIFS('Cash Management'!$C:$C,'Control Panel'!$F$31,'Cash Management'!$AB:$AB,'Control Panel'!$F$36) -> 0 | F120: =COUNTIFS('Cash Management'!$C:$C,'Control Panel'!$F$32,'Cash Management'!$AB:$AB,'Control Panel'!$F$36) -> 0 | G120: =COUNTIFS('Cash Management'!$C:$C,'Control Panel'!$F$33,'Cash Management'!$AB:$AB,'Control Panel'!$F$36) -> 0 | H120: =SUM(E120:G120) -> 0 | I120: =COUNTIFS('Cash Management'!$G:$G,"<>",'Cash Management'!$AB:$AB,'Control Panel'!$F$36) -> 0 | L120: ='Control Panel'!$F$36 -> Y | M120: =E120*'Control Panel'!$G$31*'Control Panel'!$G$36 -> 0 | N120: =F120*'Control Panel'!$G$32*'Control Panel'!$G$36 -> 0 | O120: =G120*'Control Panel'!$G$33*'Control Panel'!$G$36 -> 0
D121: ='Control Panel'!$E$37 -> Reporting | E121: =COUNTIFS('Cash Management'!$C:$C,'Control Panel'!$F$31,'Cash Management'!$AB:$AB,'Control Panel'!$F$37) -> 0 | F121: =COUNTIFS('Cash Management'!$C:$C,'Control Panel'!$F$32,'Cash Management'!$AB:$AB,'Control Panel'!$F$37) -> 0 | G121: =COUNTIFS('Cash Management'!$C:$C,'Control Panel'!$F$33,'Cash Management'!$AB:$AB,'Control Panel'!$F$37) -> 0 | H121: =SUM(E121:G121) -> 0 | I121: =COUNTIFS('Cash Management'!$G:$G,"<>",'Cash Management'!$AB:$AB,'Control Panel'!$F$37) -> 0 | L121: ='Control Panel'!$F$37 -> R | M121: =E121*'Control Panel'!$G$31*'Control Panel'!$G$37 -> 0 | N121: =F121*'Control Panel'!$G$32*'Control Panel'!$G$37 -> 0 | O121: =G121*'Control Panel'!$G$33*'Control Panel'!$G$37 -> 0
D122: ='Control Panel'!$E$38 -> Third Party | E122: =COUNTIFS('Cash Management'!$C:$C,'Control Panel'!$F$31,'Cash Management'!$AB:$AB,'Control Panel'!$F$38) -> 0 | F122: =COUNTIFS('Cash Management'!$C:$C,'Control Panel'!$F$32,'Cash Management'!$AB:$AB,'Control Panel'!$F$38) -> 0 | G122: =COUNTIFS('Cash Management'!$C:$C,'Control Panel'!$F$33,'Cash Management'!$AB:$AB,'Control Panel'!$F$38) -> 0 | H122: 0 | I122: =COUNTIFS('Cash Management'!$G:$G,"<>",'Cash Management'!$AB:$AB,'Control Panel'!$F$38) -> 0 | L122: ='Control Panel'!$F$38 -> T | M122: =E122*'Control Panel'!$G$31*'Control Panel'!$G$38 -> 0 | N122: =F122*'Control Panel'!$G$32*'Control Panel'!$G$38 -> 0 | O122: =G122*'Control Panel'!$G$33*'Control Panel'!$G$38 -> 0
A123: Errors in response? | D123: ='Control Panel'!$E$39 -> Modification | E123: =COUNTIFS('Cash Management'!$C:$C,'Control Panel'!$F$31,'Cash Management'!$AB:$AB,'Control Panel'!$F$39) -> 0 | F123: =COUNTIFS('Cash Management'!$C:$C,'Control Panel'!$F$32,'Cash Management'!$AB:$AB,'Control Panel'!$F$39) -> 0 | G123: =COUNTIFS('Cash Management'!$C:$C,'Control Panel'!$F$33,'Cash Management'!$AB:$AB,'Control Panel'!$F$39) -> 0 | H123: 0 | I123: =COUNTIFS('Cash Management'!$G:$G,"<>",'Cash Management'!$AB:$AB,'Control Panel'!$F$39) -> 0 | L123: ='Control Panel'!$F$39 -> M | M123: =E123*'Control Panel'!$G$31*'Control Panel'!$G$39 -> 0 | N123: =F123*'Control Panel'!$G$32*'Control Panel'!$G$39 -> 0 | O123: =G123*'Control Panel'!$G$33*'Control Panel'!$G$39 -> 0
A124: (See column AB) | D124: ='Control Panel'!$E$40 -> Future | E124: =COUNTIFS('Cash Management'!$C:$C,'Control Panel'!$F$31,'Cash Management'!$AB:$AB,'Control Panel'!$F$40) -> 0 | F124: =COUNTIFS('Cash Management'!$C:$C,'Control Panel'!$F$32,'Cash Management'!$AB:$AB,'Control Panel'!$F$40) -> 0 | G124: =COUNTIFS('Cash Management'!$C:$C,'Control Panel'!$F$33,'Cash Management'!$AB:$AB,'Control Panel'!$F$40) -> 0 | H124: 0 | I124: =COUNTIFS('Cash Management'!$G:$G,"<>",'Cash Management'!$AB:$AB,'Control Panel'!$F$40) -> 0 | L124: ='Control Panel'!$F$40 -> F | M124: =E124*'Control Panel'!$G$31*'Control Panel'!$G$40 -> 0 | N124: =F124*'Control Panel'!$G$32*'Control Panel'!$G$40 -> 0 | O124: =G124*'Control Panel'!$G$33*'Control Panel'!$G$40 -> 0
A125: =IF('Cash Management'!$AC$12>0,"Yes","No") -> No | B125: =IF(A125="Yes",1,0) -> 0 | D125: ='Control Panel'!$E$41 -> No | E125: =COUNTIFS('Cash Management'!$C:$C,'Control Panel'!$F$31,'Cash Management'!$AB:$AB,'Control Panel'!$F$41) -> 14 | F125: =COUNTIFS('Cash Management'!$C:$C,'Control Panel'!$F$32,'Cash Management'!$AB:$AB,'Control Panel'!$F$41) -> 15 | G125: =COUNTIFS('Cash Management'!$C:$C,'Control Panel'!$F$33,'Cash Management'!$AB:$AB,'Control Panel'!$F$41) -> 15 | H125: 44 | I125: =COUNTIFS('Cash Management'!$G:$G,"<>",'Cash Management'!$AB:$AB,'Control Panel'!$F$41) -> 0 | L125: ='Control Panel'!$F$41 -> N | M125: =E125*'Control Panel'!$G$31*'Control Panel'!$G$41 -> 0 | N125: =F125*'Control Panel'!$G$32*'Control Panel'!$G$41 -> 0 | O125: =G125*'Control Panel'!$G$33*'Control Panel'!$G$41 -> 0
D126: =$D$93 -> Total: | E126: =SUM(E120:E125) -> 14 | F126: =SUM(F120:F125) -> 15 | G126: =SUM(G120:G125) -> 15 | H126: =SUM(H120:H125) -> 44 | I126: =SUM(I120:I125) -> 0 | L126: =D126 -> Total: | M126: =SUM(M120:M125) -> 0 | N126: =SUM(N120:N125) -> 0 | O126: =SUM(O120:O125) -> 0
L127: % | M127: =IF(M119=0,"NA",M126/M119) -> 0 | N127: 0 | O127: 0
D128: ='Control Panel'!F51&" - "&'Control Panel'!E51 -> 4.6 - Cash Receipting | I128: =$I$84 -> Overall Compliance: | J128: =IF(SUM(M137:O137)=0,"N/A",SUM(M137:O137)/SUM(M130:O130)) -> N/A
D129: =$D$85 -> Availability | E129: =$E$85 -> Priority | H129: =$H$85 -> Total | I129: =$I$85 -> Comments | J129: =$J$85 -> Availability by Type | M129: ='Control Panel'!$F$31 -> R | N129: ='Control Panel'!$F$32 -> D | O129: ='Control Panel'!$F$33 -> O
E130: ='Control Panel'!$E$31 -> Required | F130: ='Control Panel'!$E$32 -> Desired | G130: ='Control Panel'!$E$33 -> Optional | L130: Max | M130: =E137*'Control Panel'!$G$31*'Control Panel'!$G$36 -> 200 | N130: =F137*'Control Panel'!$G$32*'Control Panel'!$G$36 -> 70 | O130: =G137*'Control Panel'!$G$33*'Control Panel'!$G$36 -> 0
D131: ='Control Panel'!$E$36 -> Yes | E131: =COUNTIFS('Cash Receipting'!$C:$C,'Control Panel'!$F$31,'Cash Receipting'!$AB:$AB,'Control Panel'!$F$36) -> 0 | F131: =COUNTIFS('Cash Receipting'!$C:$C,'Control Panel'!$F$32,'Cash Receipting'!$AB:$AB,'Control Panel'!$F$36) -> 0 | G131: =COUNTIFS('Cash Receipting'!$C:$C,'Control Panel'!$F$33,'Cash Receipting'!$AB:$AB,'Control Panel'!$F$36) -> 0 | H131: =SUM(E131:G131) -> 0 | I131: =COUNTIFS('Cash Receipting'!$G:$G,"<>",'Cash Receipting'!$AB:$AB,'Control Panel'!$F$36) -> 0 | L131: ='Control Panel'!$F$36 -> Y | M131: =E131*'Control Panel'!$G$31*'Control Panel'!$G$36 -> 0 | N131: =F131*'Control Panel'!$G$32*'Control Panel'!$G$36 -> 0 | O131: =G131*'Control Panel'!$G$33*'Control Panel'!$G$36 -> 0
D132: ='Control Panel'!$E$37 -> Reporting | E132: =COUNTIFS('Cash Receipting'!$C:$C,'Control Panel'!$F$31,'Cash Receipting'!$AB:$AB,'Control Panel'!$F$37) -> 0 | F132: =COUNTIFS('Cash Receipting'!$C:$C,'Control Panel'!$F$32,'Cash Receipting'!$AB:$AB,'Control Panel'!$F$37) -> 0 | G132: =COUNTIFS('Cash Receipting'!$C:$C,'Control Panel'!$F$33,'Cash Receipting'!$AB:$AB,'Control Panel'!$F$37) -> 0 | H132: =SUM(E132:G132) -> 0 | I132: =COUNTIFS('Cash Receipting'!$G:$G,"<>",'Cash Receipting'!$AB:$AB,'Control Panel'!$F$37) -> 0 | L132: ='Control Panel'!$F$37 -> R | M132: =E132*'Control Panel'!$G$31*'Control Panel'!$G$37 -> 0 | N132: =F132*'Control Panel'!$G$32*'Control Panel'!$G$37 -> 0 | O132: =G132*'Control Panel'!$G$33*'Control Panel'!$G$37 -> 0
D133: ='Control Panel'!$E$38 -> Third Party | E133: =COUNTIFS('Cash Receipting'!$C:$C,'Control Panel'!$F$31,'Cash Receipting'!$AB:$AB,'Control Panel'!$F$38) -> 0 | F133: =COUNTIFS('Cash Receipting'!$C:$C,'Control Panel'!$F$32,'Cash Receipting'!$AB:$AB,'Control Panel'!$F$38) -> 0 | G133: =COUNTIFS('Cash Receipting'!$C:$C,'Control Panel'!$F$33,'Cash Receipting'!$AB:$AB,'Control Panel'!$F$38) -> 0 | H133: 0 | I133: =COUNTIFS('Cash Receipting'!$G:$G,"<>",'Cash Receipting'!$AB:$AB,'Control Panel'!$F$38) -> 0 | L133: ='Control Panel'!$F$38 -> T | M133: =E133*'Control Panel'!$G$31*'Control Panel'!$G$38 -> 0 | N133: =F133*'Control Panel'!$G$32*'Control Panel'!$G$38 -> 0 | O133: =G133*'Control Panel'!$G$33*'Control Panel'!$G$38 -> 0
A134: Errors in response? | D134: ='Control Panel'!$E$39 -> Modification | E134: =COUNTIFS('Cash Receipting'!$C:$C,'Control Panel'!$F$31,'Cash Receipting'!$AB:$AB,'Control Panel'!$F$39) -> 0 | F134: =COUNTIFS('Cash Receipting'!$C:$C,'Control Panel'!$F$32,'Cash Receipting'!$AB:$AB,'Control Panel'!$F$39) -> 0 | G134: =COUNTIFS('Cash Receipting'!$C:$C,'Control Panel'!$F$33,'Cash Receipting'!$AB:$AB,'Control Panel'!$F$39) -> 0 | H134: 0 | I134: =COUNTIFS('Cash Receipting'!$G:$G,"<>",'Cash Receipting'!$AB:$AB,'Control Panel'!$F$39) -> 0 | L134: ='Control Panel'!$F$39 -> M | M134: =E134*'Control Panel'!$G$31*'Control Panel'!$G$39 -> 0 | N134: =F134*'Control Panel'!$G$32*'Control Panel'!$G$39 -> 0 | O134: =G134*'Control Panel'!$G$33*'Control Panel'!$G$39 -> 0
A135: (See column AB) | D135: ='Control Panel'!$E$40 -> Future | E135: =COUNTIFS('Cash Receipting'!$C:$C,'Control Panel'!$F$31,'Cash Receipting'!$AB:$AB,'Control Panel'!$F$40) -> 0 | F135: =COUNTIFS('Cash Receipting'!$C:$C,'Control Panel'!$F$32,'Cash Receipting'!$AB:$AB,'Control Panel'!$F$40) -> 0 | G135: =COUNTIFS('Cash Receipting'!$C:$C,'Control Panel'!$F$33,'Cash Receipting'!$AB:$AB,'Control Panel'!$F$40) -> 0 | H135: 0 | I135: =COUNTIFS('Cash Receipting'!$G:$G,"<>",'Cash Receipting'!$AB:$AB,'Control Panel'!$F$40) -> 0 | L135: ='Control Panel'!$F$40 -> F | M135: =E135*'Control Panel'!$G$31*'Control Panel'!$G$40 -> 0 | N135: =F135*'Control Panel'!$G$32*'Control Panel'!$G$40 -> 0 | O135: =G135*'Control Panel'!$G$33*'Control Panel'!$G$40 -> 0
A136: =IF('Cash Receipting'!$AC$12>0,"Yes","No") -> No | B136: =IF(A136="Yes",1,0) -> 0 | D136: ='Control Panel'!$E$41 -> No | E136: =COUNTIFS('Cash Receipting'!$C:$C,'Control Panel'!$F$31,'Cash Receipting'!$AB:$AB,'Control Panel'!$F$41) -> 50 | F136: =COUNTIFS('Cash Receipting'!$C:$C,'Control Panel'!$F$32,'Cash Receipting'!$AB:$AB,'Control Panel'!$F$41) -> 35 | G136: =COUNTIFS('Cash Receipting'!$C:$C,'Control Panel'!$F$33,'Cash Receipting'!$AB:$AB,'Control Panel'!$F$41) -> 0 | H136: 85 | I136: =COUNTIFS('Cash Receipting'!$G:$G,"<>",'Cash Receipting'!$AB:$AB,'Control Panel'!$F$41) -> 0 | L136: ='Control Panel'!$F$41 -> N | M136: =E136*'Control Panel'!$G$31*'Control Panel'!$G$41 -> 0 | N136: =F136*'Control Panel'!$G$32*'Control Panel'!$G$41 -> 0 | O136: =G136*'Control Panel'!$G$33*'Control Panel'!$G$41 -> 0
D137: =$D$93 -> Total: | E137: =SUM(E131:E136) -> 50 | F137: =SUM(F131:F136) -> 35 | G137: =SUM(G131:G136) -> 0 | H137: =SUM(H131:H136) -> 85 | I137: =SUM(I131:I136) -> 0 | L137: =D137 -> Total: | M137: =SUM(M131:M136) -> 0 | N137: =SUM(N131:N136) -> 0 | O137: =SUM(O131:O136) -> 0
L138: % | M138: =IF(M130=0,"NA",M137/M130) -> 0 | N138: 0 | O138: NA
D139: ='Control Panel'!F52&" - "&'Control Panel'!E52 -> 4.7 - Contract Management | I139: =$I$84 -> Overall Compliance: | J139: =IF(SUM(M148:O148)=0,"N/A",SUM(M148:O148)/SUM(M141:O141)) -> N/A
D140: =$D$85 -> Availability | E140: =$E$85 -> Priority | H140: =$H$85 -> Total | I140: =$I$85 -> Comments | J140: =$J$85 -> Availability by Type | M140: ='Control Panel'!$F$31 -> R | N140: ='Control Panel'!$F$32 -> D | O140: ='Control Panel'!$F$33 -> O
E141: ='Control Panel'!$E$31 -> Required | F141: ='Control Panel'!$E$32 -> Desired | G141: ='Control Panel'!$E$33 -> Optional | L141: Max | M141: =E148*'Control Panel'!$G$31*'Control Panel'!$G$36 -> 120 | N141: =F148*'Control Panel'!$G$32*'Control Panel'!$G$36 -> 106 | O141: =G148*'Control Panel'!$G$33*'Control Panel'!$G$36 -> 3
D142: ='Control Panel'!$E$36 -> Yes | E142: =COUNTIFS('Contract Management'!$C:$C,'Control Panel'!$F$31,'Contract Management'!$AB:$AB,'Control Panel'!$F$36) -> 0 | F142: =COUNTIFS('Contract Management'!$C:$C,'Control Panel'!$F$32,'Contract Management'!$AB:$AB,'Control Panel'!$F$36) -> 0 | G142: =COUNTIFS('Contract Management'!$C:$C,'Control Panel'!$F$33,'Contract Management'!$AB:$AB,'Control Panel'!$F$36) -> 0 | H142: =SUM(E142:G142) -> 0 | I142: =COUNTIFS('Contract Management'!$G:$G,"<>",'Contract Management'!$AB:$AB,'Control Panel'!$F$36) -> 0 | L142: ='Control Panel'!$F$36 -> Y | M142: =E142*'Control Panel'!$G$31*'Control Panel'!$G$36 -> 0 | N142: =F142*'Control Panel'!$G$32*'Control Panel'!$G$36 -> 0 | O142: =G142*'Control Panel'!$G$33*'Control Panel'!$G$36 -> 0
D143: ='Control Panel'!$E$37 -> Reporting | E143: =COUNTIFS('Contract Management'!$C:$C,'Control Panel'!$F$31,'Contract Management'!$AB:$AB,'Control Panel'!$F$37) -> 0 | F143: =COUNTIFS('Contract Management'!$C:$C,'Control Panel'!$F$32,'Contract Management'!$AB:$AB,'Control Panel'!$F$37) -> 0 | G143: =COUNTIFS('Contract Management'!$C:$C,'Control Panel'!$F$33,'Contract Management'!$AB:$AB,'Control Panel'!$F$37) -> 0 | H143: =SUM(E143:G143) -> 0 | I143: =COUNTIFS('Contract Management'!$G:$G,"<>",'Contract Management'!$AB:$AB,'Control Panel'!$F$37) -> 0 | L143: ='Control Panel'!$F$37 -> R | M143: =E143*'Control Panel'!$G$31*'Control Panel'!$G$37 -> 0 | N143: =F143*'Control Panel'!$G$32*'Control Panel'!$G$37 -> 0 | O143: =G143*'Control Panel'!$G$33*'Control Panel'!$G$37 -> 0
D144: ='Control Panel'!$E$38 -> Third Party | E144: =COUNTIFS('Contract Management'!$C:$C,'Control Panel'!$F$31,'Contract Management'!$AB:$AB,'Control Panel'!$F$38) -> 0 | F144: =COUNTIFS('Contract Management'!$C:$C,'Control Panel'!$F$32,'Contract Management'!$AB:$AB,'Control Panel'!$F$38) -> 0 | G144: =COUNTIFS('Contract Management'!$C:$C,'Control Panel'!$F$33,'Contract Management'!$AB:$AB,'Control Panel'!$F$38) -> 0 | H144: 0 | I144: =COUNTIFS('Contract Management'!$G:$G,"<>",'Contract Management'!$AB:$AB,'Control Panel'!$F$38) -> 0 | L144: ='Control Panel'!$F$38 -> T | M144: =E144*'Control Panel'!$G$31*'Control Panel'!$G$38 -> 0 | N144: =F144*'Control Panel'!$G$32*'Control Panel'!$G$38 -> 0 | O144: =G144*'Control Panel'!$G$33*'Control Panel'!$G$38 -> 0
A145: Errors in response? | D145: ='Control Panel'!$E$39 -> Modification | E145: =COUNTIFS('Contract Management'!$C:$C,'Control Panel'!$F$31,'Contract Management'!$AB:$AB,'Control Panel'!$F$39) -> 0 | F145: =COUNTIFS('Contract Management'!$C:$C,'Control Panel'!$F$32,'Contract Management'!$AB:$AB,'Control Panel'!$F$39) -> 0 | G145: =COUNTIFS('Contract Management'!$C:$C,'Control Panel'!$F$33,'Contract Management'!$AB:$AB,'Control Panel'!$F$39) -> 0 | H145: 0 | I145: =COUNTIFS('Contract Management'!$G:$G,"<>",'Contract Management'!$AB:$AB,'Control Panel'!$F$39) -> 0 | L145: ='Control Panel'!$F$39 -> M | M145: =E145*'Control Panel'!$G$31*'Control Panel'!$G$39 -> 0 | N145: =F145*'Control Panel'!$G$32*'Control Panel'!$G$39 -> 0 | O145: =G145*'Control Panel'!$G$33*'Control Panel'!$G$39 -> 0
A146: (See column AB) | D146: ='Control Panel'!$E$40 -> Future | E146: =COUNTIFS('Contract Management'!$C:$C,'Control Panel'!$F$31,'Contract Management'!$AB:$AB,'Control Panel'!$F$40) -> 0 | F146: =COUNTIFS('Contract Management'!$C:$C,'Control Panel'!$F$32,'Contract Management'!$AB:$AB,'Control Panel'!$F$40) -> 0 | G146: =COUNTIFS('Contract Management'!$C:$C,'Control Panel'!$F$33,'Contract Management'!$AB:$AB,'Control Panel'!$F$40) -> 0 | H146: 0 | I146: =COUNTIFS('Contract Management'!$G:$G,"<>",'Contract Management'!$AB:$AB,'Control Panel'!$F$40) -> 0 | L146: ='Control Panel'!$F$40 -> F | M146: =E146*'Control Panel'!$G$31*'Control Panel'!$G$40 -> 0 | N146: =F146*'Control Panel'!$G$32*'Control Panel'!$G$40 -> 0 | O146: =G146*'Control Panel'!$G$33*'Control Panel'!$G$40 -> 0
A147: =IF('Contract Management'!$AC$12>0,"Yes","No") -> No | B147: =IF(A147="Yes",1,0) -> 0 | D147: ='Control Panel'!$E$41 -> No | E147: =COUNTIFS('Contract Management'!$C:$C,'Control Panel'!$F$31,'Contract Management'!$AB:$AB,'Control Panel'!$F$41) -> 30 | F147: =COUNTIFS('Contract Management'!$C:$C,'Control Panel'!$F$32,'Contract Management'!$AB:$AB,'Control Panel'!$F$41) -> 53 | G147: =COUNTIFS('Contract Management'!$C:$C,'Control Panel'!$F$33,'Contract Management'!$AB:$AB,'Control Panel'!$F$41) -> 3 | H147: 86 | I147: =COUNTIFS('Contract Management'!$G:$G,"<>",'Contract Management'!$AB:$AB,'Control Panel'!$F$41) -> 0 | L147: ='Control Panel'!$F$41 -> N | M147: =E147*'Control Panel'!$G$31*'Control Panel'!$G$41 -> 0 | N147: =F147*'Control Panel'!$G$32*'Control Panel'!$G$41 -> 0 | O147: =G147*'Control Panel'!$G$33*'Control Panel'!$G$41 -> 0
D148: =$D$93 -> Total: | E148: =SUM(E142:E147) -> 30 | F148: =SUM(F142:F147) -> 53 | G148: =SUM(G142:G147) -> 3 | H148: =SUM(H142:H147) -> 86 | I148: =SUM(I142:I147) -> 0 | L148: =D148 -> Total: | M148: =SUM(M142:M147) -> 0 | N148: =SUM(N142:N147) -> 0 | O148: =SUM(O142:O147) -> 0
L149: % | M149: =IF(M141=0,"NA",M148/M141) -> 0 | N149: 0 | O149: 0
D150: ='Control Panel'!F53&" - "&'Control Panel'!E53 -> 4.8 - Debt Management | I150: =$I$84 -> Overall Compliance: | J150: =IF(SUM(M159:O159)=0,"N/A",SUM(M159:O159)/SUM(M152:O152)) -> N/A
D151: =$D$85 -> Availability | E151: =$E$85 -> Priority | H151: =$H$85 -> Total | I151: =$I$85 -> Comments | J151: =$J$85 -> Availability by Type | M151: ='Control Panel'!$F$31 -> R | N151: ='Control Panel'!$F$32 -> D | O151: ='Control Panel'!$F$33 -> O
E152: ='Control Panel'!$E$31 -> Required | F152: ='Control Panel'!$E$32 -> Desired | G152: ='Control Panel'!$E$33 -> Optional | L152: Max | M152: =E159*'Control Panel'!$G$31*'Control Panel'!$G$36 -> 0 | N152: =F159*'Control Panel'!$G$32*'Control Panel'!$G$36 -> 14 | O152: =G159*'Control Panel'!$G$33*'Control Panel'!$G$36 -> 2
D153: ='Control Panel'!$E$36 -> Yes | E153: =COUNTIFS('Debt Management'!$C:$C,'Control Panel'!$F$31,'Debt Management'!$AB:$AB,'Control Panel'!$F$36) -> 0 | F153: =COUNTIFS('Debt Management'!$C:$C,'Control Panel'!$F$32,'Debt Management'!$AB:$AB,'Control Panel'!$F$36) -> 0 | G153: =COUNTIFS('Debt Management'!$C:$C,'Control Panel'!$F$33,'Debt Management'!$AB:$AB,'Control Panel'!$F$36) -> 0 | H153: =SUM(E153:G153) -> 0 | I153: =COUNTIFS('Debt Management'!$G:$G,"<>",'Debt Management'!$AB:$AB,'Control Panel'!$F$36) -> 0 | L153: ='Control Panel'!$F$36 -> Y | M153: =E153*'Control Panel'!$G$31*'Control Panel'!$G$36 -> 0 | N153: =F153*'Control Panel'!$G$32*'Control Panel'!$G$36 -> 0 | O153: =G153*'Control Panel'!$G$33*'Control Panel'!$G$36 -> 0
D154: ='Control Panel'!$E$37 -> Reporting | E154: =COUNTIFS('Debt Management'!$C:$C,'Control Panel'!$F$31,'Debt Management'!$AB:$AB,'Control Panel'!$F$37) -> 0 | F154: =COUNTIFS('Debt Management'!$C:$C,'Control Panel'!$F$32,'Debt Management'!$AB:$AB,'Control Panel'!$F$37) -> 0 | G154: =COUNTIFS('Debt Management'!$C:$C,'Control Panel'!$F$33,'Debt Management'!$AB:$AB,'Control Panel'!$F$37) -> 0 | H154: =SUM(E154:G154) -> 0 | I154: =COUNTIFS('Debt Management'!$G:$G,"<>",'Debt Management'!$AB:$AB,'Control Panel'!$F$37) -> 0 | L154: ='Control Panel'!$F$37 -> R | M154: =E154*'Control Panel'!$G$31*'Control Panel'!$G$37 -> 0 | N154: =F154*'Control Panel'!$G$32*'Control Panel'!$G$37 -> 0 | O154: =G154*'Control Panel'!$G$33*'Control Panel'!$G$37 -> 0
D155: ='Control Panel'!$E$38 -> Third Party | E155: =COUNTIFS('Debt Management'!$C:$C,'Control Panel'!$F$31,'Debt Management'!$AB:$AB,'Control Panel'!$F$38) -> 0 | F155: =COUNTIFS('Debt Management'!$C:$C,'Control Panel'!$F$32,'Debt Management'!$AB:$AB,'Control Panel'!$F$38) -> 0 | G155: =COUNTIFS('Debt Management'!$C:$C,'Control Panel'!$F$33,'Debt Management'!$AB:$AB,'Control Panel'!$F$38) -> 0 | H155: 0 | I155: =COUNTIFS('Debt Management'!$G:$G,"<>",'Debt Management'!$AB:$AB,'Control Panel'!$F$38) -> 0 | L155: ='Control Panel'!$F$38 -> T | M155: =E155*'Control Panel'!$G$31*'Control Panel'!$G$38 -> 0 | N155: =F155*'Control Panel'!$G$32*'Control Panel'!$G$38 -> 0 | O155: =G155*'Control Panel'!$G$33*'Control Panel'!$G$38 -> 0
A156: Errors in response? | D156: ='Control Panel'!$E$39 -> Modification | E156: =COUNTIFS('Debt Management'!$C:$C,'Control Panel'!$F$31,'Debt Management'!$AB:$AB,'Control Panel'!$F$39) -> 0 | F156: =COUNTIFS('Debt Management'!$C:$C,'Control Panel'!$F$32,'Debt Management'!$AB:$AB,'Control Panel'!$F$39) -> 0 | G156: =COUNTIFS('Debt Management'!$C:$C,'Control Panel'!$F$33,'Debt Management'!$AB:$AB,'Control Panel'!$F$39) -> 0 | H156: 0 | I156: =COUNTIFS('Debt Management'!$G:$G,"<>",'Debt Management'!$AB:$AB,'Control Panel'!$F$39) -> 0 | L156: ='Control Panel'!$F$39 -> M | M156: =E156*'Control Panel'!$G$31*'Control Panel'!$G$39 -> 0 | N156: =F156*'Control Panel'!$G$32*'Control Panel'!$G$39 -> 0 | O156: =G156*'Control Panel'!$G$33*'Control Panel'!$G$39 -> 0
A157: (See column AB) | D157: ='Control Panel'!$E$40 -> Future | E157: =COUNTIFS('Debt Management'!$C:$C,'Control Panel'!$F$31,'Debt Management'!$AB:$AB,'Control Panel'!$F$40) -> 0 | F157: =COUNTIFS('Debt Management'!$C:$C,'Control Panel'!$F$32,'Debt Management'!$AB:$AB,'Control Panel'!$F$40) -> 0 | G157: =COUNTIFS('Debt Management'!$C:$C,'Control Panel'!$F$33,'Debt Management'!$AB:$AB,'Control Panel'!$F$40) -> 0 | H157: 0 | I157: =COUNTIFS('Debt Management'!$G:$G,"<>",'Debt Management'!$AB:$AB,'Control Panel'!$F$40) -> 0 | L157: ='Control Panel'!$F$40 -> F | M157: =E157*'Control Panel'!$G$31*'Control Panel'!$G$40 -> 0 | N157: =F157*'Control Panel'!$G$32*'Control Panel'!$G$40 -> 0 | O157: =G157*'Control Panel'!$G$33*'Control Panel'!$G$40 -> 0
A158: =IF('Debt Management'!$AC$12>0,"Yes","No") -> No | B158: =IF(A158="Yes",1,0) -> 0 | D158: ='Control Panel'!$E$41 -> No | E158: =COUNTIFS('Debt Management'!$C:$C,'Control Panel'!$F$31,'Debt Management'!$AB:$AB,'Control Panel'!$F$41) -> 0 | F158: =COUNTIFS('Debt Management'!$C:$C,'Control Panel'!$F$32,'Debt Management'!$AB:$AB,'Control Panel'!$F$41) -> 7 | G158: =COUNTIFS('Debt Management'!$C:$C,'Control Panel'!$F$33,'Debt Management'!$AB:$AB,'Control Panel'!$F$41) -> 2 | H158: 9 | I158: =COUNTIFS('Debt Management'!$G:$G,"<>",'Debt Management'!$AB:$AB,'Control Panel'!$F$41) -> 0 | L158: ='Control Panel'!$F$41 -> N | M158: =E158*'Control Panel'!$G$31*'Control Panel'!$G$41 -> 0 | N158: =F158*'Control Panel'!$G$32*'Control Panel'!$G$41 -> 0 | O158: =G158*'Control Panel'!$G$33*'Control Panel'!$G$41 -> 0
D159: =$D$93 -> Total: | E159: =SUM(E153:E158) -> 0 | F159: =SUM(F153:F158) -> 7 | G159: =SUM(G153:G158) -> 2 | H159: =SUM(H153:H158) -> 9 | I159: =SUM(I153:I158) -> 0 | L159: =D159 -> Total: | M159: =SUM(M153:M158) -> 0 | N159: =SUM(N153:N158) -> 0 | O159: =SUM(O153:O158) -> 0
L160: % | M160: =IF(M152=0,"NA",M159/M152) -> NA | N160: 0 | O160: 0
D161: ='Control Panel'!F54&" - "&'Control Panel'!E54 -> 4.9 - Employee and Manager Self Service | I161: =$I$84 -> Overall Compliance: | J161: =IF(SUM(M170:O170)=0,"N/A",SUM(M170:O170)/SUM(M163:O163)) -> N/A
D162: =$D$85 -> Availability | E162: =$E$85 -> Priority | H162: =$H$85 -> Total | I162: =$I$85 -> Comments | J162: =$J$85 -> Availability by Type | M162: ='Control Panel'!$F$31 -> R | N162: ='Control Panel'!$F$32 -> D | O162: ='Control Panel'!$F$33 -> O
E163: ='Control Panel'!$E$31 -> Required | F163: ='Control Panel'!$E$32 -> Desired | G163: ='Control Panel'!$E$33 -> Optional | L163: Max | M163: =E170*'Control Panel'!$G$31*'Control Panel'!$G$36 -> 116 | N163: =F170*'Control Panel'!$G$32*'Control Panel'!$G$36 -> 54 | O163: =G170*'Control Panel'!$G$33*'Control Panel'!$G$36 -> 6
D164: ='Control Panel'!$E$36 -> Yes | E164: =COUNTIFS('Employee and Manager Self Servi'!$C:$C,'Control Panel'!$F$31,'Employee and Manager Self Servi'!$AB:$AB,'Control Panel'!$F$36) -> 0 | F164: =COUNTIFS('Employee and Manager Self Servi'!$C:$C,'Control Panel'!$F$32,'Employee and Manager Self Servi'!$AB:$AB,'Control Panel'!$F$36) -> 0 | G164: =COUNTIFS('Employee and Manager Self Servi'!$C:$C,'Control Panel'!$F$33,'Employee and Manager Self Servi'!$AB:$AB,'Control Panel'!$F$36) -> 0 | H164: =SUM(E164:G164) -> 0 | I164: =COUNTIFS('Employee and Manager Self Servi'!$G:$G,"<>",'Employee and Manager Self Servi'!$AB:$AB,'Control Panel'!$F$36) -> 0 | L164: ='Control Panel'!$F$36 -> Y | M164: =E164*'Control Panel'!$G$31*'Control Panel'!$G$36 -> 0 | N164: =F164*'Control Panel'!$G$32*'Control Panel'!$G$36 -> 0 | O164: =G164*'Control Panel'!$G$33*'Control Panel'!$G$36 -> 0
D165: ='Control Panel'!$E$37 -> Reporting | E165: =COUNTIFS('Employee and Manager Self Servi'!$C:$C,'Control Panel'!$F$31,'Employee and Manager Self Servi'!$AB:$AB,'Control Panel'!$F$37) -> 0 | F165: =COUNTIFS('Employee and Manager Self Servi'!$C:$C,'Control Panel'!$F$32,'Employee and Manager Self Servi'!$AB:$AB,'Control Panel'!$F$37) -> 0 | G165: =COUNTIFS('Employee and Manager Self Servi'!$C:$C,'Control Panel'!$F$33,'Employee and Manager Self Servi'!$AB:$AB,'Control Panel'!$F$37) -> 0 | H165: =SUM(E165:G165) -> 0 | I165: =COUNTIFS('Employee and Manager Self Servi'!$G:$G,"<>",'Employee and Manager Self Servi'!$AB:$AB,'Control Panel'!$F$37) -> 0 | L165: ='Control Panel'!$F$37 -> R | M165: =E165*'Control Panel'!$G$31*'Control Panel'!$G$37 -> 0 | N165: =F165*'Control Panel'!$G$32*'Control Panel'!$G$37 -> 0 | O165: =G165*'Control Panel'!$G$33*'Control Panel'!$G$37 -> 0
D166: ='Control Panel'!$E$38 -> Third Party | E166: =COUNTIFS('Employee and Manager Self Servi'!$C:$C,'Control Panel'!$F$31,'Employee and Manager Self Servi'!$AB:$AB,'Control Panel'!$F$38) -> 0 | F166: =COUNTIFS('Employee and Manager Self Servi'!$C:$C,'Control Panel'!$F$32,'Employee and Manager Self Servi'!$AB:$AB,'Control Panel'!$F$38) -> 0 | G166: =COUNTIFS('Employee and Manager Self Servi'!$C:$C,'Control Panel'!$F$33,'Employee and Manager Self Servi'!$AB:$AB,'Control Panel'!$F$38) -> 0 | H166: 0 | I166: =COUNTIFS('Employee and Manager Self Servi'!$G:$G,"<>",'Employee and Manager Self Servi'!$AB:$AB,'Control Panel'!$F$38) -> 0 | L166: ='Control Panel'!$F$38 -> T | M166: =E166*'Control Panel'!$G$31*'Control Panel'!$G$38 -> 0 | N166: =F166*'Control Panel'!$G$32*'Control Panel'!$G$38 -> 0 | O166: =G166*'Control Panel'!$G$33*'Control Panel'!$G$38 -> 0
A167: Errors in response? | D167: ='Control Panel'!$E$39 -> Modification | E167: =COUNTIFS('Employee and Manager Self Servi'!$C:$C,'Control Panel'!$F$31,'Employee and Manager Self Servi'!$AB:$AB,'Control Panel'!$F$39) -> 0 | F167: =COUNTIFS('Employee and Manager Self Servi'!$C:$C,'Control Panel'!$F$32,'Employee and Manager Self Servi'!$AB:$AB,'Control Panel'!$F$39) -> 0 | G167: =COUNTIFS('Employee and Manager Self Servi'!$C:$C,'Control Panel'!$F$33,'Employee and Manager Self Servi'!$AB:$AB,'Control Panel'!$F$39) -> 0 | H167: 0 | I167: =COUNTIFS('Employee and Manager Self Servi'!$G:$G,"<>",'Employee and Manager Self Servi'!$AB:$AB,'Control Panel'!$F$39) -> 0 | L167: ='Control Panel'!$F$39 -> M | M167: =E167*'Control Panel'!$G$31*'Control Panel'!$G$39 -> 0 | N167: =F167*'Control Panel'!$G$32*'Control Panel'!$G$39 -> 0 | O167: =G167*'Control Panel'!$G$33*'Control Panel'!$G$39 -> 0
A168: (See column AB) | D168: ='Control Panel'!$E$40 -> Future | E168: =COUNTIFS('Employee and Manager Self Servi'!$C:$C,'Control Panel'!$F$31,'Employee and Manager Self Servi'!$AB:$AB,'Control Panel'!$F$40) -> 0 | F168: =COUNTIFS('Employee and Manager Self Servi'!$C:$C,'Control Panel'!$F$32,'Employee and Manager Self Servi'!$AB:$AB,'Control Panel'!$F$40) -> 0 | G168: =COUNTIFS('Employee and Manager Self Servi'!$C:$C,'Control Panel'!$F$33,'Employee and Manager Self Servi'!$AB:$AB,'Control Panel'!$F$40) -> 0 | H168: 0 | I168: =COUNTIFS('Employee and Manager Self Servi'!$G:$G,"<>",'Employee and Manager Self Servi'!$AB:$AB,'Control Panel'!$F$40) -> 0 | L168: ='Control Panel'!$F$40 -> F | M168: =E168*'Control Panel'!$G$31*'Control Panel'!$G$40 -> 0 | N168: =F168*'Control Panel'!$G$32*'Control Panel'!$G$40 -> 0 | O168: =G168*'Control Panel'!$G$33*'Control Panel'!$G$40 -> 0
A169: =IF('Employee and Manager Self Servi'!$AC$12>0,"Yes","No") -> No | B169: =IF(A169="Yes",1,0) -> 0 | D169: ='Control Panel'!$E$41 -> No | E169: =COUNTIFS('Employee and Manager Self Servi'!$C:$C,'Control Panel'!$F$31,'Employee and Manager Self Servi'!$AB:$AB,'Control Panel'!$F$41) -> 29 | F169: =COUNTIFS('Employee and Manager Self Servi'!$C:$C,'Control Panel'!$F$32,'Employee and Manager Self Servi'!$AB:$AB,'Control Panel'!$F$41) -> 27 | G169: =COUNTIFS('Employee and Manager Self Servi'!$C:$C,'Control Panel'!$F$33,'Employee and Manager Self Servi'!$AB:$AB,'Control Panel'!$F$41) -> 6 | H169: 62 | I169: =COUNTIFS('Employee and Manager Self Servi'!$G:$G,"<>",'Employee and Manager Self Servi'!$AB:$AB,'Control Panel'!$F$41) -> 0 | L169: ='Control Panel'!$F$41 -> N | M169: =E169*'Control Panel'!$G$31*'Control Panel'!$G$41 -> 0 | N169: =F169*'Control Panel'!$G$32*'Control Panel'!$G$41 -> 0 | O169: =G169*'Control Panel'!$G$33*'Control Panel'!$G$41 -> 0
D170: =$D$93 -> Total: | E170: =SUM(E164:E169) -> 29 | F170: =SUM(F164:F169) -> 27 | G170: =SUM(G164:G169) -> 6 | H170: =SUM(H164:H169) -> 62 | I170: =SUM(I164:I169) -> 0 | L170: =D170 -> Total: | M170: =SUM(M164:M169) -> 0 | N170: =SUM(N164:N169) -> 0 | O170: =SUM(O164:O169) -> 0
L171: % | M171: =IF(M163=0,"NA",M170/M163) -> 0 | N171: 0 | O171: 0
D172: ='Control Panel'!F55&" - "&'Control Panel'!E55 -> 4.10 - Employee Benefits | I172: =$I$84 -> Overall Compliance: | J172: =IF(SUM(M181:O181)=0,"N/A",SUM(M181:O181)/SUM(M174:O174)) -> N/A
D173: =$D$85 -> Availability | E173: =$E$85 -> Priority | H173: =$H$85 -> Total | I173: =$I$85 -> Comments | J173: =$J$85 -> Availability by Type | M173: ='Control Panel'!$F$31 -> R | N173: ='Control Panel'!$F$32 -> D | O173: ='Control Panel'!$F$33 -> O
E174: ='Control Panel'!$E$31 -> Required | F174: ='Control Panel'!$E$32 -> Desired | G174: ='Control Panel'!$E$33 -> Optional | L174: Max | M174: =E181*'Control Panel'!$G$31*'Control Panel'!$G$36 -> 308 | N174: =F181*'Control Panel'!$G$32*'Control Panel'!$G$36 -> 26 | O174: =G181*'Control Panel'!$G$33*'Control Panel'!$G$36 -> 9
D175: ='Control Panel'!$E$36 -> Yes | E175: =COUNTIFS('Employee Benefits'!$C:$C,'Control Panel'!$F$31,'Employee Benefits'!$AB:$AB,'Control Panel'!$F$36) -> 0 | F175: =COUNTIFS('Employee Benefits'!$C:$C,'Control Panel'!$F$32,'Employee Benefits'!$AB:$AB,'Control Panel'!$F$36) -> 0 | G175: =COUNTIFS('Employee Benefits'!$C:$C,'Control Panel'!$F$33,'Employee Benefits'!$AB:$AB,'Control Panel'!$F$36) -> 0 | H175: =SUM(E175:G175) -> 0 | I175: =COUNTIFS('Employee Benefits'!$G:$G,"<>",'Employee Benefits'!$AB:$AB,'Control Panel'!$F$36) -> 0 | L175: ='Control Panel'!$F$36 -> Y | M175: =E175*'Control Panel'!$G$31*'Control Panel'!$G$36 -> 0 | N175: =F175*'Control Panel'!$G$32*'Control Panel'!$G$36 -> 0 | O175: =G175*'Control Panel'!$G$33*'Control Panel'!$G$36 -> 0
D176: ='Control Panel'!$E$37 -> Reporting | E176: =COUNTIFS('Employee Benefits'!$C:$C,'Control Panel'!$F$31,'Employee Benefits'!$AB:$AB,'Control Panel'!$F$37) -> 0 | F176: =COUNTIFS('Employee Benefits'!$C:$C,'Control Panel'!$F$32,'Employee Benefits'!$AB:$AB,'Control Panel'!$F$37) -> 0 | G176: =COUNTIFS('Employee Benefits'!$C:$C,'Control Panel'!$F$33,'Employee Benefits'!$AB:$AB,'Control Panel'!$F$37) -> 0 | H176: =SUM(E176:G176) -> 0 | I176: =COUNTIFS('Employee Benefits'!$G:$G,"<>",'Employee Benefits'!$AB:$AB,'Control Panel'!$F$37) -> 0 | L176: ='Control Panel'!$F$37 -> R | M176: =E176*'Control Panel'!$G$31*'Control Panel'!$G$37 -> 0 | N176: =F176*'Control Panel'!$G$32*'Control Panel'!$G$37 -> 0 | O176: =G176*'Control Panel'!$G$33*'Control Panel'!$G$37 -> 0
D177: ='Control Panel'!$E$38 -> Third Party | E177: =COUNTIFS('Employee Benefits'!$C:$C,'Control Panel'!$F$31,'Employee Benefits'!$AB:$AB,'Control Panel'!$F$38) -> 0 | F177: =COUNTIFS('Employee Benefits'!$C:$C,'Control Panel'!$F$32,'Employee Benefits'!$AB:$AB,'Control Panel'!$F$38) -> 0 | G177: =COUNTIFS('Employee Benefits'!$C:$C,'Control Panel'!$F$33,'Employee Benefits'!$AB:$AB,'Control Panel'!$F$38) -> 0 | H177: 0 | I177: =COUNTIFS('Employee Benefits'!$G:$G,"<>",'Employee Benefits'!$AB:$AB,'Control Panel'!$F$38) -> 0 | L177: ='Control Panel'!$F$38 -> T | M177: =E177*'Control Panel'!$G$31*'Control Panel'!$G$38 -> 0 | N177: =F177*'Control Panel'!$G$32*'Control Panel'!$G$38 -> 0 | O177: =G177*'Control Panel'!$G$33*'Control Panel'!$G$38 -> 0
A178: Errors in response? | D178: ='Control Panel'!$E$39 -> Modification | E178: =COUNTIFS('Employee Benefits'!$C:$C,'Control Panel'!$F$31,'Employee Benefits'!$AB:$AB,'Control Panel'!$F$39) -> 0 | F178: =COUNTIFS('Employee Benefits'!$C:$C,'Control Panel'!$F$32,'Employee Benefits'!$AB:$AB,'Control Panel'!$F$39) -> 0 | G178: =COUNTIFS('Employee Benefits'!$C:$C,'Control Panel'!$F$33,'Employee Benefits'!$AB:$AB,'Control Panel'!$F$39) -> 0 | H178: 0 | I178: =COUNTIFS('Employee Benefits'!$G:$G,"<>",'Employee Benefits'!$AB:$AB,'Control Panel'!$F$39) -> 0 | L178: ='Control Panel'!$F$39 -> M | M178: =E178*'Control Panel'!$G$31*'Control Panel'!$G$39 -> 0 | N178: =F178*'Control Panel'!$G$32*'Control Panel'!$G$39 -> 0 | O178: =G178*'Control Panel'!$G$33*'Control Panel'!$G$39 -> 0
A179: (See column AB) | D179: ='Control Panel'!$E$40 -> Future | E179: =COUNTIFS('Employee Benefits'!$C:$C,'Control Panel'!$F$31,'Employee Benefits'!$AB:$AB,'Control Panel'!$F$40) -> 0 | F179: =COUNTIFS('Employee Benefits'!$C:$C,'Control Panel'!$F$32,'Employee Benefits'!$AB:$AB,'Control Panel'!$F$40) -> 0 | G179: =COUNTIFS('Employee Benefits'!$C:$C,'Control Panel'!$F$33,'Employee Benefits'!$AB:$AB,'Control Panel'!$F$40) -> 0 | H179: 0 | I179: =COUNTIFS('Employee Benefits'!$G:$G,"<>",'Employee Benefits'!$AB:$AB,'Control Panel'!$F$40) -> 0 | L179: ='Control Panel'!$F$40 -> F | M179: =E179*'Control Panel'!$G$31*'Control Panel'!$G$40 -> 0 | N179: =F179*'Control Panel'!$G$32*'Control Panel'!$G$40 -> 0 | O179: =G179*'Control Panel'!$G$33*'Control Panel'!$G$40 -> 0
A180: =IF('Employee Benefits'!$AC$12>0,"Yes","No") -> No | B180: =IF(A180="Yes",1,0) -> 0 | D180: ='Control Panel'!$E$41 -> No | E180: =COUNTIFS('Employee Benefits'!$C:$C,'Control Panel'!$F$31,'Employee Benefits'!$AB:$AB,'Control Panel'!$F$41) -> 77 | F180: =COUNTIFS('Employee Benefits'!$C:$C,'Control Panel'!$F$32,'Employee Benefits'!$AB:$AB,'Control Panel'!$F$41) -> 13 | G180: =COUNTIFS('Employee Benefits'!$C:$C,'Control Panel'!$F$33,'Employee Benefits'!$AB:$AB,'Control Panel'!$F$41) -> 9 | H180: 99 | I180: =COUNTIFS('Employee Benefits'!$G:$G,"<>",'Employee Benefits'!$AB:$AB,'Control Panel'!$F$41) -> 0 | L180: ='Control Panel'!$F$41 -> N | M180: =E180*'Control Panel'!$G$31*'Control Panel'!$G$41 -> 0 | N180: =F180*'Control Panel'!$G$32*'Control Panel'!$G$41 -> 0 | O180: =G180*'Control Panel'!$G$33*'Control Panel'!$G$41 -> 0
D181: =$D$93 -> Total: | E181: =SUM(E175:E180) -> 77 | F181: =SUM(F175:F180) -> 13 | G181: =SUM(G175:G180) -> 9 | H181: =SUM(H175:H180) -> 99 | I181: =SUM(I175:I180) -> 0 | L181: =D181 -> Total: | M181: =SUM(M175:M180) -> 0 | N181: =SUM(N175:N180) -> 0 | O181: =SUM(O175:O180) -> 0
L182: % | M182: =IF(M174=0,"NA",M181/M174) -> 0 | N182: 0 | O182: 0
D183: ='Control Panel'!F56&" - "&'Control Panel'!E56 -> 4.11 - Fixed Assets | I183: =$I$84 -> Overall Compliance: | J183: =IF(SUM(M192:O192)=0,"N/A",SUM(M192:O192)/SUM(M185:O185)) -> N/A
D184: =$D$85 -> Availability | E184: =$E$85 -> Priority | H184: =$H$85 -> Total | I184: =$I$85 -> Comments | J184: =$J$85 -> Availability by Type | M184: ='Control Panel'!$F$31 -> R | N184: ='Control Panel'!$F$32 -> D | O184: ='Control Panel'!$F$33 -> O
E185: ='Control Panel'!$E$31 -> Required | F185: ='Control Panel'!$E$32 -> Desired | G185: ='Control Panel'!$E$33 -> Optional | L185: Max | M185: =E192*'Control Panel'!$G$31*'Control Panel'!$G$36 -> 216 | N185: =F192*'Control Panel'!$G$32*'Control Panel'!$G$36 -> 102 | O185: =G192*'Control Panel'!$G$33*'Control Panel'!$G$36 -> 26
D186: ='Control Panel'!$E$36 -> Yes | E186: =COUNTIFS('Fixed Assets'!$C:$C,'Control Panel'!$F$31,'Fixed Assets'!$AB:$AB,'Control Panel'!$F$36) -> 0 | F186: =COUNTIFS('Fixed Assets'!$C:$C,'Control Panel'!$F$32,'Fixed Assets'!$AB:$AB,'Control Panel'!$F$36) -> 0 | G186: =COUNTIFS('Fixed Assets'!$C:$C,'Control Panel'!$F$33,'Fixed Assets'!$AB:$AB,'Control Panel'!$F$36) -> 0 | H186: =SUM(E186:G186) -> 0 | I186: =COUNTIFS('Fixed Assets'!$G:$G,"<>",'Fixed Assets'!$AB:$AB,'Control Panel'!$F$36) -> 0 | L186: ='Control Panel'!$F$36 -> Y | M186: =E186*'Control Panel'!$G$31*'Control Panel'!$G$36 -> 0 | N186: =F186*'Control Panel'!$G$32*'Control Panel'!$G$36 -> 0 | O186: =G186*'Control Panel'!$G$33*'Control Panel'!$G$36 -> 0
D187: ='Control Panel'!$E$37 -> Reporting | E187: =COUNTIFS('Fixed Assets'!$C:$C,'Control Panel'!$F$31,'Fixed Assets'!$AB:$AB,'Control Panel'!$F$37) -> 0 | F187: =COUNTIFS('Fixed Assets'!$C:$C,'Control Panel'!$F$32,'Fixed Assets'!$AB:$AB,'Control Panel'!$F$37) -> 0 | G187: =COUNTIFS('Fixed Assets'!$C:$C,'Control Panel'!$F$33,'Fixed Assets'!$AB:$AB,'Control Panel'!$F$37) -> 0 | H187: =SUM(E187:G187) -> 0 | I187: =COUNTIFS('Fixed Assets'!$G:$G,"<>",'Fixed Assets'!$AB:$AB,'Control Panel'!$F$37) -> 0 | L187: ='Control Panel'!$F$37 -> R | M187: =E187*'Control Panel'!$G$31*'Control Panel'!$G$37 -> 0 | N187: =F187*'Control Panel'!$G$32*'Control Panel'!$G$37 -> 0 | O187: =G187*'Control Panel'!$G$33*'Control Panel'!$G$37 -> 0
D188: ='Control Panel'!$E$38 -> Third Party | E188: =COUNTIFS('Fixed Assets'!$C:$C,'Control Panel'!$F$31,'Fixed Assets'!$AB:$AB,'Control Panel'!$F$38) -> 0 | F188: =COUNTIFS('Fixed Assets'!$C:$C,'Control Panel'!$F$32,'Fixed Assets'!$AB:$AB,'Control Panel'!$F$38) -> 0 | G188: =COUNTIFS('Fixed Assets'!$C:$C,'Control Panel'!$F$33,'Fixed Assets'!$AB:$AB,'Control Panel'!$F$38) -> 0 | H188: 0 | I188: =COUNTIFS('Fixed Assets'!$G:$G,"<>",'Fixed Assets'!$AB:$AB,'Control Panel'!$F$38) -> 0 | L188: ='Control Panel'!$F$38 -> T | M188: =E188*'Control Panel'!$G$31*'Control Panel'!$G$38 -> 0 | N188: =F188*'Control Panel'!$G$32*'Control Panel'!$G$38 -> 0 | O188: =G188*'Control Panel'!$G$33*'Control Panel'!$G$38 -> 0
A189: Errors in response? | D189: ='Control Panel'!$E$39 -> Modification | E189: =COUNTIFS('Fixed Assets'!$C:$C,'Control Panel'!$F$31,'Fixed Assets'!$AB:$AB,'Control Panel'!$F$39) -> 0 | F189: =COUNTIFS('Fixed Assets'!$C:$C,'Control Panel'!$F$32,'Fixed Assets'!$AB:$AB,'Control Panel'!$F$39) -> 0 | G189: =COUNTIFS('Fixed Assets'!$C:$C,'Control Panel'!$F$33,'Fixed Assets'!$AB:$AB,'Control Panel'!$F$39) -> 0 | H189: 0 | I189: =COUNTIFS('Fixed Assets'!$G:$G,"<>",'Fixed Assets'!$AB:$AB,'Control Panel'!$F$39) -> 0 | L189: ='Control Panel'!$F$39 -> M | M189: =E189*'Control Panel'!$G$31*'Control Panel'!$G$39 -> 0 | N189: =F189*'Control Panel'!$G$32*'Control Panel'!$G$39 -> 0 | O189: =G189*'Control Panel'!$G$33*'Control Panel'!$G$39 -> 0
A190: (See column AB) | D190: ='Control Panel'!$E$40 -> Future | E190: =COUNTIFS('Fixed Assets'!$C:$C,'Control Panel'!$F$31,'Fixed Assets'!$AB:$AB,'Control Panel'!$F$40) -> 0 | F190: =COUNTIFS('Fixed Assets'!$C:$C,'Control Panel'!$F$32,'Fixed Assets'!$AB:$AB,'Control Panel'!$F$40) -> 0 | G190: =COUNTIFS('Fixed Assets'!$C:$C,'Control Panel'!$F$33,'Fixed Assets'!$AB:$AB,'Control Panel'!$F$40) -> 0 | H190: 0 | I190: =COUNTIFS('Fixed Assets'!$G:$G,"<>",'Fixed Assets'!$AB:$AB,'Control Panel'!$F$40) -> 0 | L190: ='Control Panel'!$F$40 -> F | M190: =E190*'Control Panel'!$G$31*'Control Panel'!$G$40 -> 0 | N190: =F190*'Control Panel'!$G$32*'Control Panel'!$G$40 -> 0 | O190: =G190*'Control Panel'!$G$33*'Control Panel'!$G$40 -> 0
A191: =IF('Fixed Assets'!$AC$12>0,"Yes","No") -> No | B191: =IF(A191="Yes",1,0) -> 0 | D191: ='Control Panel'!$E$41 -> No | E191: =COUNTIFS('Fixed Assets'!$C:$C,'Control Panel'!$F$31,'Fixed Assets'!$AB:$AB,'Control Panel'!$F$41) -> 54 | F191: =COUNTIFS('Fixed Assets'!$C:$C,'Control Panel'!$F$32,'Fixed Assets'!$AB:$AB,'Control Panel'!$F$41) -> 51 | G191: =COUNTIFS('Fixed Assets'!$C:$C,'Control Panel'!$F$33,'Fixed Assets'!$AB:$AB,'Control Panel'!$F$41) -> 26 | H191: 131 | I191: =COUNTIFS('Fixed Assets'!$G:$G,"<>",'Fixed Assets'!$AB:$AB,'Control Panel'!$F$41) -> 0 | L191: ='Control Panel'!$F$41 -> N | M191: =E191*'Control Panel'!$G$31*'Control Panel'!$G$41 -> 0 | N191: =F191*'Control Panel'!$G$32*'Control Panel'!$G$41 -> 0 | O191: =G191*'Control Panel'!$G$33*'Control Panel'!$G$41 -> 0
D192: =$D$93 -> Total: | E192: =SUM(E186:E191) -> 54 | F192: =SUM(F186:F191) -> 51 | G192: =SUM(G186:G191) -> 26 | H192: =SUM(H186:H191) -> 131 | I192: =SUM(I186:I191) -> 0 | L192: =D192 -> Total: | M192: =SUM(M186:M191) -> 0 | N192: =SUM(N186:N191) -> 0 | O192: =SUM(O186:O191) -> 0
L193: % | M193: =IF(M185=0,"NA",M192/M185) -> 0 | N193: 0 | O193: 0
D194: ='Control Panel'!F57&" - "&'Control Panel'!E57 -> 4.12 - General and Technical | I194: =$I$84 -> Overall Compliance: | J194: =IF(SUM(M203:O203)=0,"N/A",SUM(M203:O203)/SUM(M196:O196)) -> N/A
D195: =$D$85 -> Availability | E195: =$E$85 -> Priority | H195: =$H$85 -> Total | I195: =$I$85 -> Comments | J195: =$J$85 -> Availability by Type | M195: ='Control Panel'!$F$31 -> R | N195: ='Control Panel'!$F$32 -> D | O195: ='Control Panel'!$F$33 -> O
E196: ='Control Panel'!$E$31 -> Required | F196: ='Control Panel'!$E$32 -> Desired | G196: ='Control Panel'!$E$33 -> Optional | L196: Max | M196: =E203*'Control Panel'!$G$31*'Control Panel'!$G$36 -> 392 | N196: =F203*'Control Panel'!$G$32*'Control Panel'!$G$36 -> 216 | O196: =G203*'Control Panel'!$G$33*'Control Panel'!$G$36 -> 0
D197: ='Control Panel'!$E$36 -> Yes | E197: =COUNTIFS('General and Technical'!$C:$C,'Control Panel'!$F$31,'General and Technical'!$AB:$AB,'Control Panel'!$F$36) -> 0 | F197: =COUNTIFS('General and Technical'!$C:$C,'Control Panel'!$F$32,'General and Technical'!$AB:$AB,'Control Panel'!$F$36) -> 0 | G197: =COUNTIFS('General and Technical'!$C:$C,'Control Panel'!$F$33,'General and Technical'!$AB:$AB,'Control Panel'!$F$36) -> 0 | H197: =SUM(E197:G197) -> 0 | I197: =COUNTIFS('General and Technical'!$G:$G,"<>",'General and Technical'!$AB:$AB,'Control Panel'!$F$36) -> 0 | L197: ='Control Panel'!$F$36 -> Y | M197: =E197*'Control Panel'!$G$31*'Control Panel'!$G$36 -> 0 | N197: =F197*'Control Panel'!$G$32*'Control Panel'!$G$36 -> 0 | O197: =G197*'Control Panel'!$G$33*'Control Panel'!$G$36 -> 0
D198: ='Control Panel'!$E$37 -> Reporting | E198: =COUNTIFS('General and Technical'!$C:$C,'Control Panel'!$F$31,'General and Technical'!$AB:$AB,'Control Panel'!$F$37) -> 0 | F198: =COUNTIFS('General and Technical'!$C:$C,'Control Panel'!$F$32,'General and Technical'!$AB:$AB,'Control Panel'!$F$37) -> 0 | G198: =COUNTIFS('General and Technical'!$C:$C,'Control Panel'!$F$33,'General and Technical'!$AB:$AB,'Control Panel'!$F$37) -> 0 | H198: =SUM(E198:G198) -> 0 | I198: =COUNTIFS('General and Technical'!$G:$G,"<>",'General and Technical'!$AB:$AB,'Control Panel'!$F$37) -> 0 | L198: ='Control Panel'!$F$37 -> R | M198: =E198*'Control Panel'!$G$31*'Control Panel'!$G$37 -> 0 | N198: =F198*'Control Panel'!$G$32*'Control Panel'!$G$37 -> 0 | O198: =G198*'Control Panel'!$G$33*'Control Panel'!$G$37 -> 0
D199: ='Control Panel'!$E$38 -> Third Party | E199: =COUNTIFS('General and Technical'!$C:$C,'Control Panel'!$F$31,'General and Technical'!$AB:$AB,'Control Panel'!$F$38) -> 0 | F199: =COUNTIFS('General and Technical'!$C:$C,'Control Panel'!$F$32,'General and Technical'!$AB:$AB,'Control Panel'!$F$38) -> 0 | G199: =COUNTIFS('General and Technical'!$C:$C,'Control Panel'!$F$33,'General and Technical'!$AB:$AB,'Control Panel'!$F$38) -> 0 | H199: 0 | I199: =COUNTIFS('General and Technical'!$G:$G,"<>",'General and Technical'!$AB:$AB,'Control Panel'!$F$38) -> 0 | L199: ='Control Panel'!$F$38 -> T | M199: =E199*'Control Panel'!$G$31*'Control Panel'!$G$38 -> 0 | N199: =F199*'Control Panel'!$G$32*'Control Panel'!$G$38 -> 0 | O199: =G199*'Control Panel'!$G$33*'Control Panel'!$G$38 -> 0
A200: Errors in response? | D200: ='Control Panel'!$E$39 -> Modification | E200: =COUNTIFS('General and Technical'!$C:$C,'Control Panel'!$F$31,'General and Technical'!$AB:$AB,'Control Panel'!$F$39) -> 0 | F200: =COUNTIFS('General and Technical'!$C:$C,'Control Panel'!$F$32,'General and Technical'!$AB:$AB,'Control Panel'!$F$39) -> 0 | G200: =COUNTIFS('General and Technical'!$C:$C,'Control Panel'!$F$33,'General and Technical'!$AB:$AB,'Control Panel'!$F$39) -> 0 | H200: 0 | I200: =COUNTIFS('General and Technical'!$G:$G,"<>",'General and Technical'!$AB:$AB,'Control Panel'!$F$39) -> 0 | L200: ='Control Panel'!$F$39 -> M | M200: =E200*'Control Panel'!$G$31*'Control Panel'!$G$39 -> 0 | N200: =F200*'Control Panel'!$G$32*'Control Panel'!$G$39 -> 0 | O200: =G200*'Control Panel'!$G$33*'Control Panel'!$G$39 -> 0
A201: (See column AB) | D201: ='Control Panel'!$E$40 -> Future | E201: =COUNTIFS('General and Technical'!$C:$C,'Control Panel'!$F$31,'General and Technical'!$AB:$AB,'Control Panel'!$F$40) -> 0 | F201: =COUNTIFS('General and Technical'!$C:$C,'Control Panel'!$F$32,'General and Technical'!$AB:$AB,'Control Panel'!$F$40) -> 0 | G201: =COUNTIFS('General and Technical'!$C:$C,'Control Panel'!$F$33,'General and Technical'!$AB:$AB,'Control Panel'!$F$40) -> 0 | H201: 0 | I201: =COUNTIFS('General and Technical'!$G:$G,"<>",'General and Technical'!$AB:$AB,'Control Panel'!$F$40) -> 0 | L201: ='Control Panel'!$F$40 -> F | M201: =E201*'Control Panel'!$G$31*'Control Panel'!$G$40 -> 0 | N201: =F201*'Control Panel'!$G$32*'Control Panel'!$G$40 -> 0 | O201: =G201*'Control Panel'!$G$33*'Control Panel'!$G$40 -> 0
A202: =IF('General and Technical'!$AC$12>0,"Yes","No") -> No | B202: =IF(A202="Yes",1,0) -> 0 | D202: ='Control Panel'!$E$41 -> No | E202: =COUNTIFS('General and Technical'!$C:$C,'Control Panel'!$F$31,'General and Technical'!$AB:$AB,'Control Panel'!$F$41) -> 98 | F202: =COUNTIFS('General and Technical'!$C:$C,'Control Panel'!$F$32,'General and Technical'!$AB:$AB,'Control Panel'!$F$41) -> 108 | G202: =COUNTIFS('General and Technical'!$C:$C,'Control Panel'!$F$33,'General and Technical'!$AB:$AB,'Control Panel'!$F$41) -> 0 | H202: 206 | I202: =COUNTIFS('General and Technical'!$G:$G,"<>",'General and Technical'!$AB:$AB,'Control Panel'!$F$41) -> 0 | L202: ='Control Panel'!$F$41 -> N | M202: =E202*'Control Panel'!$G$31*'Control Panel'!$G$41 -> 0 | N202: =F202*'Control Panel'!$G$32*'Control Panel'!$G$41 -> 0 | O202: =G202*'Control Panel'!$G$33*'Control Panel'!$G$41 -> 0
D203: =$D$93 -> Total: | E203: =SUM(E197:E202) -> 98 | F203: =SUM(F197:F202) -> 108 | G203: =SUM(G197:G202) -> 0 | H203: =SUM(H197:H202) -> 206 | I203: =SUM(I197:I202) -> 0 | L203: =D203 -> Total: | M203: =SUM(M197:M202) -> 0 | N203: =SUM(N197:N202) -> 0 | O203: =SUM(O197:O202) -> 0
L204: % | M204: =IF(M196=0,"NA",M203/M196) -> 0 | N204: 0 | O204: NA
D205: ='Control Panel'!F58&" - "&'Control Panel'!E58 -> 4.13 - General Ledger and Financial Reporting | I205: =$I$84 -> Overall Compliance: | J205: =IF(SUM(M214:O214)=0,"N/A",SUM(M214:O214)/SUM(M207:O207)) -> N/A
D206: =$D$85 -> Availability | E206: =$E$85 -> Priority | H206: =$H$85 -> Total | I206: =$I$85 -> Comments | J206: =$J$85 -> Availability by Type | M206: ='Control Panel'!$F$31 -> R | N206: ='Control Panel'!$F$32 -> D | O206: ='Control Panel'!$F$33 -> O
E207: ='Control Panel'!$E$31 -> Required | F207: ='Control Panel'!$E$32 -> Desired | G207: ='Control Panel'!$E$33 -> Optional | L207: Max | M207: =E214*'Control Panel'!$G$31*'Control Panel'!$G$36 -> 296 | N207: =F214*'Control Panel'!$G$32*'Control Panel'!$G$36 -> 142 | O207: =G214*'Control Panel'!$G$33*'Control Panel'!$G$36 -> 5
D208: ='Control Panel'!$E$36 -> Yes | E208: =COUNTIFS('General Ledger and Financial Re'!$C:$C,'Control Panel'!$F$31,'General Ledger and Financial Re'!$AB:$AB,'Control Panel'!$F$36) -> 0 | F208: =COUNTIFS('General Ledger and Financial Re'!$C:$C,'Control Panel'!$F$32,'General Ledger and Financial Re'!$AB:$AB,'Control Panel'!$F$36) -> 0 | G208: =COUNTIFS('General Ledger and Financial Re'!$C:$C,'Control Panel'!$F$33,'General Ledger and Financial Re'!$AB:$AB,'Control Panel'!$F$36) -> 0 | H208: =SUM(E208:G208) -> 0 | I208: =COUNTIFS('General Ledger and Financial Re'!$G:$G,"<>",'General Ledger and Financial Re'!$AB:$AB,'Control Panel'!$F$36) -> 0 | L208: ='Control Panel'!$F$36 -> Y | M208: =E208*'Control Panel'!$G$31*'Control Panel'!$G$36 -> 0 | N208: =F208*'Control Panel'!$G$32*'Control Panel'!$G$36 -> 0 | O208: =G208*'Control Panel'!$G$33*'Control Panel'!$G$36 -> 0
D209: ='Control Panel'!$E$37 -> Reporting | E209: =COUNTIFS('General Ledger and Financial Re'!$C:$C,'Control Panel'!$F$31,'General Ledger and Financial Re'!$AB:$AB,'Control Panel'!$F$37) -> 0 | F209: =COUNTIFS('General Ledger and Financial Re'!$C:$C,'Control Panel'!$F$32,'General Ledger and Financial Re'!$AB:$AB,'Control Panel'!$F$37) -> 0 | G209: =COUNTIFS('General Ledger and Financial Re'!$C:$C,'Control Panel'!$F$33,'General Ledger and Financial Re'!$AB:$AB,'Control Panel'!$F$37) -> 0 | H209: =SUM(E209:G209) -> 0 | I209: =COUNTIFS('General Ledger and Financial Re'!$G:$G,"<>",'General Ledger and Financial Re'!$AB:$AB,'Control Panel'!$F$37) -> 0 | L209: ='Control Panel'!$F$37 -> R | M209: =E209*'Control Panel'!$G$31*'Control Panel'!$G$37 -> 0 | N209: =F209*'Control Panel'!$G$32*'Control Panel'!$G$37 -> 0 | O209: =G209*'Control Panel'!$G$33*'Control Panel'!$G$37 -> 0
D210: ='Control Panel'!$E$38 -> Third Party | E210: =COUNTIFS('General Ledger and Financial Re'!$C:$C,'Control Panel'!$F$31,'General Ledger and Financial Re'!$AB:$AB,'Control Panel'!$F$38) -> 0 | F210: =COUNTIFS('General Ledger and Financial Re'!$C:$C,'Control Panel'!$F$32,'General Ledger and Financial Re'!$AB:$AB,'Control Panel'!$F$38) -> 0 | G210: =COUNTIFS('General Ledger and Financial Re'!$C:$C,'Control Panel'!$F$33,'General Ledger and Financial Re'!$AB:$AB,'Control Panel'!$F$38) -> 0 | H210: 0 | I210: =COUNTIFS('General Ledger and Financial Re'!$G:$G,"<>",'General Ledger and Financial Re'!$AB:$AB,'Control Panel'!$F$38) -> 0 | L210: ='Control Panel'!$F$38 -> T | M210: =E210*'Control Panel'!$G$31*'Control Panel'!$G$38 -> 0 | N210: =F210*'Control Panel'!$G$32*'Control Panel'!$G$38 -> 0 | O210: =G210*'Control Panel'!$G$33*'Control Panel'!$G$38 -> 0
... 433 more rows

Sheet Accounts Payable
A1: Replace this text with vendor name in the first module.
A2: Code | B2: Availability Definition | AB2: Count: | AC2: =SUBTOTAL(3,A13:A181) -> 169
A3: ='Control Panel'!F36 -> Y | B3: ='Control Panel'!H36 -> Functionality is provided out of the box through the completion of a task associated with a routine configurable area that includes, but is not limited to, user-defined fields, delivered or configurable workflows, alerts or notifications, standard import/export, table driven setups and standard reports with no changes. These configuration areas will not be affected by a future upgrade. The proposed services include implementation and training on this functionality, unless specifically excluded in the Statement of Work, as part of the deployment of the solution.
A4: ='Control Panel'!F37 -> R | B4: ='Control Panel'!H37 -> Functionality is provided through reports generated using proposed Reporting Tools.
A5: ='Control Panel'!F38 -> T | B5: ='Control Panel'!H38 -> Functionality is provided by proposed third party functionality (i.e., third party is defined as a separate software vendor from the primary software vendor). The pricing of all third party products that provide this functionality MUST be included in the cost proposal.
A6: ='Control Panel'!F39 -> M | B6: ='Control Panel'!H39 -> Functionality is provided through customization to the application, including creation of a new workflow or development of a custom interface, that may have an impact on future upgradability.
A7: ='Control Panel'!F40 -> F | B7: ='Control Panel'!H40 -> Functionality is provided through a future general availability (GA) release that is scheduled to occur within 1 year of the proposal response.
A8: ='Control Panel'!F41 -> N | B8: ='Control Panel'!H41 -> Functionality is not provided.
A9: ='Control Panel'!I25 -> Replace this text with the primary product name(s) which satisfy requirements.
A10: ='Control Panel'!F47&" - "&'Control Panel'!E47 -> 4.2 - Accounts Payable | D10: =A9 -> Replace this text with the primary product name(s) which satisfy requirements.
A11: Objective: To efficiently manage all cash disbursements, electronically track paid and outstanding invoices, print checks, and generate completed 1099 forms. | AA11: (note: if errors exist look through column AB to identify)
A12: Number | B12: Application Requirements | C12: Priority | D12: Availability | E12: Cost | F12: Required Product(s) | G12: Comments | AA12: # of Errors: | AC12: =COUNTIF(AB:AB,"Error -- Availability entered in an incorrect format") -> 0
A13: 1 | B13: General Information | F13: =IF($D$10=$A$9,"N/A",$D$10) -> N/A | AA13: =TRIM($D13) ->  | AB13: =IF(LEN($AA13)=0,"N",IF(LEN($AA13)>1,"Error -- Availability entered in an incorrect format",IF($AA13='Control Panel'!$F$36,$AA13,IF($AA13='Control Panel'!$F$37,$AA13,IF($AA13='Control Panel'!$F$38,$AA13,IF($AA13='Control Panel'!$F$39,$AA13,IF($AA13='Control Panel'!$F$40,$AA13,IF($AA13='Control Panel'!$F$41,$AA13,"Error -- Availability entered in an incorrect format")))))))) -> N
A14: 2 | B14: Ability to use workflow approvals (multiple levels) for processing invoices, receiving reports, payments, requisitions and purchase orders (edit and update functions). | C14: R | F14: =IF($D$10=$A$9,"N/A",$D$10) -> N/A | AA14: =TRIM($D14) ->  | AB14: =IF(LEN($AA14)=0,"N",IF(LEN($AA14)>1,"Error -- Availability entered in an incorrect format",IF($AA14='Control Panel'!$F$36,$AA14,IF($AA14='Control Panel'!$F$37,$AA14,IF($AA14='Control Panel'!$F$38,$AA14,IF($AA14='Control Panel'!$F$39,$AA14,IF($AA14='Control Panel'!$F$40,$AA14,IF($AA14='Control Panel'!$F$41,$AA14,"Error -- Availability entered in an incorrect format")))))))) -> N
A15: 3 | B15: Ability to maintain unique identifiers for individual ACH payments. | C15: R | F15: N/A | AB15: =IF(LEN($AA15)=0,"N",IF(LEN($AA15)>1,"Error -- Availability entered in an incorrect format",IF($AA15='Control Panel'!$F$36,$AA15,IF($AA15='Control Panel'!$F$37,$AA15,IF($AA15='Control Panel'!$F$38,$AA15,IF($AA15='Control Panel'!$F$39,$AA15,IF($AA15='Control Panel'!$F$40,$AA15,IF($AA15='Control Panel'!$F$41,$AA15,"Error -- Availability entered in an incorrect format")))))))) -> N
A16: 4 | B16: Ability to specify required fields for invoice processing. | C16: D | F16: N/A | AB16: =IF(LEN($AA16)=0,"N",IF(LEN($AA16)>1,"Error -- Availability entered in an incorrect format",IF($AA16='Control Panel'!$F$36,$AA16,IF($AA16='Control Panel'!$F$37,$AA16,IF($AA16='Control Panel'!$F$38,$AA16,IF($AA16='Control Panel'!$F$39,$AA16,IF($AA16='Control Panel'!$F$40,$AA16,IF($AA16='Control Panel'!$F$41,$AA16,"Error -- Availability entered in an incorrect format")))))))) -> N
A17: 5 | B17: Ability to access software program from portable device i.e. tablets, smartphone, etc. | C17: D | F17: N/A | AB17: =IF(LEN($AA17)=0,"N",IF(LEN($AA17)>1,"Error -- Availability entered in an incorrect format",IF($AA17='Control Panel'!$F$36,$AA17,IF($AA17='Control Panel'!$F$37,$AA17,IF($AA17='Control Panel'!$F$38,$AA17,IF($AA17='Control Panel'!$F$39,$AA17,IF($AA17='Control Panel'!$F$40,$AA17,IF($AA17='Control Panel'!$F$41,$AA17,"Error -- Availability entered in an incorrect format")))))))) -> N
A18: 6 | B18: Ability to flag or prohibit the following with the ability of authorized users to override: | C18: - | F18: N/A | AB18: =IF(LEN($AA18)=0,"N",IF(LEN($AA18)>1,"Error -- Availability entered in an incorrect format",IF($AA18='Control Panel'!$F$36,$AA18,IF($AA18='Control Panel'!$F$37,$AA18,IF($AA18='Control Panel'!$F$38,$AA18,IF($AA18='Control Panel'!$F$39,$AA18,IF($AA18='Control Panel'!$F$40,$AA18,IF($AA18='Control Panel'!$F$41,$AA18,"Error -- Availability entered in an incorrect format")))))))) -> N
A19: 7 | B19: The receiving date from being earlier than the requisition date (for emergencies). | C19: D | F19: N/A | AB19: =IF(LEN($AA19)=0,"N",IF(LEN($AA19)>1,"Error -- Availability entered in an incorrect format",IF($AA19='Control Panel'!$F$36,$AA19,IF($AA19='Control Panel'!$F$37,$AA19,IF($AA19='Control Panel'!$F$38,$AA19,IF($AA19='Control Panel'!$F$39,$AA19,IF($AA19='Control Panel'!$F$40,$AA19,IF($AA19='Control Panel'!$F$41,$AA19,"Error -- Availability entered in an incorrect format")))))))) -> N
A20: 8 | B20: The quantity received from being greater than the quantity approved on the purchase order / contract. | C20: D | F20: N/A | AB20: =IF(LEN($AA20)=0,"N",IF(LEN($AA20)>1,"Error -- Availability entered in an incorrect format",IF($AA20='Control Panel'!$F$36,$AA20,IF($AA20='Control Panel'!$F$37,$AA20,IF($AA20='Control Panel'!$F$38,$AA20,IF($AA20='Control Panel'!$F$39,$AA20,IF($AA20='Control Panel'!$F$40,$AA20,IF($AA20='Control Panel'!$F$41,$AA20,"Error -- Availability entered in an incorrect format")))))))) -> N
A21: 9 | B21: The unit price from being greater than the unit price approved on the purchase order / contract. | C21: D | F21: N/A | AB21: =IF(LEN($AA21)=0,"N",IF(LEN($AA21)>1,"Error -- Availability entered in an incorrect format",IF($AA21='Control Panel'!$F$36,$AA21,IF($AA21='Control Panel'!$F$37,$AA21,IF($AA21='Control Panel'!$F$38,$AA21,IF($AA21='Control Panel'!$F$39,$AA21,IF($AA21='Control Panel'!$F$40,$AA21,IF($AA21='Control Panel'!$F$41,$AA21,"Error -- Availability entered in an incorrect format")))))))) -> N
A22: 10 | B22: The payment amount is greater than the defined budgetary category balance. | C22: D | F22: N/A | AB22: =IF(LEN($AA22)=0,"N",IF(LEN($AA22)>1,"Error -- Availability entered in an incorrect format",IF($AA22='Control Panel'!$F$36,$AA22,IF($AA22='Control Panel'!$F$37,$AA22,IF($AA22='Control Panel'!$F$38,$AA22,IF($AA22='Control Panel'!$F$39,$AA22,IF($AA22='Control Panel'!$F$40,$AA22,IF($AA22='Control Panel'!$F$41,$AA22,"Error -- Availability entered in an incorrect format")))))))) -> N
A23: 11 | B23: Ability to view vendor payment status and check numbers. | C23: R | F23: N/A | AB23: =IF(LEN($AA23)=0,"N",IF(LEN($AA23)>1,"Error -- Availability entered in an incorrect format",IF($AA23='Control Panel'!$F$36,$AA23,IF($AA23='Control Panel'!$F$37,$AA23,IF($AA23='Control Panel'!$F$38,$AA23,IF($AA23='Control Panel'!$F$39,$AA23,IF($AA23='Control Panel'!$F$40,$AA23,IF($AA23='Control Panel'!$F$41,$AA23,"Error -- Availability entered in an incorrect format")))))))) -> N
A24: 12 | B24: Ability to manage accruals across multiple fiscal years. | C24: R | F24: N/A | AB24: =IF(LEN($AA24)=0,"N",IF(LEN($AA24)>1,"Error -- Availability entered in an incorrect format",IF($AA24='Control Panel'!$F$36,$AA24,IF($AA24='Control Panel'!$F$37,$AA24,IF($AA24='Control Panel'!$F$38,$AA24,IF($AA24='Control Panel'!$F$39,$AA24,IF($AA24='Control Panel'!$F$40,$AA24,IF($AA24='Control Panel'!$F$41,$AA24,"Error -- Availability entered in an incorrect format")))))))) -> N
A25: 13 | B25: Vendor File Set-Up and Maintenance | F25: N/A | AB25: =IF(LEN($AA25)=0,"N",IF(LEN($AA25)>1,"Error -- Availability entered in an incorrect format",IF($AA25='Control Panel'!$F$36,$AA25,IF($AA25='Control Panel'!$F$37,$AA25,IF($AA25='Control Panel'!$F$38,$AA25,IF($AA25='Control Panel'!$F$39,$AA25,IF($AA25='Control Panel'!$F$40,$AA25,IF($AA25='Control Panel'!$F$41,$AA25,"Error -- Availability entered in an incorrect format")))))))) -> N
A26: 14 | B26: Ability to set up alternate or multiple remit to vendors for payment i.e. payment to IRS rather than vendor. | C26: R | F26: N/A | AB26: =IF(LEN($AA26)=0,"N",IF(LEN($AA26)>1,"Error -- Availability entered in an incorrect format",IF($AA26='Control Panel'!$F$36,$AA26,IF($AA26='Control Panel'!$F$37,$AA26,IF($AA26='Control Panel'!$F$38,$AA26,IF($AA26='Control Panel'!$F$39,$AA26,IF($AA26='Control Panel'!$F$40,$AA26,IF($AA26='Control Panel'!$F$41,$AA26,"Error -- Availability entered in an incorrect format")))))))) -> N
A27: 15 | B27: Ability to establish a control to avoid vendor profile duplication; but allow multiple physical locations. | C27: R | F27: N/A | AB27: =IF(LEN($AA27)=0,"N",IF(LEN($AA27)>1,"Error -- Availability entered in an incorrect format",IF($AA27='Control Panel'!$F$36,$AA27,IF($AA27='Control Panel'!$F$37,$AA27,IF($AA27='Control Panel'!$F$38,$AA27,IF($AA27='Control Panel'!$F$39,$AA27,IF($AA27='Control Panel'!$F$40,$AA27,IF($AA27='Control Panel'!$F$41,$AA27,"Error -- Availability entered in an incorrect format")))))))) -> N
A28: 16 | B28: Ability to streamline the process for adding vendors to the system (e.g., use of workflows, automated vendor numbers). | C28: R | F28: N/A | AB28: =IF(LEN($AA28)=0,"N",IF(LEN($AA28)>1,"Error -- Availability entered in an incorrect format",IF($AA28='Control Panel'!$F$36,$AA28,IF($AA28='Control Panel'!$F$37,$AA28,IF($AA28='Control Panel'!$F$38,$AA28,IF($AA28='Control Panel'!$F$39,$AA28,IF($AA28='Control Panel'!$F$40,$AA28,IF($AA28='Control Panel'!$F$41,$AA28,"Error -- Availability entered in an incorrect format")))))))) -> N
A29: 17 | B29: Ability to notify requestor when a vendor is setup. | C29: D | F29: N/A | AB29: =IF(LEN($AA29)=0,"N",IF(LEN($AA29)>1,"Error -- Availability entered in an incorrect format",IF($AA29='Control Panel'!$F$36,$AA29,IF($AA29='Control Panel'!$F$37,$AA29,IF($AA29='Control Panel'!$F$38,$AA29,IF($AA29='Control Panel'!$F$39,$AA29,IF($AA29='Control Panel'!$F$40,$AA29,IF($AA29='Control Panel'!$F$41,$AA29,"Error -- Availability entered in an incorrect format")))))))) -> N
A30: 18 | B30: Ability to provide controls around the vendor information recorded in order to minimize duplicate entries of the same vendor providing warnings to system users of duplicates. | C30: R | F30: N/A | AB30: =IF(LEN($AA30)=0,"N",IF(LEN($AA30)>1,"Error -- Availability entered in an incorrect format",IF($AA30='Control Panel'!$F$36,$AA30,IF($AA30='Control Panel'!$F$37,$AA30,IF($AA30='Control Panel'!$F$38,$AA30,IF($AA30='Control Panel'!$F$39,$AA30,IF($AA30='Control Panel'!$F$40,$AA30,IF($AA30='Control Panel'!$F$41,$AA30,"Error -- Availability entered in an incorrect format")))))))) -> N
A31: 19 | B31: Ability to restrict access to designated vendor attributes based on user role (e.g., AP versus Purchasing). | C31: D | F31: N/A | AB31: =IF(LEN($AA31)=0,"N",IF(LEN($AA31)>1,"Error -- Availability entered in an incorrect format",IF($AA31='Control Panel'!$F$36,$AA31,IF($AA31='Control Panel'!$F$37,$AA31,IF($AA31='Control Panel'!$F$38,$AA31,IF($AA31='Control Panel'!$F$39,$AA31,IF($AA31='Control Panel'!$F$40,$AA31,IF($AA31='Control Panel'!$F$41,$AA31,"Error -- Availability entered in an incorrect format")))))))) -> N
A32: 20 | B32: Ability to assign classifications to vendors (i.e. Regular, One-Time, Employee, EFT, Payroll, etc.) and the ability to limit access for updating vendor information based on vendor classification. | C32: D | F32: N/A | AB32: =IF(LEN($AA32)=0,"N",IF(LEN($AA32)>1,"Error -- Availability entered in an incorrect format",IF($AA32='Control Panel'!$F$36,$AA32,IF($AA32='Control Panel'!$F$37,$AA32,IF($AA32='Control Panel'!$F$38,$AA32,IF($AA32='Control Panel'!$F$39,$AA32,IF($AA32='Control Panel'!$F$40,$AA32,IF($AA32='Control Panel'!$F$41,$AA32,"Error -- Availability entered in an incorrect format")))))))) -> N
A33: 21 | B33: Ability to generate a one-time payment as a departmental vendor without creating a permanent vendor for the payee in the master file. System retains information on name, date, and amount of vendor payment etc. | C33: R | F33: N/A | AB33: =IF(LEN($AA33)=0,"N",IF(LEN($AA33)>1,"Error -- Availability entered in an incorrect format",IF($AA33='Control Panel'!$F$36,$AA33,IF($AA33='Control Panel'!$F$37,$AA33,IF($AA33='Control Panel'!$F$38,$AA33,IF($AA33='Control Panel'!$F$39,$AA33,IF($AA33='Control Panel'!$F$40,$AA33,IF($AA33='Control Panel'!$F$41,$AA33,"Error -- Availability entered in an incorrect format")))))))) -> N
A34: 22 | B34: Ability to assign a vendor number to a one time vendor that has multiple payments and move past history to this vendor number. | C34: D | F34: N/A | AB34: =IF(LEN($AA34)=0,"N",IF(LEN($AA34)>1,"Error -- Availability entered in an incorrect format",IF($AA34='Control Panel'!$F$36,$AA34,IF($AA34='Control Panel'!$F$37,$AA34,IF($AA34='Control Panel'!$F$38,$AA34,IF($AA34='Control Panel'!$F$39,$AA34,IF($AA34='Control Panel'!$F$40,$AA34,IF($AA34='Control Panel'!$F$41,$AA34,"Error -- Availability entered in an incorrect format")))))))) -> N
A35: 23 | B35: Ability to search one-time payments by vendor name/tax id. | C35: R | F35: N/A | AB35: =IF(LEN($AA35)=0,"N",IF(LEN($AA35)>1,"Error -- Availability entered in an incorrect format",IF($AA35='Control Panel'!$F$36,$AA35,IF($AA35='Control Panel'!$F$37,$AA35,IF($AA35='Control Panel'!$F$38,$AA35,IF($AA35='Control Panel'!$F$39,$AA35,IF($AA35='Control Panel'!$F$40,$AA35,IF($AA35='Control Panel'!$F$41,$AA35,"Error -- Availability entered in an incorrect format")))))))) -> N
A36: 24 | B36: Ability to search one-time payments by classification. | C36: D | F36: N/A | AB36: =IF(LEN($AA36)=0,"N",IF(LEN($AA36)>1,"Error -- Availability entered in an incorrect format",IF($AA36='Control Panel'!$F$36,$AA36,IF($AA36='Control Panel'!$F$37,$AA36,IF($AA36='Control Panel'!$F$38,$AA36,IF($AA36='Control Panel'!$F$39,$AA36,IF($AA36='Control Panel'!$F$40,$AA36,IF($AA36='Control Panel'!$F$41,$AA36,"Error -- Availability entered in an incorrect format")))))))) -> N
A37: 25 | B37: Ability to create multiple addresses per vendor with the ability to assign each address as appropriate (i.e. invoicing, remittance, ordering, 1099, etc.); and the ability to select different remit addresses during the voucher payment process. | C37: R | F37: N/A | AB37: =IF(LEN($AA37)=0,"N",IF(LEN($AA37)>1,"Error -- Availability entered in an incorrect format",IF($AA37='Control Panel'!$F$36,$AA37,IF($AA37='Control Panel'!$F$37,$AA37,IF($AA37='Control Panel'!$F$38,$AA37,IF($AA37='Control Panel'!$F$39,$AA37,IF($AA37='Control Panel'!$F$40,$AA37,IF($AA37='Control Panel'!$F$41,$AA37,"Error -- Availability entered in an incorrect format")))))))) -> N
A38: 26 | B38: Ability to create multiple vendor name per vendor with the ability to assign each address as appropriate (i.e. invoicing, remittance, ordering, 1099, etc.); and the ability to select different remit addresses during the voucher payment process. | C38: R | F38: N/A | AB38: =IF(LEN($AA38)=0,"N",IF(LEN($AA38)>1,"Error -- Availability entered in an incorrect format",IF($AA38='Control Panel'!$F$36,$AA38,IF($AA38='Control Panel'!$F$37,$AA38,IF($AA38='Control Panel'!$F$38,$AA38,IF($AA38='Control Panel'!$F$39,$AA38,IF($AA38='Control Panel'!$F$40,$AA38,IF($AA38='Control Panel'!$F$41,$AA38,"Error -- Availability entered in an incorrect format")))))))) -> N
A39: 27 | B39: Ability to create foreign address with a minimum of 6 lines. | C39: D | F39: N/A | AB39: =IF(LEN($AA39)=0,"N",IF(LEN($AA39)>1,"Error -- Availability entered in an incorrect format",IF($AA39='Control Panel'!$F$36,$AA39,IF($AA39='Control Panel'!$F$37,$AA39,IF($AA39='Control Panel'!$F$38,$AA39,IF($AA39='Control Panel'!$F$39,$AA39,IF($AA39='Control Panel'!$F$40,$AA39,IF($AA39='Control Panel'!$F$41,$AA39,"Error -- Availability entered in an incorrect format")))))))) -> N
A40: 28 | B40: Ability to track and search on vendor file address fields including name, address (multiple), phone (multiple), fax and email, contact info, number, type, status (active / inactive), tax ID & type, commodity code (multiple). | C40: D | F40: N/A | AB40: =IF(LEN($AA40)=0,"N",IF(LEN($AA40)>1,"Error -- Availability entered in an incorrect format",IF($AA40='Control Panel'!$F$36,$AA40,IF($AA40='Control Panel'!$F$37,$AA40,IF($AA40='Control Panel'!$F$38,$AA40,IF($AA40='Control Panel'!$F$39,$AA40,IF($AA40='Control Panel'!$F$40,$AA40,IF($AA40='Control Panel'!$F$41,$AA40,"Error -- Availability entered in an incorrect format")))))))) -> N
A41: 29 | B41: Ability to designate which City bank account a vendor will be paid from. | C41: R | F41: N/A | AB41: =IF(LEN($AA41)=0,"N",IF(LEN($AA41)>1,"Error -- Availability entered in an incorrect format",IF($AA41='Control Panel'!$F$36,$AA41,IF($AA41='Control Panel'!$F$37,$AA41,IF($AA41='Control Panel'!$F$38,$AA41,IF($AA41='Control Panel'!$F$39,$AA41,IF($AA41='Control Panel'!$F$40,$AA41,IF($AA41='Control Panel'!$F$41,$AA41,"Error -- Availability entered in an incorrect format")))))))) -> N
A42: 30 | B42: Ability to enter all needed vendor bank information for EFT payments (ABA number, bank account number, bank name, etc.) with necessary security provided. | C42: R | F42: N/A | AB42: =IF(LEN($AA42)=0,"N",IF(LEN($AA42)>1,"Error -- Availability entered in an incorrect format",IF($AA42='Control Panel'!$F$36,$AA42,IF($AA42='Control Panel'!$F$37,$AA42,IF($AA42='Control Panel'!$F$38,$AA42,IF($AA42='Control Panel'!$F$39,$AA42,IF($AA42='Control Panel'!$F$40,$AA42,IF($AA42='Control Panel'!$F$41,$AA42,"Error -- Availability entered in an incorrect format")))))))) -> N
A43: 31 | B43: Ability to track and report on all changes to the vendor master record. | C43: R | F43: N/A | AB43: =IF(LEN($AA43)=0,"N",IF(LEN($AA43)>1,"Error -- Availability entered in an incorrect format",IF($AA43='Control Panel'!$F$36,$AA43,IF($AA43='Control Panel'!$F$37,$AA43,IF($AA43='Control Panel'!$F$38,$AA43,IF($AA43='Control Panel'!$F$39,$AA43,IF($AA43='Control Panel'!$F$40,$AA43,IF($AA43='Control Panel'!$F$41,$AA43,"Error -- Availability entered in an incorrect format")))))))) -> N
A44: 32 | B44: Ability to establish security for limited access to social security numbers/FEIN on vendor file. | C44: D | F44: N/A | AB44: =IF(LEN($AA44)=0,"N",IF(LEN($AA44)>1,"Error -- Availability entered in an incorrect format",IF($AA44='Control Panel'!$F$36,$AA44,IF($AA44='Control Panel'!$F$37,$AA44,IF($AA44='Control Panel'!$F$38,$AA44,IF($AA44='Control Panel'!$F$39,$AA44,IF($AA44='Control Panel'!$F$40,$AA44,IF($AA44='Control Panel'!$F$41,$AA44,"Error -- Availability entered in an incorrect format")))))))) -> N
A45: 33 | B45: Ability to annually archive inactive vendors based upon flexible, user-generated parameters. | C45: D | F45: N/A | AB45: =IF(LEN($AA45)=0,"N",IF(LEN($AA45)>1,"Error -- Availability entered in an incorrect format",IF($AA45='Control Panel'!$F$36,$AA45,IF($AA45='Control Panel'!$F$37,$AA45,IF($AA45='Control Panel'!$F$38,$AA45,IF($AA45='Control Panel'!$F$39,$AA45,IF($AA45='Control Panel'!$F$40,$AA45,IF($AA45='Control Panel'!$F$41,$AA45,"Error -- Availability entered in an incorrect format")))))))) -> N
A46: 34 | B46: Ability to perform the following vendor self service functions, including: | C46: - | F46: N/A | AB46: =IF(LEN($AA46)=0,"N",IF(LEN($AA46)>1,"Error -- Availability entered in an incorrect format",IF($AA46='Control Panel'!$F$36,$AA46,IF($AA46='Control Panel'!$F$37,$AA46,IF($AA46='Control Panel'!$F$38,$AA46,IF($AA46='Control Panel'!$F$39,$AA46,IF($AA46='Control Panel'!$F$40,$AA46,IF($AA46='Control Panel'!$F$41,$AA46,"Error -- Availability entered in an incorrect format")))))))) -> N
A47: 35 | B47: Register online, identify the services they provide (commodity codes). | C47: R | F47: N/A | AB47: =IF(LEN($AA47)=0,"N",IF(LEN($AA47)>1,"Error -- Availability entered in an incorrect format",IF($AA47='Control Panel'!$F$36,$AA47,IF($AA47='Control Panel'!$F$37,$AA47,IF($AA47='Control Panel'!$F$38,$AA47,IF($AA47='Control Panel'!$F$39,$AA47,IF($AA47='Control Panel'!$F$40,$AA47,IF($AA47='Control Panel'!$F$41,$AA47,"Error -- Availability entered in an incorrect format")))))))) -> N
A48: 36 | B48: Inquire on payment status. | C48: R | F48: N/A | AB48: =IF(LEN($AA48)=0,"N",IF(LEN($AA48)>1,"Error -- Availability entered in an incorrect format",IF($AA48='Control Panel'!$F$36,$AA48,IF($AA48='Control Panel'!$F$37,$AA48,IF($AA48='Control Panel'!$F$38,$AA48,IF($AA48='Control Panel'!$F$39,$AA48,IF($AA48='Control Panel'!$F$40,$AA48,IF($AA48='Control Panel'!$F$41,$AA48,"Error -- Availability entered in an incorrect format")))))))) -> N
A49: 37 | B49: Update their contact information. | C49: R | F49: N/A | AB49: =IF(LEN($AA49)=0,"N",IF(LEN($AA49)>1,"Error -- Availability entered in an incorrect format",IF($AA49='Control Panel'!$F$36,$AA49,IF($AA49='Control Panel'!$F$37,$AA49,IF($AA49='Control Panel'!$F$38,$AA49,IF($AA49='Control Panel'!$F$39,$AA49,IF($AA49='Control Panel'!$F$40,$AA49,IF($AA49='Control Panel'!$F$41,$AA49,"Error -- Availability entered in an incorrect format")))))))) -> N
A50: 38 | B50: Inquire on payment history. | C50: R | F50: N/A | AB50: =IF(LEN($AA50)=0,"N",IF(LEN($AA50)>1,"Error -- Availability entered in an incorrect format",IF($AA50='Control Panel'!$F$36,$AA50,IF($AA50='Control Panel'!$F$37,$AA50,IF($AA50='Control Panel'!$F$38,$AA50,IF($AA50='Control Panel'!$F$39,$AA50,IF($AA50='Control Panel'!$F$40,$AA50,IF($AA50='Control Panel'!$F$41,$AA50,"Error -- Availability entered in an incorrect format")))))))) -> N
A51: 39 | B51: Ability to attach communications and other documents to the vendor record. | C51: R | F51: N/A | AB51: =IF(LEN($AA51)=0,"N",IF(LEN($AA51)>1,"Error -- Availability entered in an incorrect format",IF($AA51='Control Panel'!$F$36,$AA51,IF($AA51='Control Panel'!$F$37,$AA51,IF($AA51='Control Panel'!$F$38,$AA51,IF($AA51='Control Panel'!$F$39,$AA51,IF($AA51='Control Panel'!$F$40,$AA51,IF($AA51='Control Panel'!$F$41,$AA51,"Error -- Availability entered in an incorrect format")))))))) -> N
A52: 40 | B52: Ability to verify TIN to IRS database. | C52: D | F52: N/A | AB52: =IF(LEN($AA52)=0,"N",IF(LEN($AA52)>1,"Error -- Availability entered in an incorrect format",IF($AA52='Control Panel'!$F$36,$AA52,IF($AA52='Control Panel'!$F$37,$AA52,IF($AA52='Control Panel'!$F$38,$AA52,IF($AA52='Control Panel'!$F$39,$AA52,IF($AA52='Control Panel'!$F$40,$AA52,IF($AA52='Control Panel'!$F$41,$AA52,"Error -- Availability entered in an incorrect format")))))))) -> N
A53: 41 | B53: Invoice Entry and Processing | F53: N/A | AB53: =IF(LEN($AA53)=0,"N",IF(LEN($AA53)>1,"Error -- Availability entered in an incorrect format",IF($AA53='Control Panel'!$F$36,$AA53,IF($AA53='Control Panel'!$F$37,$AA53,IF($AA53='Control Panel'!$F$38,$AA53,IF($AA53='Control Panel'!$F$39,$AA53,IF($AA53='Control Panel'!$F$40,$AA53,IF($AA53='Control Panel'!$F$41,$AA53,"Error -- Availability entered in an incorrect format")))))))) -> N
A54: 42 | B54: Ability to restrict the processing of a vendor invoice unless a W-9 record is on file. | C54: D | F54: N/A | AB54: =IF(LEN($AA54)=0,"N",IF(LEN($AA54)>1,"Error -- Availability entered in an incorrect format",IF($AA54='Control Panel'!$F$36,$AA54,IF($AA54='Control Panel'!$F$37,$AA54,IF($AA54='Control Panel'!$F$38,$AA54,IF($AA54='Control Panel'!$F$39,$AA54,IF($AA54='Control Panel'!$F$40,$AA54,IF($AA54='Control Panel'!$F$41,$AA54,"Error -- Availability entered in an incorrect format")))))))) -> N
A55: 43 | B55: Ability to support centralized or decentralized entry and workflow processing related to invoice entry/receipt. | C55: R | F55: N/A | AB55: =IF(LEN($AA55)=0,"N",IF(LEN($AA55)>1,"Error -- Availability entered in an incorrect format",IF($AA55='Control Panel'!$F$36,$AA55,IF($AA55='Control Panel'!$F$37,$AA55,IF($AA55='Control Panel'!$F$38,$AA55,IF($AA55='Control Panel'!$F$39,$AA55,IF($AA55='Control Panel'!$F$40,$AA55,IF($AA55='Control Panel'!$F$41,$AA55,"Error -- Availability entered in an incorrect format")))))))) -> N
A56: 44 | B56: Ability to receive and process invoices electronically from vendors. | C56: R | F56: N/A | AB56: =IF(LEN($AA56)=0,"N",IF(LEN($AA56)>1,"Error -- Availability entered in an incorrect format",IF($AA56='Control Panel'!$F$36,$AA56,IF($AA56='Control Panel'!$F$37,$AA56,IF($AA56='Control Panel'!$F$38,$AA56,IF($AA56='Control Panel'!$F$39,$AA56,IF($AA56='Control Panel'!$F$40,$AA56,IF($AA56='Control Panel'!$F$41,$AA56,"Error -- Availability entered in an incorrect format")))))))) -> N
A57: 45 | B57: Ability to enter invoices in batch (or one at a time) providing control totals reconcilable by user. | C57: D | F57: N/A | AB57: =IF(LEN($AA57)=0,"N",IF(LEN($AA57)>1,"Error -- Availability entered in an incorrect format",IF($AA57='Control Panel'!$F$36,$AA57,IF($AA57='Control Panel'!$F$37,$AA57,IF($AA57='Control Panel'!$F$38,$AA57,IF($AA57='Control Panel'!$F$39,$AA57,IF($AA57='Control Panel'!$F$40,$AA57,IF($AA57='Control Panel'!$F$41,$AA57,"Error -- Availability entered in an incorrect format")))))))) -> N
A58: 46 | B58: Ability to default purchase order information on the invoice during invoice entry with source transaction information. | C58: R | F58: N/A | AB58: =IF(LEN($AA58)=0,"N",IF(LEN($AA58)>1,"Error -- Availability entered in an incorrect format",IF($AA58='Control Panel'!$F$36,$AA58,IF($AA58='Control Panel'!$F$37,$AA58,IF($AA58='Control Panel'!$F$38,$AA58,IF($AA58='Control Panel'!$F$39,$AA58,IF($AA58='Control Panel'!$F$40,$AA58,IF($AA58='Control Panel'!$F$41,$AA58,"Error -- Availability entered in an incorrect format")))))))) -> N
A59: 47 | B59: Ability to perform data validation in real time during invoice entry. | C59: R | F59: N/A | AB59: =IF(LEN($AA59)=0,"N",IF(LEN($AA59)>1,"Error -- Availability entered in an incorrect format",IF($AA59='Control Panel'!$F$36,$AA59,IF($AA59='Control Panel'!$F$37,$AA59,IF($AA59='Control Panel'!$F$38,$AA59,IF($AA59='Control Panel'!$F$39,$AA59,IF($AA59='Control Panel'!$F$40,$AA59,IF($AA59='Control Panel'!$F$41,$AA59,"Error -- Availability entered in an incorrect format")))))))) -> N
A60: 48 | B60: Ability to permit an error to be corrected by the user without having to back out of the invoice and resubmit it with appropriate workflow. | C60: D | F60: N/A | AB60: =IF(LEN($AA60)=0,"N",IF(LEN($AA60)>1,"Error -- Availability entered in an incorrect format",IF($AA60='Control Panel'!$F$36,$AA60,IF($AA60='Control Panel'!$F$37,$AA60,IF($AA60='Control Panel'!$F$38,$AA60,IF($AA60='Control Panel'!$F$39,$AA60,IF($AA60='Control Panel'!$F$40,$AA60,IF($AA60='Control Panel'!$F$41,$AA60,"Error -- Availability entered in an incorrect format")))))))) -> N
A61: 49 | B61: Ability to process one invoice or multiple invoices from one purchase order (or encumbrance) and/or for one purchase order line item. | C61: R | F61: N/A | AB61: =IF(LEN($AA61)=0,"N",IF(LEN($AA61)>1,"Error -- Availability entered in an incorrect format",IF($AA61='Control Panel'!$F$36,$AA61,IF($AA61='Control Panel'!$F$37,$AA61,IF($AA61='Control Panel'!$F$38,$AA61,IF($AA61='Control Panel'!$F$39,$AA61,IF($AA61='Control Panel'!$F$40,$AA61,IF($AA61='Control Panel'!$F$41,$AA61,"Error -- Availability entered in an incorrect format")))))))) -> N
A62: 50 | B62: Ability to hold/repeat vendor information when keying multiple invoices into a batch. | C62: D | F62: N/A | AB62: =IF(LEN($AA62)=0,"N",IF(LEN($AA62)>1,"Error -- Availability entered in an incorrect format",IF($AA62='Control Panel'!$F$36,$AA62,IF($AA62='Control Panel'!$F$37,$AA62,IF($AA62='Control Panel'!$F$38,$AA62,IF($AA62='Control Panel'!$F$39,$AA62,IF($AA62='Control Panel'!$F$40,$AA62,IF($AA62='Control Panel'!$F$41,$AA62,"Error -- Availability entered in an incorrect format")))))))) -> N
A63: 51 | B63: Ability to have system check for and prohibit entry of duplicate invoices for a vendor. | C63: R | F63: N/A | AB63: =IF(LEN($AA63)=0,"N",IF(LEN($AA63)>1,"Error -- Availability entered in an incorrect format",IF($AA63='Control Panel'!$F$36,$AA63,IF($AA63='Control Panel'!$F$37,$AA63,IF($AA63='Control Panel'!$F$38,$AA63,IF($AA63='Control Panel'!$F$39,$AA63,IF($AA63='Control Panel'!$F$40,$AA63,IF($AA63='Control Panel'!$F$41,$AA63,"Error -- Availability entered in an incorrect format")))))))) -> N
A64: 52 | B64: Ability to identify different invoice types including: | C64: - | F64: N/A | AB64: =IF(LEN($AA64)=0,"N",IF(LEN($AA64)>1,"Error -- Availability entered in an incorrect format",IF($AA64='Control Panel'!$F$36,$AA64,IF($AA64='Control Panel'!$F$37,$AA64,IF($AA64='Control Panel'!$F$38,$AA64,IF($AA64='Control Panel'!$F$39,$AA64,IF($AA64='Control Panel'!$F$40,$AA64,IF($AA64='Control Panel'!$F$41,$AA64,"Error -- Availability entered in an incorrect format")))))))) -> N
A65: 53 | B65: Limited Purchase Orders | C65: D | F65: N/A | AB65: =IF(LEN($AA65)=0,"N",IF(LEN($AA65)>1,"Error -- Availability entered in an incorrect format",IF($AA65='Control Panel'!$F$36,$AA65,IF($AA65='Control Panel'!$F$37,$AA65,IF($AA65='Control Panel'!$F$38,$AA65,IF($AA65='Control Panel'!$F$39,$AA65,IF($AA65='Control Panel'!$F$40,$AA65,IF($AA65='Control Panel'!$F$41,$AA65,"Error -- Availability entered in an incorrect format")))))))) -> N
A66: 54 | B66: Regular Purchase Order | C66: D | F66: N/A | AB66: =IF(LEN($AA66)=0,"N",IF(LEN($AA66)>1,"Error -- Availability entered in an incorrect format",IF($AA66='Control Panel'!$F$36,$AA66,IF($AA66='Control Panel'!$F$37,$AA66,IF($AA66='Control Panel'!$F$38,$AA66,IF($AA66='Control Panel'!$F$39,$AA66,IF($AA66='Control Panel'!$F$40,$AA66,IF($AA66='Control Panel'!$F$41,$AA66,"Error -- Availability entered in an incorrect format")))))))) -> N
A67: 55 | B67: Blanket Purchase Order | C67: D | F67: N/A | AB67: =IF(LEN($AA67)=0,"N",IF(LEN($AA67)>1,"Error -- Availability entered in an incorrect format",IF($AA67='Control Panel'!$F$36,$AA67,IF($AA67='Control Panel'!$F$37,$AA67,IF($AA67='Control Panel'!$F$38,$AA67,IF($AA67='Control Panel'!$F$39,$AA67,IF($AA67='Control Panel'!$F$40,$AA67,IF($AA67='Control Panel'!$F$41,$AA67,"Error -- Availability entered in an incorrect format")))))))) -> N
A68: 56 | B68: Manual Payment Voucher/Invoice for Payment (IFP) | C68: D | F68: N/A | AB68: =IF(LEN($AA68)=0,"N",IF(LEN($AA68)>1,"Error -- Availability entered in an incorrect format",IF($AA68='Control Panel'!$F$36,$AA68,IF($AA68='Control Panel'!$F$37,$AA68,IF($AA68='Control Panel'!$F$38,$AA68,IF($AA68='Control Panel'!$F$39,$AA68,IF($AA68='Control Panel'!$F$40,$AA68,IF($AA68='Control Panel'!$F$41,$AA68,"Error -- Availability entered in an incorrect format")))))))) -> N
A69: 57 | B69: Credit/Debit Memos | C69: D | F69: N/A | AB69: =IF(LEN($AA69)=0,"N",IF(LEN($AA69)>1,"Error -- Availability entered in an incorrect format",IF($AA69='Control Panel'!$F$36,$AA69,IF($AA69='Control Panel'!$F$37,$AA69,IF($AA69='Control Panel'!$F$38,$AA69,IF($AA69='Control Panel'!$F$39,$AA69,IF($AA69='Control Panel'!$F$40,$AA69,IF($AA69='Control Panel'!$F$41,$AA69,"Error -- Availability entered in an incorrect format")))))))) -> N
A70: 58 | B70: Ability to enter credit amount against a PO for Purchasing. | C70: R | F70: N/A | AB70: =IF(LEN($AA70)=0,"N",IF(LEN($AA70)>1,"Error -- Availability entered in an incorrect format",IF($AA70='Control Panel'!$F$36,$AA70,IF($AA70='Control Panel'!$F$37,$AA70,IF($AA70='Control Panel'!$F$38,$AA70,IF($AA70='Control Panel'!$F$39,$AA70,IF($AA70='Control Panel'!$F$40,$AA70,IF($AA70='Control Panel'!$F$41,$AA70,"Error -- Availability entered in an incorrect format")))))))) -> N
A71: 59 | B71: Ability to enter up to 99 line items on an invoice. | C71: R | F71: N/A | AB71: =IF(LEN($AA71)=0,"N",IF(LEN($AA71)>1,"Error -- Availability entered in an incorrect format",IF($AA71='Control Panel'!$F$36,$AA71,IF($AA71='Control Panel'!$F$37,$AA71,IF($AA71='Control Panel'!$F$38,$AA71,IF($AA71='Control Panel'!$F$39,$AA71,IF($AA71='Control Panel'!$F$40,$AA71,IF($AA71='Control Panel'!$F$41,$AA71,"Error -- Availability entered in an incorrect format")))))))) -> N
A72: 60 | B72: Ability for automated system budget checking and control and define at certain levels (e.g. fund) for direct pays for PO (invoice). | C72: R | F72: N/A | AB72: =IF(LEN($AA72)=0,"N",IF(LEN($AA72)>1,"Error -- Availability entered in an incorrect format",IF($AA72='Control Panel'!$F$36,$AA72,IF($AA72='Control Panel'!$F$37,$AA72,IF($AA72='Control Panel'!$F$38,$AA72,IF($AA72='Control Panel'!$F$39,$AA72,IF($AA72='Control Panel'!$F$40,$AA72,IF($AA72='Control Panel'!$F$41,$AA72,"Error -- Availability entered in an incorrect format")))))))) -> N
A73: 61 | B73: Ability to enter an invoice without a corresponding purchase order. | C73: R | F73: N/A | AB73: =IF(LEN($AA73)=0,"N",IF(LEN($AA73)>1,"Error -- Availability entered in an incorrect format",IF($AA73='Control Panel'!$F$36,$AA73,IF($AA73='Control Panel'!$F$37,$AA73,IF($AA73='Control Panel'!$F$38,$AA73,IF($AA73='Control Panel'!$F$39,$AA73,IF($AA73='Control Panel'!$F$40,$AA73,IF($AA73='Control Panel'!$F$41,$AA73,"Error -- Availability entered in an incorrect format")))))))) -> N
A74: 62 | B74: Ability to recognize a PO when an invoice is entered. | C74: R | F74: N/A | AB74: =IF(LEN($AA74)=0,"N",IF(LEN($AA74)>1,"Error -- Availability entered in an incorrect format",IF($AA74='Control Panel'!$F$36,$AA74,IF($AA74='Control Panel'!$F$37,$AA74,IF($AA74='Control Panel'!$F$38,$AA74,IF($AA74='Control Panel'!$F$39,$AA74,IF($AA74='Control Panel'!$F$40,$AA74,IF($AA74='Control Panel'!$F$41,$AA74,"Error -- Availability entered in an incorrect format")))))))) -> N
A75: 63 | B75: Ability to scan a vendor invoice with a template applied to that invoice for that vendor that recognizes and pre-fills the invoice entry screen with purchase order number, invoice number, invoice date and invoice amount. | C75: D | F75: N/A | AB75: =IF(LEN($AA75)=0,"N",IF(LEN($AA75)>1,"Error -- Availability entered in an incorrect format",IF($AA75='Control Panel'!$F$36,$AA75,IF($AA75='Control Panel'!$F$37,$AA75,IF($AA75='Control Panel'!$F$38,$AA75,IF($AA75='Control Panel'!$F$39,$AA75,IF($AA75='Control Panel'!$F$40,$AA75,IF($AA75='Control Panel'!$F$41,$AA75,"Error -- Availability entered in an incorrect format")))))))) -> N
A76: 64 | B76: Ability to support creation of templates for recurring invoice. | C76: D | F76: N/A | AB76: =IF(LEN($AA76)=0,"N",IF(LEN($AA76)>1,"Error -- Availability entered in an incorrect format",IF($AA76='Control Panel'!$F$36,$AA76,IF($AA76='Control Panel'!$F$37,$AA76,IF($AA76='Control Panel'!$F$38,$AA76,IF($AA76='Control Panel'!$F$39,$AA76,IF($AA76='Control Panel'!$F$40,$AA76,IF($AA76='Control Panel'!$F$41,$AA76,"Error -- Availability entered in an incorrect format")))))))) -> N
A77: 65 | B77: Ability to cancel a transaction automatically create the appropriate reversing entries. | C77: R | F77: N/A | AB77: =IF(LEN($AA77)=0,"N",IF(LEN($AA77)>1,"Error -- Availability entered in an incorrect format",IF($AA77='Control Panel'!$F$36,$AA77,IF($AA77='Control Panel'!$F$37,$AA77,IF($AA77='Control Panel'!$F$38,$AA77,IF($AA77='Control Panel'!$F$39,$AA77,IF($AA77='Control Panel'!$F$40,$AA77,IF($AA77='Control Panel'!$F$41,$AA77,"Error -- Availability entered in an incorrect format")))))))) -> N
A78: 66 | B78: Ability to create notification when a PO invoice is reversed. | C78: D | F78: =IF($D$10=$A$9,"N/A",$D$10) -> N/A | AA78: =TRIM($D78) ->  | AB78: =IF(LEN($AA78)=0,"N",IF(LEN($AA78)>1,"Error -- Availability entered in an incorrect format",IF($AA78='Control Panel'!$F$36,$AA78,IF($AA78='Control Panel'!$F$37,$AA78,IF($AA78='Control Panel'!$F$38,$AA78,IF($AA78='Control Panel'!$F$39,$AA78,IF($AA78='Control Panel'!$F$40,$AA78,IF($AA78='Control Panel'!$F$41,$AA78,"Error -- Availability entered in an incorrect format")))))))) -> N
A79: 67 | B79: Ability to access information, including attached documents, from the referenced purchase order line item(s) during invoice entry. | C79: R | F79: N/A | AB79: =IF(LEN($AA79)=0,"N",IF(LEN($AA79)>1,"Error -- Availability entered in an incorrect format",IF($AA79='Control Panel'!$F$36,$AA79,IF($AA79='Control Panel'!$F$37,$AA79,IF($AA79='Control Panel'!$F$38,$AA79,IF($AA79='Control Panel'!$F$39,$AA79,IF($AA79='Control Panel'!$F$40,$AA79,IF($AA79='Control Panel'!$F$41,$AA79,"Error -- Availability entered in an incorrect format")))))))) -> N
A80: 68 | B80: Ability to distribute invoice payments by item or total into multiple general ledger accounts, department, activities, funds and cost categories, project codes, etc. | C80: R | F80: N/A | AB80: =IF(LEN($AA80)=0,"N",IF(LEN($AA80)>1,"Error -- Availability entered in an incorrect format",IF($AA80='Control Panel'!$F$36,$AA80,IF($AA80='Control Panel'!$F$37,$AA80,IF($AA80='Control Panel'!$F$38,$AA80,IF($AA80='Control Panel'!$F$39,$AA80,IF($AA80='Control Panel'!$F$40,$AA80,IF($AA80='Control Panel'!$F$41,$AA80,"Error -- Availability entered in an incorrect format")))))))) -> N
A81: 69 | B81: Ability to require follow-up actions before processing payments if the amount due on the vendor invoice exceeds the current encumbrance by more than a tolerable threshold (i.e., contact vendor, determine reason for difference, and obtain necessary workflow approvals). | C81: D | F81: N/A | AB81: =IF(LEN($AA81)=0,"N",IF(LEN($AA81)>1,"Error -- Availability entered in an incorrect format",IF($AA81='Control Panel'!$F$36,$AA81,IF($AA81='Control Panel'!$F$37,$AA81,IF($AA81='Control Panel'!$F$38,$AA81,IF($AA81='Control Panel'!$F$39,$AA81,IF($AA81='Control Panel'!$F$40,$AA81,IF($AA81='Control Panel'!$F$41,$AA81,"Error -- Availability entered in an incorrect format")))))))) -> N
A82: 70 | B82: Ability for authorized users to make edits and revisions to unposted invoice transactions prior to posting with appropriate workflow. | C82: D | F82: N/A | AB82: =IF(LEN($AA82)=0,"N",IF(LEN($AA82)>1,"Error -- Availability entered in an incorrect format",IF($AA82='Control Panel'!$F$36,$AA82,IF($AA82='Control Panel'!$F$37,$AA82,IF($AA82='Control Panel'!$F$38,$AA82,IF($AA82='Control Panel'!$F$39,$AA82,IF($AA82='Control Panel'!$F$40,$AA82,IF($AA82='Control Panel'!$F$41,$AA82,"Error -- Availability entered in an incorrect format")))))))) -> N
A83: 71 | B83: Ability to designate "separate check" on an invoice transaction. | C83: D | F83: N/A | AB83: =IF(LEN($AA83)=0,"N",IF(LEN($AA83)>1,"Error -- Availability entered in an incorrect format",IF($AA83='Control Panel'!$F$36,$AA83,IF($AA83='Control Panel'!$F$37,$AA83,IF($AA83='Control Panel'!$F$38,$AA83,IF($AA83='Control Panel'!$F$39,$AA83,IF($AA83='Control Panel'!$F$40,$AA83,IF($AA83='Control Panel'!$F$41,$AA83,"Error -- Availability entered in an incorrect format")))))))) -> N
A84: 72 | B84: Ability to designate certain purchase order types to always require a 3-way match (e.g., regular and blanket purchase orders) and others to only require a 2-way match based on the purchase order type and dollar amount. Ability to route workflows for approval based on 3-way or 2-way matching requirements. | C84: R | F84: N/A | AB84: =IF(LEN($AA84)=0,"N",IF(LEN($AA84)>1,"Error -- Availability entered in an incorrect format",IF($AA84='Control Panel'!$F$36,$AA84,IF($AA84='Control Panel'!$F$37,$AA84,IF($AA84='Control Panel'!$F$38,$AA84,IF($AA84='Control Panel'!$F$39,$AA84,IF($AA84='Control Panel'!$F$40,$AA84,IF($AA84='Control Panel'!$F$41,$AA84,"Error -- Availability entered in an incorrect format")))))))) -> N
A85: 73 | B85: Ability to generate notification if an invoice was not approved/rejected. | C85: R | F85: N/A | AB85: =IF(LEN($AA85)=0,"N",IF(LEN($AA85)>1,"Error -- Availability entered in an incorrect format",IF($AA85='Control Panel'!$F$36,$AA85,IF($AA85='Control Panel'!$F$37,$AA85,IF($AA85='Control Panel'!$F$38,$AA85,IF($AA85='Control Panel'!$F$39,$AA85,IF($AA85='Control Panel'!$F$40,$AA85,IF($AA85='Control Panel'!$F$41,$AA85,"Error -- Availability entered in an incorrect format")))))))) -> N
A86: 74 | B86: Ability of the system to flag transactions detected in error in the batch processing and preclude only erroneous transactions from further processing. | C86: R | F86: N/A | AB86: =IF(LEN($AA86)=0,"N",IF(LEN($AA86)>1,"Error -- Availability entered in an incorrect format",IF($AA86='Control Panel'!$F$36,$AA86,IF($AA86='Control Panel'!$F$37,$AA86,IF($AA86='Control Panel'!$F$38,$AA86,IF($AA86='Control Panel'!$F$39,$AA86,IF($AA86='Control Panel'!$F$40,$AA86,IF($AA86='Control Panel'!$F$41,$AA86,"Error -- Availability entered in an incorrect format")))))))) -> N
A87: 75 | B87: Ability to set a user defined minimum check amount that has to be met before processing. | C87: D | F87: N/A | AB87: =IF(LEN($AA87)=0,"N",IF(LEN($AA87)>1,"Error -- Availability entered in an incorrect format",IF($AA87='Control Panel'!$F$36,$AA87,IF($AA87='Control Panel'!$F$37,$AA87,IF($AA87='Control Panel'!$F$38,$AA87,IF($AA87='Control Panel'!$F$39,$AA87,IF($AA87='Control Panel'!$F$40,$AA87,IF($AA87='Control Panel'!$F$41,$AA87,"Error -- Availability entered in an incorrect format")))))))) -> N
A88: 76 | B88: Ability to delete or modify an invoice record before it is scheduled for payment. | C88: R | F88: N/A | AB88: =IF(LEN($AA88)=0,"N",IF(LEN($AA88)>1,"Error -- Availability entered in an incorrect format",IF($AA88='Control Panel'!$F$36,$AA88,IF($AA88='Control Panel'!$F$37,$AA88,IF($AA88='Control Panel'!$F$38,$AA88,IF($AA88='Control Panel'!$F$39,$AA88,IF($AA88='Control Panel'!$F$40,$AA88,IF($AA88='Control Panel'!$F$41,$AA88,"Error -- Availability entered in an incorrect format")))))))) -> N
A89: 77 | B89: Ability to identify capitalized items as invoices are processed and prompt user to enter fixed assets related details. | C89: R | F89: N/A | AB89: =IF(LEN($AA89)=0,"N",IF(LEN($AA89)>1,"Error -- Availability entered in an incorrect format",IF($AA89='Control Panel'!$F$36,$AA89,IF($AA89='Control Panel'!$F$37,$AA89,IF($AA89='Control Panel'!$F$38,$AA89,IF($AA89='Control Panel'!$F$39,$AA89,IF($AA89='Control Panel'!$F$40,$AA89,IF($AA89='Control Panel'!$F$41,$AA89,"Error -- Availability entered in an incorrect format")))))))) -> N
A90: 78 | B90: Ability to make partial payments on purchase orders based on invoice amount (i.e., progress payments). | C90: R | F90: N/A | AB90: =IF(LEN($AA90)=0,"N",IF(LEN($AA90)>1,"Error -- Availability entered in an incorrect format",IF($AA90='Control Panel'!$F$36,$AA90,IF($AA90='Control Panel'!$F$37,$AA90,IF($AA90='Control Panel'!$F$38,$AA90,IF($AA90='Control Panel'!$F$39,$AA90,IF($AA90='Control Panel'!$F$40,$AA90,IF($AA90='Control Panel'!$F$41,$AA90,"Error -- Availability entered in an incorrect format")))))))) -> N
A91: 79 | B91: Ability to enter multiple invoices against a blanket P.O. | C91: D | F91: N/A | AB91: =IF(LEN($AA91)=0,"N",IF(LEN($AA91)>1,"Error -- Availability entered in an incorrect format",IF($AA91='Control Panel'!$F$36,$AA91,IF($AA91='Control Panel'!$F$37,$AA91,IF($AA91='Control Panel'!$F$38,$AA91,IF($AA91='Control Panel'!$F$39,$AA91,IF($AA91='Control Panel'!$F$40,$AA91,IF($AA91='Control Panel'!$F$41,$AA91,"Error -- Availability entered in an incorrect format")))))))) -> N
A92: 80 | B92: Automatically update for P.O. matching invoice when matched correctly. | C92: R | F92: N/A | AB92: =IF(LEN($AA92)=0,"N",IF(LEN($AA92)>1,"Error -- Availability entered in an incorrect format",IF($AA92='Control Panel'!$F$36,$AA92,IF($AA92='Control Panel'!$F$37,$AA92,IF($AA92='Control Panel'!$F$38,$AA92,IF($AA92='Control Panel'!$F$39,$AA92,IF($AA92='Control Panel'!$F$40,$AA92,IF($AA92='Control Panel'!$F$41,$AA92,"Error -- Availability entered in an incorrect format")))))))) -> N
A93: 81 | B93: Employee Expense Reimbursements | F93: N/A | AB93: =IF(LEN($AA93)=0,"N",IF(LEN($AA93)>1,"Error -- Availability entered in an incorrect format",IF($AA93='Control Panel'!$F$36,$AA93,IF($AA93='Control Panel'!$F$37,$AA93,IF($AA93='Control Panel'!$F$38,$AA93,IF($AA93='Control Panel'!$F$39,$AA93,IF($AA93='Control Panel'!$F$40,$AA93,IF($AA93='Control Panel'!$F$41,$AA93,"Error -- Availability entered in an incorrect format")))))))) -> N
A94: 82 | B94: Ability to pay both travel and non-travel employee expenses including: mileage, lodging, meal allowance / per diem, transportation fares, parking fees, airline, organizational dues, magazine subscriptions, seminar fees, car rental, and other expenses. | C94: D | F94: N/A | AB94: =IF(LEN($AA94)=0,"N",IF(LEN($AA94)>1,"Error -- Availability entered in an incorrect format",IF($AA94='Control Panel'!$F$36,$AA94,IF($AA94='Control Panel'!$F$37,$AA94,IF($AA94='Control Panel'!$F$38,$AA94,IF($AA94='Control Panel'!$F$39,$AA94,IF($AA94='Control Panel'!$F$40,$AA94,IF($AA94='Control Panel'!$F$41,$AA94,"Error -- Availability entered in an incorrect format")))))))) -> N
A95: 83 | B95: Ability to enter expense advances as prepayments and subsequently reduce the amount of the employee expense report. | C95: D | F95: N/A | AB95: =IF(LEN($AA95)=0,"N",IF(LEN($AA95)>1,"Error -- Availability entered in an incorrect format",IF($AA95='Control Panel'!$F$36,$AA95,IF($AA95='Control Panel'!$F$37,$AA95,IF($AA95='Control Panel'!$F$38,$AA95,IF($AA95='Control Panel'!$F$39,$AA95,IF($AA95='Control Panel'!$F$40,$AA95,IF($AA95='Control Panel'!$F$41,$AA95,"Error -- Availability entered in an incorrect format")))))))) -> N
A96: 84 | B96: Ability to reference other paid travel expenses (credit card charges) to the employee's expense report for reconciliation. | C96: D | F96: N/A | AB96: =IF(LEN($AA96)=0,"N",IF(LEN($AA96)>1,"Error -- Availability entered in an incorrect format",IF($AA96='Control Panel'!$F$36,$AA96,IF($AA96='Control Panel'!$F$37,$AA96,IF($AA96='Control Panel'!$F$38,$AA96,IF($AA96='Control Panel'!$F$39,$AA96,IF($AA96='Control Panel'!$F$40,$AA96,IF($AA96='Control Panel'!$F$41,$AA96,"Error -- Availability entered in an incorrect format")))))))) -> N
A97: 85 | B97: Payment Processing | F97: N/A | AB97: =IF(LEN($AA97)=0,"N",IF(LEN($AA97)>1,"Error -- Availability entered in an incorrect format",IF($AA97='Control Panel'!$F$36,$AA97,IF($AA97='Control Panel'!$F$37,$AA97,IF($AA97='Control Panel'!$F$38,$AA97,IF($AA97='Control Panel'!$F$39,$AA97,IF($AA97='Control Panel'!$F$40,$AA97,IF($AA97='Control Panel'!$F$41,$AA97,"Error -- Availability entered in an incorrect format")))))))) -> N
A98: 86 | B98: Ability to pre-note when establishing a new bank account. | C98: R | F98: N/A | AB98: =IF(LEN($AA98)=0,"N",IF(LEN($AA98)>1,"Error -- Availability entered in an incorrect format",IF($AA98='Control Panel'!$F$36,$AA98,IF($AA98='Control Panel'!$F$37,$AA98,IF($AA98='Control Panel'!$F$38,$AA98,IF($AA98='Control Panel'!$F$39,$AA98,IF($AA98='Control Panel'!$F$40,$AA98,IF($AA98='Control Panel'!$F$41,$AA98,"Error -- Availability entered in an incorrect format")))))))) -> N
A99: 87 | B99: Ability to determine the remaining budget/appropriation amount on a project or purchase order. | C99: D | F99: N/A | AB99: =IF(LEN($AA99)=0,"N",IF(LEN($AA99)>1,"Error -- Availability entered in an incorrect format",IF($AA99='Control Panel'!$F$36,$AA99,IF($AA99='Control Panel'!$F$37,$AA99,IF($AA99='Control Panel'!$F$38,$AA99,IF($AA99='Control Panel'!$F$39,$AA99,IF($AA99='Control Panel'!$F$40,$AA99,IF($AA99='Control Panel'!$F$41,$AA99,"Error -- Availability entered in an incorrect format")))))))) -> N
A100: 88 | B100: Ability to withhold a user-defined percentage or fixed amount of a payment (i.e., retainage) on an invoice under certain user-defined situations (e.g., tax and audit, levies). | C100: R | F100: N/A | AB100: =IF(LEN($AA100)=0,"N",IF(LEN($AA100)>1,"Error -- Availability entered in an incorrect format",IF($AA100='Control Panel'!$F$36,$AA100,IF($AA100='Control Panel'!$F$37,$AA100,IF($AA100='Control Panel'!$F$38,$AA100,IF($AA100='Control Panel'!$F$39,$AA100,IF($AA100='Control Panel'!$F$40,$AA100,IF($AA100='Control Panel'!$F$41,$AA100,"Error -- Availability entered in an incorrect format")))))))) -> N
A101: 89 | B101: Ability to automatically take discounts if paid within specified payment terms. | C101: D | F101: N/A | AB101: =IF(LEN($AA101)=0,"N",IF(LEN($AA101)>1,"Error -- Availability entered in an incorrect format",IF($AA101='Control Panel'!$F$36,$AA101,IF($AA101='Control Panel'!$F$37,$AA101,IF($AA101='Control Panel'!$F$38,$AA101,IF($AA101='Control Panel'!$F$39,$AA101,IF($AA101='Control Panel'!$F$40,$AA101,IF($AA101='Control Panel'!$F$41,$AA101,"Error -- Availability entered in an incorrect format")))))))) -> N
A102: 90 | B102: Ability to prevent the altering of the payment information (e.g., vendor name) once invoices have been linked to PO's or approval of the payment has been secured. | C102: R | F102: N/A | AB102: =IF(LEN($AA102)=0,"N",IF(LEN($AA102)>1,"Error -- Availability entered in an incorrect format",IF($AA102='Control Panel'!$F$36,$AA102,IF($AA102='Control Panel'!$F$37,$AA102,IF($AA102='Control Panel'!$F$38,$AA102,IF($AA102='Control Panel'!$F$39,$AA102,IF($AA102='Control Panel'!$F$40,$AA102,IF($AA102='Control Panel'!$F$41,$AA102,"Error -- Availability entered in an incorrect format")))))))) -> N
A103: 91 | B103: Ability to insert/apply a code to payables prior to printing checks that must be grouped/printed together for special mailing/distribution. | C103: R | F103: N/A | AB103: =IF(LEN($AA103)=0,"N",IF(LEN($AA103)>1,"Error -- Availability entered in an incorrect format",IF($AA103='Control Panel'!$F$36,$AA103,IF($AA103='Control Panel'!$F$37,$AA103,IF($AA103='Control Panel'!$F$38,$AA103,IF($AA103='Control Panel'!$F$39,$AA103,IF($AA103='Control Panel'!$F$40,$AA103,IF($AA103='Control Panel'!$F$41,$AA103,"Error -- Availability entered in an incorrect format")))))))) -> N
A104: 92 | B104: Ability to automatically produce payments for garnishments from Payroll data. | C104: R | F104: N/A | AB104: =IF(LEN($AA104)=0,"N",IF(LEN($AA104)>1,"Error -- Availability entered in an incorrect format",IF($AA104='Control Panel'!$F$36,$AA104,IF($AA104='Control Panel'!$F$37,$AA104,IF($AA104='Control Panel'!$F$38,$AA104,IF($AA104='Control Panel'!$F$39,$AA104,IF($AA104='Control Panel'!$F$40,$AA104,IF($AA104='Control Panel'!$F$41,$AA104,"Error -- Availability entered in an incorrect format")))))))) -> N
A105: 93 | B105: Ability to prevent double posting of batches. | C105: R | F105: N/A | AB105: =IF(LEN($AA105)=0,"N",IF(LEN($AA105)>1,"Error -- Availability entered in an incorrect format",IF($AA105='Control Panel'!$F$36,$AA105,IF($AA105='Control Panel'!$F$37,$AA105,IF($AA105='Control Panel'!$F$38,$AA105,IF($AA105='Control Panel'!$F$39,$AA105,IF($AA105='Control Panel'!$F$40,$AA105,IF($AA105='Control Panel'!$F$41,$AA105,"Error -- Availability entered in an incorrect format")))))))) -> N
A106: 94 | B106: Ability to automatically liquidate current or prior year (as applicable) encumbrances upon posting of payment with ability to track current and prior year purchase order liquidations separately. | C106: R | F106: N/A | AB106: =IF(LEN($AA106)=0,"N",IF(LEN($AA106)>1,"Error -- Availability entered in an incorrect format",IF($AA106='Control Panel'!$F$36,$AA106,IF($AA106='Control Panel'!$F$37,$AA106,IF($AA106='Control Panel'!$F$38,$AA106,IF($AA106='Control Panel'!$F$39,$AA106,IF($AA106='Control Panel'!$F$40,$AA106,IF($AA106='Control Panel'!$F$41,$AA106,"Error -- Availability entered in an incorrect format")))))))) -> N
A107: 95 | B107: Ability to pay via ACH (regular), wire and check and p-card. | C107: R | F107: N/A | AB107: =IF(LEN($AA107)=0,"N",IF(LEN($AA107)>1,"Error -- Availability entered in an incorrect format",IF($AA107='Control Panel'!$F$36,$AA107,IF($AA107='Control Panel'!$F$37,$AA107,IF($AA107='Control Panel'!$F$38,$AA107,IF($AA107='Control Panel'!$F$39,$AA107,IF($AA107='Control Panel'!$F$40,$AA107,IF($AA107='Control Panel'!$F$41,$AA107,"Error -- Availability entered in an incorrect format")))))))) -> N
A108: 96 | B108: Ability to track the following ACH information: | C108: - | F108: N/A | AB108: =IF(LEN($AA108)=0,"N",IF(LEN($AA108)>1,"Error -- Availability entered in an incorrect format",IF($AA108='Control Panel'!$F$36,$AA108,IF($AA108='Control Panel'!$F$37,$AA108,IF($AA108='Control Panel'!$F$38,$AA108,IF($AA108='Control Panel'!$F$39,$AA108,IF($AA108='Control Panel'!$F$40,$AA108,IF($AA108='Control Panel'!$F$41,$AA108,"Error -- Availability entered in an incorrect format")))))))) -> N
A109: 97 | B109: ACH effective date | C109: D | F109: N/A | AB109: =IF(LEN($AA109)=0,"N",IF(LEN($AA109)>1,"Error -- Availability entered in an incorrect format",IF($AA109='Control Panel'!$F$36,$AA109,IF($AA109='Control Panel'!$F$37,$AA109,IF($AA109='Control Panel'!$F$38,$AA109,IF($AA109='Control Panel'!$F$39,$AA109,IF($AA109='Control Panel'!$F$40,$AA109,IF($AA109='Control Panel'!$F$41,$AA109,"Error -- Availability entered in an incorrect format")))))))) -> N
A110: 98 | B110: Department submitting payment | C110: D | F110: N/A | AB110: =IF(LEN($AA110)=0,"N",IF(LEN($AA110)>1,"Error -- Availability entered in an incorrect format",IF($AA110='Control Panel'!$F$36,$AA110,IF($AA110='Control Panel'!$F$37,$AA110,IF($AA110='Control Panel'!$F$38,$AA110,IF($AA110='Control Panel'!$F$39,$AA110,IF($AA110='Control Panel'!$F$40,$AA110,IF($AA110='Control Panel'!$F$41,$AA110,"Error -- Availability entered in an incorrect format")))))))) -> N
A111: 99 | B111: Federal holiday calendar | C111: D | F111: N/A | AB111: =IF(LEN($AA111)=0,"N",IF(LEN($AA111)>1,"Error -- Availability entered in an incorrect format",IF($AA111='Control Panel'!$F$36,$AA111,IF($AA111='Control Panel'!$F$37,$AA111,IF($AA111='Control Panel'!$F$38,$AA111,IF($AA111='Control Panel'!$F$39,$AA111,IF($AA111='Control Panel'!$F$40,$AA111,IF($AA111='Control Panel'!$F$41,$AA111,"Error -- Availability entered in an incorrect format")))))))) -> N
A112: 100 | B112: Free form addenda record | C112: D | F112: N/A | AB112: =IF(LEN($AA112)=0,"N",IF(LEN($AA112)>1,"Error -- Availability entered in an incorrect format",IF($AA112='Control Panel'!$F$36,$AA112,IF($AA112='Control Panel'!$F$37,$AA112,IF($AA112='Control Panel'!$F$38,$AA112,IF($AA112='Control Panel'!$F$39,$AA112,IF($AA112='Control Panel'!$F$40,$AA112,IF($AA112='Control Panel'!$F$41,$AA112,"Error -- Availability entered in an incorrect format")))))))) -> N
A113: 101 | B113: NACHA SEC (Standard Entry Class) codes for addenda records | C113: D | F113: N/A | AB113: =IF(LEN($AA113)=0,"N",IF(LEN($AA113)>1,"Error -- Availability entered in an incorrect format",IF($AA113='Control Panel'!$F$36,$AA113,IF($AA113='Control Panel'!$F$37,$AA113,IF($AA113='Control Panel'!$F$38,$AA113,IF($AA113='Control Panel'!$F$39,$AA113,IF($AA113='Control Panel'!$F$40,$AA113,IF($AA113='Control Panel'!$F$41,$AA113,"Error -- Availability entered in an incorrect format")))))))) -> N
A114: 102 | B114: Ability to attach multiple addenda records. | C114: R | F114: N/A | AB114: =IF(LEN($AA114)=0,"N",IF(LEN($AA114)>1,"Error -- Availability entered in an incorrect format",IF($AA114='Control Panel'!$F$36,$AA114,IF($AA114='Control Panel'!$F$37,$AA114,IF($AA114='Control Panel'!$F$38,$AA114,IF($AA114='Control Panel'!$F$39,$AA114,IF($AA114='Control Panel'!$F$40,$AA114,IF($AA114='Control Panel'!$F$41,$AA114,"Error -- Availability entered in an incorrect format")))))))) -> N
A115: 103 | B115: Ability to process and transmit ACH payments multiple times per day. | C115: D | F115: N/A | AB115: =IF(LEN($AA115)=0,"N",IF(LEN($AA115)>1,"Error -- Availability entered in an incorrect format",IF($AA115='Control Panel'!$F$36,$AA115,IF($AA115='Control Panel'!$F$37,$AA115,IF($AA115='Control Panel'!$F$38,$AA115,IF($AA115='Control Panel'!$F$39,$AA115,IF($AA115='Control Panel'!$F$40,$AA115,IF($AA115='Control Panel'!$F$41,$AA115,"Error -- Availability entered in an incorrect format")))))))) -> N
A116: 104 | B116: Check Processing/Printing | F116: N/A | AB116: =IF(LEN($AA116)=0,"N",IF(LEN($AA116)>1,"Error -- Availability entered in an incorrect format",IF($AA116='Control Panel'!$F$36,$AA116,IF($AA116='Control Panel'!$F$37,$AA116,IF($AA116='Control Panel'!$F$38,$AA116,IF($AA116='Control Panel'!$F$39,$AA116,IF($AA116='Control Panel'!$F$40,$AA116,IF($AA116='Control Panel'!$F$41,$AA116,"Error -- Availability entered in an incorrect format")))))))) -> N
A117: 105 | B117: Ability to optionally consolidate multiple payments to the same vendor in a check run or have separate checks issued to the same vendor in a check run or have some checks consolidated and some checks separate. | C117: R | F117: N/A | AB117: =IF(LEN($AA117)=0,"N",IF(LEN($AA117)>1,"Error -- Availability entered in an incorrect format",IF($AA117='Control Panel'!$F$36,$AA117,IF($AA117='Control Panel'!$F$37,$AA117,IF($AA117='Control Panel'!$F$38,$AA117,IF($AA117='Control Panel'!$F$39,$AA117,IF($AA117='Control Panel'!$F$40,$AA117,IF($AA117='Control Panel'!$F$41,$AA117,"Error -- Availability entered in an incorrect format")))))))) -> N
A118: 106 | B118: Ability for user-defined check and check stub formatting, including ability to modify without requiring assistance from the software vendor. | C118: D | F118: N/A | AB118: =IF(LEN($AA118)=0,"N",IF(LEN($AA118)>1,"Error -- Availability entered in an incorrect format",IF($AA118='Control Panel'!$F$36,$AA118,IF($AA118='Control Panel'!$F$37,$AA118,IF($AA118='Control Panel'!$F$38,$AA118,IF($AA118='Control Panel'!$F$39,$AA118,IF($AA118='Control Panel'!$F$40,$AA118,IF($AA118='Control Panel'!$F$41,$AA118,"Error -- Availability entered in an incorrect format")))))))) -> N
A119: 107 | B119: Ability to have several check print formatting options available. | C119: R | F119: N/A | AB119: =IF(LEN($AA119)=0,"N",IF(LEN($AA119)>1,"Error -- Availability entered in an incorrect format",IF($AA119='Control Panel'!$F$36,$AA119,IF($AA119='Control Panel'!$F$37,$AA119,IF($AA119='Control Panel'!$F$38,$AA119,IF($AA119='Control Panel'!$F$39,$AA119,IF($AA119='Control Panel'!$F$40,$AA119,IF($AA119='Control Panel'!$F$41,$AA119,"Error -- Availability entered in an incorrect format")))))))) -> N
A120: 108 | B120: Ability to process one check per vendor with all claims detail support on the corresponding page for additional check stub overflow capacity (if necessary). | C120: R | F120: N/A | AB120: =IF(LEN($AA120)=0,"N",IF(LEN($AA120)>1,"Error -- Availability entered in an incorrect format",IF($AA120='Control Panel'!$F$36,$AA120,IF($AA120='Control Panel'!$F$37,$AA120,IF($AA120='Control Panel'!$F$38,$AA120,IF($AA120='Control Panel'!$F$39,$AA120,IF($AA120='Control Panel'!$F$40,$AA120,IF($AA120='Control Panel'!$F$41,$AA120,"Error -- Availability entered in an incorrect format")))))))) -> N
A121: 109 | B121: Ability to process check runs at anytime. | C121: R | F121: N/A | AB121: =IF(LEN($AA121)=0,"N",IF(LEN($AA121)>1,"Error -- Availability entered in an incorrect format",IF($AA121='Control Panel'!$F$36,$AA121,IF($AA121='Control Panel'!$F$37,$AA121,IF($AA121='Control Panel'!$F$38,$AA121,IF($AA121='Control Panel'!$F$39,$AA121,IF($AA121='Control Panel'!$F$40,$AA121,IF($AA121='Control Panel'!$F$41,$AA121,"Error -- Availability entered in an incorrect format")))))))) -> N
A122: 110 | B122: Ability to select vouchers for check processing based upon various parameters (i.e. regular, express, one-time, EFT, employee, workers comp, etc.). | C122: D | F122: N/A | AB122: =IF(LEN($AA122)=0,"N",IF(LEN($AA122)>1,"Error -- Availability entered in an incorrect format",IF($AA122='Control Panel'!$F$36,$AA122,IF($AA122='Control Panel'!$F$37,$AA122,IF($AA122='Control Panel'!$F$38,$AA122,IF($AA122='Control Panel'!$F$39,$AA122,IF($AA122='Control Panel'!$F$40,$AA122,IF($AA122='Control Panel'!$F$41,$AA122,"Error -- Availability entered in an incorrect format")))))))) -> N
A123: 111 | B123: Ability to allow selected items to be paid and items to be withheld or deleted from payment for a particular check run. | C123: D | F123: N/A | AB123: =IF(LEN($AA123)=0,"N",IF(LEN($AA123)>1,"Error -- Availability entered in an incorrect format",IF($AA123='Control Panel'!$F$36,$AA123,IF($AA123='Control Panel'!$F$37,$AA123,IF($AA123='Control Panel'!$F$38,$AA123,IF($AA123='Control Panel'!$F$39,$AA123,IF($AA123='Control Panel'!$F$40,$AA123,IF($AA123='Control Panel'!$F$41,$AA123,"Error -- Availability entered in an incorrect format")))))))) -> N
A124: 112 | B124: Ability of the system to have an option of printing or not printing zero amount checks (i.e. ability to set amount tolerance limit). | C124: D | F124: N/A | AB124: =IF(LEN($AA124)=0,"N",IF(LEN($AA124)>1,"Error -- Availability entered in an incorrect format",IF($AA124='Control Panel'!$F$36,$AA124,IF($AA124='Control Panel'!$F$37,$AA124,IF($AA124='Control Panel'!$F$38,$AA124,IF($AA124='Control Panel'!$F$39,$AA124,IF($AA124='Control Panel'!$F$40,$AA124,IF($AA124='Control Panel'!$F$41,$AA124,"Error -- Availability entered in an incorrect format")))))))) -> N
A125: 113 | B125: Ability to notify the user when a check is to be printed that exceeds a user-defined maximum check amount. | C125: D | F125: N/A | AB125: =IF(LEN($AA125)=0,"N",IF(LEN($AA125)>1,"Error -- Availability entered in an incorrect format",IF($AA125='Control Panel'!$F$36,$AA125,IF($AA125='Control Panel'!$F$37,$AA125,IF($AA125='Control Panel'!$F$38,$AA125,IF($AA125='Control Panel'!$F$39,$AA125,IF($AA125='Control Panel'!$F$40,$AA125,IF($AA125='Control Panel'!$F$41,$AA125,"Error -- Availability entered in an incorrect format")))))))) -> N
A126: 114 | B126: Ability to use sequentially pre-numbered checks and EFTs. | C126: D | F126: N/A | AB126: =IF(LEN($AA126)=0,"N",IF(LEN($AA126)>1,"Error -- Availability entered in an incorrect format",IF($AA126='Control Panel'!$F$36,$AA126,IF($AA126='Control Panel'!$F$37,$AA126,IF($AA126='Control Panel'!$F$38,$AA126,IF($AA126='Control Panel'!$F$39,$AA126,IF($AA126='Control Panel'!$F$40,$AA126,IF($AA126='Control Panel'!$F$41,$AA126,"Error -- Availability entered in an incorrect format")))))))) -> N
A127: 115 | B127: Ability to have check stock control numbers included with check data. | C127: D | F127: N/A | AB127: =IF(LEN($AA127)=0,"N",IF(LEN($AA127)>1,"Error -- Availability entered in an incorrect format",IF($AA127='Control Panel'!$F$36,$AA127,IF($AA127='Control Panel'!$F$37,$AA127,IF($AA127='Control Panel'!$F$38,$AA127,IF($AA127='Control Panel'!$F$39,$AA127,IF($AA127='Control Panel'!$F$40,$AA127,IF($AA127='Control Panel'!$F$41,$AA127,"Error -- Availability entered in an incorrect format")))))))) -> N
A128: 116 | B128: Ability to print laser checks on plain paper stock. | C128: D | F128: N/A | AB128: =IF(LEN($AA128)=0,"N",IF(LEN($AA128)>1,"Error -- Availability entered in an incorrect format",IF($AA128='Control Panel'!$F$36,$AA128,IF($AA128='Control Panel'!$F$37,$AA128,IF($AA128='Control Panel'!$F$38,$AA128,IF($AA128='Control Panel'!$F$39,$AA128,IF($AA128='Control Panel'!$F$40,$AA128,IF($AA128='Control Panel'!$F$41,$AA128,"Error -- Availability entered in an incorrect format")))))))) -> N
A129: 117 | B129: Ability to not be restricted on the number of digits for the check number. | C129: R | F129: N/A | AB129: =IF(LEN($AA129)=0,"N",IF(LEN($AA129)>1,"Error -- Availability entered in an incorrect format",IF($AA129='Control Panel'!$F$36,$AA129,IF($AA129='Control Panel'!$F$37,$AA129,IF($AA129='Control Panel'!$F$38,$AA129,IF($AA129='Control Panel'!$F$39,$AA129,IF($AA129='Control Panel'!$F$40,$AA129,IF($AA129='Control Panel'!$F$41,$AA129,"Error -- Availability entered in an incorrect format")))))))) -> N
A130: 118 | B130: Ability to restrict the reuse of a check number. | C130: D | F130: N/A | AB130: =IF(LEN($AA130)=0,"N",IF(LEN($AA130)>1,"Error -- Availability entered in an incorrect format",IF($AA130='Control Panel'!$F$36,$AA130,IF($AA130='Control Panel'!$F$37,$AA130,IF($AA130='Control Panel'!$F$38,$AA130,IF($AA130='Control Panel'!$F$39,$AA130,IF($AA130='Control Panel'!$F$40,$AA130,IF($AA130='Control Panel'!$F$41,$AA130,"Error -- Availability entered in an incorrect format")))))))) -> N
A131: 119 | B131: Ability to print a non-negotiable copy of all checks. | C131: R | F131: N/A | AB131: =IF(LEN($AA131)=0,"N",IF(LEN($AA131)>1,"Error -- Availability entered in an incorrect format",IF($AA131='Control Panel'!$F$36,$AA131,IF($AA131='Control Panel'!$F$37,$AA131,IF($AA131='Control Panel'!$F$38,$AA131,IF($AA131='Control Panel'!$F$39,$AA131,IF($AA131='Control Panel'!$F$40,$AA131,IF($AA131='Control Panel'!$F$41,$AA131,"Error -- Availability entered in an incorrect format")))))))) -> N
A132: 120 | B132: Ability of the system to provide for mid-cycle restart of check forms during check run. | C132: R | F132: N/A | AB132: =IF(LEN($AA132)=0,"N",IF(LEN($AA132)>1,"Error -- Availability entered in an incorrect format",IF($AA132='Control Panel'!$F$36,$AA132,IF($AA132='Control Panel'!$F$37,$AA132,IF($AA132='Control Panel'!$F$38,$AA132,IF($AA132='Control Panel'!$F$39,$AA132,IF($AA132='Control Panel'!$F$40,$AA132,IF($AA132='Control Panel'!$F$41,$AA132,"Error -- Availability entered in an incorrect format")))))))) -> N
A133: 121 | B133: Ability to define the check number to restart on, when using blank stock, for a mid-cycle restart. | C133: R | F133: N/A | AB133: =IF(LEN($AA133)=0,"N",IF(LEN($AA133)>1,"Error -- Availability entered in an incorrect format",IF($AA133='Control Panel'!$F$36,$AA133,IF($AA133='Control Panel'!$F$37,$AA133,IF($AA133='Control Panel'!$F$38,$AA133,IF($AA133='Control Panel'!$F$39,$AA133,IF($AA133='Control Panel'!$F$40,$AA133,IF($AA133='Control Panel'!$F$41,$AA133,"Error -- Availability entered in an incorrect format")))))))) -> N
A134: 122 | B134: Ability to create and send a positive pay file to the bank for all accounts (i.e., Payroll, AP, etc.). | C134: R | F134: N/A | AB134: =IF(LEN($AA134)=0,"N",IF(LEN($AA134)>1,"Error -- Availability entered in an incorrect format",IF($AA134='Control Panel'!$F$36,$AA134,IF($AA134='Control Panel'!$F$37,$AA134,IF($AA134='Control Panel'!$F$38,$AA134,IF($AA134='Control Panel'!$F$39,$AA134,IF($AA134='Control Panel'!$F$40,$AA134,IF($AA134='Control Panel'!$F$41,$AA134,"Error -- Availability entered in an incorrect format")))))))) -> N
A135: 123 | B135: Ability to issue checks or EFT payment out of various bank accounts, including providing detailed email notification (include information which would have been on check stub) to vendor of EFT transmittal. | C135: D | F135: N/A | AB135: =IF(LEN($AA135)=0,"N",IF(LEN($AA135)>1,"Error -- Availability entered in an incorrect format",IF($AA135='Control Panel'!$F$36,$AA135,IF($AA135='Control Panel'!$F$37,$AA135,IF($AA135='Control Panel'!$F$38,$AA135,IF($AA135='Control Panel'!$F$39,$AA135,IF($AA135='Control Panel'!$F$40,$AA135,IF($AA135='Control Panel'!$F$41,$AA135,"Error -- Availability entered in an incorrect format")))))))) -> N
A136: 124 | B136: Ability to store and use the next sequential check number to be used for each bank's checking account. | C136: R | F136: N/A | AB136: =IF(LEN($AA136)=0,"N",IF(LEN($AA136)>1,"Error -- Availability entered in an incorrect format",IF($AA136='Control Panel'!$F$36,$AA136,IF($AA136='Control Panel'!$F$37,$AA136,IF($AA136='Control Panel'!$F$38,$AA136,IF($AA136='Control Panel'!$F$39,$AA136,IF($AA136='Control Panel'!$F$40,$AA136,IF($AA136='Control Panel'!$F$41,$AA136,"Error -- Availability entered in an incorrect format")))))))) -> N
A137: 125 | B137: Ability to produce, through secure printers, checks with MICR encoding and electronic signatures. | C137: R | F137: N/A | AB137: =IF(LEN($AA137)=0,"N",IF(LEN($AA137)>1,"Error -- Availability entered in an incorrect format",IF($AA137='Control Panel'!$F$36,$AA137,IF($AA137='Control Panel'!$F$37,$AA137,IF($AA137='Control Panel'!$F$38,$AA137,IF($AA137='Control Panel'!$F$39,$AA137,IF($AA137='Control Panel'!$F$40,$AA137,IF($AA137='Control Panel'!$F$41,$AA137,"Error -- Availability entered in an incorrect format")))))))) -> N
A138: 126 | B138: Ability to generate manual checks on-demand locally. | C138: D | F138: N/A | AB138: =IF(LEN($AA138)=0,"N",IF(LEN($AA138)>1,"Error -- Availability entered in an incorrect format",IF($AA138='Control Panel'!$F$36,$AA138,IF($AA138='Control Panel'!$F$37,$AA138,IF($AA138='Control Panel'!$F$38,$AA138,IF($AA138='Control Panel'!$F$39,$AA138,IF($AA138='Control Panel'!$F$40,$AA138,IF($AA138='Control Panel'!$F$41,$AA138,"Error -- Availability entered in an incorrect format")))))))) -> N
A139: 127 | B139: Ability to restrict payments for manual checks greater than a user-defined threshold to require a physical signature on the check. | C139: D | F139: N/A | AB139: =IF(LEN($AA139)=0,"N",IF(LEN($AA139)>1,"Error -- Availability entered in an incorrect format",IF($AA139='Control Panel'!$F$36,$AA139,IF($AA139='Control Panel'!$F$37,$AA139,IF($AA139='Control Panel'!$F$38,$AA139,IF($AA139='Control Panel'!$F$39,$AA139,IF($AA139='Control Panel'!$F$40,$AA139,IF($AA139='Control Panel'!$F$41,$AA139,"Error -- Availability entered in an incorrect format")))))))) -> N
A140: 128 | B140: Ability to print from multiple bank accounts in the same check run. | C140: R | F140: N/A | AB140: =IF(LEN($AA140)=0,"N",IF(LEN($AA140)>1,"Error -- Availability entered in an incorrect format",IF($AA140='Control Panel'!$F$36,$AA140,IF($AA140='Control Panel'!$F$37,$AA140,IF($AA140='Control Panel'!$F$38,$AA140,IF($AA140='Control Panel'!$F$39,$AA140,IF($AA140='Control Panel'!$F$40,$AA140,IF($AA140='Control Panel'!$F$41,$AA140,"Error -- Availability entered in an incorrect format")))))))) -> N
A141: 129 | B141: Cancel Check and Reissue Process | F141: N/A | AB141: =IF(LEN($AA141)=0,"N",IF(LEN($AA141)>1,"Error -- Availability entered in an incorrect format",IF($AA141='Control Panel'!$F$36,$AA141,IF($AA141='Control Panel'!$F$37,$AA141,IF($AA141='Control Panel'!$F$38,$AA141,IF($AA141='Control Panel'!$F$39,$AA141,IF($AA141='Control Panel'!$F$40,$AA141,IF($AA141='Control Panel'!$F$41,$AA141,"Error -- Availability entered in an incorrect format")))))))) -> N
A142: 130 | B142: Ability to provide full check cancellation, where the vendor master file, general ledger distributions, outstanding checks, and accounts payable detail files are reversed in the general ledger to accommodate cancelled check. | C142: R | F142: =IF($D$10=$A$9,"N/A",$D$10) -> N/A | AA142: =TRIM($D142) ->  | AB142: =IF(LEN($AA142)=0,"N",IF(LEN($AA142)>1,"Error -- Availability entered in an incorrect format",IF($AA142='Control Panel'!$F$36,$AA142,IF($AA142='Control Panel'!$F$37,$AA142,IF($AA142='Control Panel'!$F$38,$AA142,IF($AA142='Control Panel'!$F$39,$AA142,IF($AA142='Control Panel'!$F$40,$AA142,IF($AA142='Control Panel'!$F$41,$AA142,"Error -- Availability entered in an incorrect format")))))))) -> N
A143: 131 | B143: Ability to have the option to reopen the PO when a check is cancelled. | C143: R | F143: N/A | AB143: =IF(LEN($AA143)=0,"N",IF(LEN($AA143)>1,"Error -- Availability entered in an incorrect format",IF($AA143='Control Panel'!$F$36,$AA143,IF($AA143='Control Panel'!$F$37,$AA143,IF($AA143='Control Panel'!$F$38,$AA143,IF($AA143='Control Panel'!$F$39,$AA143,IF($AA143='Control Panel'!$F$40,$AA143,IF($AA143='Control Panel'!$F$41,$AA143,"Error -- Availability entered in an incorrect format")))))))) -> N
A144: 132 | B144: A system with the ability to generate a notification when payments have been reversed. The workflow notification process must provide an audit trail of approvals that are stored with the transaction. | C144: D | F144: N/A | AB144: =IF(LEN($AA144)=0,"N",IF(LEN($AA144)>1,"Error -- Availability entered in an incorrect format",IF($AA144='Control Panel'!$F$36,$AA144,IF($AA144='Control Panel'!$F$37,$AA144,IF($AA144='Control Panel'!$F$38,$AA144,IF($AA144='Control Panel'!$F$39,$AA144,IF($AA144='Control Panel'!$F$40,$AA144,IF($AA144='Control Panel'!$F$41,$AA144,"Error -- Availability entered in an incorrect format")))))))) -> N
A145: 133 | B145: Ability, on cancelled checks, to either issue a replacement check or cancel the check with no replacement with a comment field. | C145: O | F145: N/A | AB145: =IF(LEN($AA145)=0,"N",IF(LEN($AA145)>1,"Error -- Availability entered in an incorrect format",IF($AA145='Control Panel'!$F$36,$AA145,IF($AA145='Control Panel'!$F$37,$AA145,IF($AA145='Control Panel'!$F$38,$AA145,IF($AA145='Control Panel'!$F$39,$AA145,IF($AA145='Control Panel'!$F$40,$AA145,IF($AA145='Control Panel'!$F$41,$AA145,"Error -- Availability entered in an incorrect format")))))))) -> N
A146: 134 | B146: Ability, on voided checks, to cross-reference the new check to the voided check number or a journal number. | C146: D | F146: N/A | AB146: =IF(LEN($AA146)=0,"N",IF(LEN($AA146)>1,"Error -- Availability entered in an incorrect format",IF($AA146='Control Panel'!$F$36,$AA146,IF($AA146='Control Panel'!$F$37,$AA146,IF($AA146='Control Panel'!$F$38,$AA146,IF($AA146='Control Panel'!$F$39,$AA146,IF($AA146='Control Panel'!$F$40,$AA146,IF($AA146='Control Panel'!$F$41,$AA146,"Error -- Availability entered in an incorrect format")))))))) -> N
A147: 135 | B147: Ability for check cancellation to provide the option of restoring funds back to the appropriate encumbering document, or back into the appropriate account's available budget balance, and provides the tracking of the check void on the Purchase Order transaction. | C147: R | F147: N/A | AB147: =IF(LEN($AA147)=0,"N",IF(LEN($AA147)>1,"Error -- Availability entered in an incorrect format",IF($AA147='Control Panel'!$F$36,$AA147,IF($AA147='Control Panel'!$F$37,$AA147,IF($AA147='Control Panel'!$F$38,$AA147,IF($AA147='Control Panel'!$F$39,$AA147,IF($AA147='Control Panel'!$F$40,$AA147,IF($AA147='Control Panel'!$F$41,$AA147,"Error -- Availability entered in an incorrect format")))))))) -> N
A148: 136 | B148: Ability to cancel a prior year check. | C148: R | F148: N/A | AB148: =IF(LEN($AA148)=0,"N",IF(LEN($AA148)>1,"Error -- Availability entered in an incorrect format",IF($AA148='Control Panel'!$F$36,$AA148,IF($AA148='Control Panel'!$F$37,$AA148,IF($AA148='Control Panel'!$F$38,$AA148,IF($AA148='Control Panel'!$F$39,$AA148,IF($AA148='Control Panel'!$F$40,$AA148,IF($AA148='Control Panel'!$F$41,$AA148,"Error -- Availability entered in an incorrect format")))))))) -> N
A149: 137 | B149: Ability to prompt the user if the Purchase Order should be reinstated, when performing a check void. | C149: D | F149: N/A | AB149: =IF(LEN($AA149)=0,"N",IF(LEN($AA149)>1,"Error -- Availability entered in an incorrect format",IF($AA149='Control Panel'!$F$36,$AA149,IF($AA149='Control Panel'!$F$37,$AA149,IF($AA149='Control Panel'!$F$38,$AA149,IF($AA149='Control Panel'!$F$39,$AA149,IF($AA149='Control Panel'!$F$40,$AA149,IF($AA149='Control Panel'!$F$41,$AA149,"Error -- Availability entered in an incorrect format")))))))) -> N
A150: 138 | B150: Ability to provide security measures by allowing only certain authorized personnel to reissue checks. | C150: R | F150: N/A | AB150: =IF(LEN($AA150)=0,"N",IF(LEN($AA150)>1,"Error -- Availability entered in an incorrect format",IF($AA150='Control Panel'!$F$36,$AA150,IF($AA150='Control Panel'!$F$37,$AA150,IF($AA150='Control Panel'!$F$38,$AA150,IF($AA150='Control Panel'!$F$39,$AA150,IF($AA150='Control Panel'!$F$40,$AA150,IF($AA150='Control Panel'!$F$41,$AA150,"Error -- Availability entered in an incorrect format")))))))) -> N
A151: 139 | B151: Ability to void and replace checks by: individual check, block of checks or entire check run. | C151: R | F151: N/A | AB151: =IF(LEN($AA151)=0,"N",IF(LEN($AA151)>1,"Error -- Availability entered in an incorrect format",IF($AA151='Control Panel'!$F$36,$AA151,IF($AA151='Control Panel'!$F$37,$AA151,IF($AA151='Control Panel'!$F$38,$AA151,IF($AA151='Control Panel'!$F$39,$AA151,IF($AA151='Control Panel'!$F$40,$AA151,IF($AA151='Control Panel'!$F$41,$AA151,"Error -- Availability entered in an incorrect format")))))))) -> N
A152: 140 | B152: Ability to manage the escheats process with the state. | C152: R | F152: N/A | AB152: =IF(LEN($AA152)=0,"N",IF(LEN($AA152)>1,"Error -- Availability entered in an incorrect format",IF($AA152='Control Panel'!$F$36,$AA152,IF($AA152='Control Panel'!$F$37,$AA152,IF($AA152='Control Panel'!$F$38,$AA152,IF($AA152='Control Panel'!$F$39,$AA152,IF($AA152='Control Panel'!$F$40,$AA152,IF($AA152='Control Panel'!$F$41,$AA152,"Error -- Availability entered in an incorrect format")))))))) -> N
A153: 141 | B153: 1099 Processing | F153: N/A | AB153: =IF(LEN($AA153)=0,"N",IF(LEN($AA153)>1,"Error -- Availability entered in an incorrect format",IF($AA153='Control Panel'!$F$36,$AA153,IF($AA153='Control Panel'!$F$37,$AA153,IF($AA153='Control Panel'!$F$38,$AA153,IF($AA153='Control Panel'!$F$39,$AA153,IF($AA153='Control Panel'!$F$40,$AA153,IF($AA153='Control Panel'!$F$41,$AA153,"Error -- Availability entered in an incorrect format")))))))) -> N
A154: 142 | B154: Ability to prohibit or provide warnings when a vendor without a TIN or SSN is entered, when it is required. | C154: D | F154: N/A | AB154: =IF(LEN($AA154)=0,"N",IF(LEN($AA154)>1,"Error -- Availability entered in an incorrect format",IF($AA154='Control Panel'!$F$36,$AA154,IF($AA154='Control Panel'!$F$37,$AA154,IF($AA154='Control Panel'!$F$38,$AA154,IF($AA154='Control Panel'!$F$39,$AA154,IF($AA154='Control Panel'!$F$40,$AA154,IF($AA154='Control Panel'!$F$41,$AA154,"Error -- Availability entered in an incorrect format")))))))) -> N
A155: 143 | B155: Ability to calculate and deduct backup withholding for vendors that are subject to backup withholding. | C155: D | F155: N/A | AB155: =IF(LEN($AA155)=0,"N",IF(LEN($AA155)>1,"Error -- Availability entered in an incorrect format",IF($AA155='Control Panel'!$F$36,$AA155,IF($AA155='Control Panel'!$F$37,$AA155,IF($AA155='Control Panel'!$F$38,$AA155,IF($AA155='Control Panel'!$F$39,$AA155,IF($AA155='Control Panel'!$F$40,$AA155,IF($AA155='Control Panel'!$F$41,$AA155,"Error -- Availability entered in an incorrect format")))))))) -> N
A156: 144 | B156: Ability to identify specific invoices and payments for vendors as 1099 transactions or non-1099 transactions. | C156: D | F156: N/A | AB156: =IF(LEN($AA156)=0,"N",IF(LEN($AA156)>1,"Error -- Availability entered in an incorrect format",IF($AA156='Control Panel'!$F$36,$AA156,IF($AA156='Control Panel'!$F$37,$AA156,IF($AA156='Control Panel'!$F$38,$AA156,IF($AA156='Control Panel'!$F$39,$AA156,IF($AA156='Control Panel'!$F$40,$AA156,IF($AA156='Control Panel'!$F$41,$AA156,"Error -- Availability entered in an incorrect format")))))))) -> N
A157: 145 | B157: Ability to process different types of 1099 forms. | C157: O | F157: N/A | AB157: =IF(LEN($AA157)=0,"N",IF(LEN($AA157)>1,"Error -- Availability entered in an incorrect format",IF($AA157='Control Panel'!$F$36,$AA157,IF($AA157='Control Panel'!$F$37,$AA157,IF($AA157='Control Panel'!$F$38,$AA157,IF($AA157='Control Panel'!$F$39,$AA157,IF($AA157='Control Panel'!$F$40,$AA157,IF($AA157='Control Panel'!$F$41,$AA157,"Error -- Availability entered in an incorrect format")))))))) -> N
A158: 146 | B158: Ability to access at least 5 calendar years of 1099 information online. | C158: D | F158: N/A | AB158: =IF(LEN($AA158)=0,"N",IF(LEN($AA158)>1,"Error -- Availability entered in an incorrect format",IF($AA158='Control Panel'!$F$36,$AA158,IF($AA158='Control Panel'!$F$37,$AA158,IF($AA158='Control Panel'!$F$38,$AA158,IF($AA158='Control Panel'!$F$39,$AA158,IF($AA158='Control Panel'!$F$40,$AA158,IF($AA158='Control Panel'!$F$41,$AA158,"Error -- Availability entered in an incorrect format")))))))) -> N
A159: 147 | B159: Ability to track all required information for 1099 reporting purposes with ability to make corrections (i.e. 1099 payments versus non-1099 payments, vendor information, etc.) and electronically transmit to the IRS for reporting purposes. | C159: R | F159: N/A | AB159: =IF(LEN($AA159)=0,"N",IF(LEN($AA159)>1,"Error -- Availability entered in an incorrect format",IF($AA159='Control Panel'!$F$36,$AA159,IF($AA159='Control Panel'!$F$37,$AA159,IF($AA159='Control Panel'!$F$38,$AA159,IF($AA159='Control Panel'!$F$39,$AA159,IF($AA159='Control Panel'!$F$40,$AA159,IF($AA159='Control Panel'!$F$41,$AA159,"Error -- Availability entered in an incorrect format")))))))) -> N
A160: 148 | B160: Ability to provide updates to annual 1099 forms, IRS file formats, etc. Should be provided with the annual software maintenance agreement. | C160: R | F160: N/A | AB160: =IF(LEN($AA160)=0,"N",IF(LEN($AA160)>1,"Error -- Availability entered in an incorrect format",IF($AA160='Control Panel'!$F$36,$AA160,IF($AA160='Control Panel'!$F$37,$AA160,IF($AA160='Control Panel'!$F$38,$AA160,IF($AA160='Control Panel'!$F$39,$AA160,IF($AA160='Control Panel'!$F$40,$AA160,IF($AA160='Control Panel'!$F$41,$AA160,"Error -- Availability entered in an incorrect format")))))))) -> N
A161: 149 | B161: Ability to generate necessary analysis reporting for 1099 generation purposes (summary and invoice detail history sorted by tax ID, Report combining multiple vendors with same tax ID). | C161: R | F161: N/A | AB161: =IF(LEN($AA161)=0,"N",IF(LEN($AA161)>1,"Error -- Availability entered in an incorrect format",IF($AA161='Control Panel'!$F$36,$AA161,IF($AA161='Control Panel'!$F$37,$AA161,IF($AA161='Control Panel'!$F$38,$AA161,IF($AA161='Control Panel'!$F$39,$AA161,IF($AA161='Control Panel'!$F$40,$AA161,IF($AA161='Control Panel'!$F$41,$AA161,"Error -- Availability entered in an incorrect format")))))))) -> N
A162: 150 | B162: Ability to print 1099 information and the related forms only for vendors with payments in excess of the designated IRS amount. | C162: R | F162: N/A | AB162: =IF(LEN($AA162)=0,"N",IF(LEN($AA162)>1,"Error -- Availability entered in an incorrect format",IF($AA162='Control Panel'!$F$36,$AA162,IF($AA162='Control Panel'!$F$37,$AA162,IF($AA162='Control Panel'!$F$38,$AA162,IF($AA162='Control Panel'!$F$39,$AA162,IF($AA162='Control Panel'!$F$40,$AA162,IF($AA162='Control Panel'!$F$41,$AA162,"Error -- Availability entered in an incorrect format")))))))) -> N
A163: 151 | B163: Ability to print on demand, SINGLE 1099 information and the related form for SINGLE vendor regardless of dollar amount. | C163: R | F163: N/A | AB163: =IF(LEN($AA163)=0,"N",IF(LEN($AA163)>1,"Error -- Availability entered in an incorrect format",IF($AA163='Control Panel'!$F$36,$AA163,IF($AA163='Control Panel'!$F$37,$AA163,IF($AA163='Control Panel'!$F$38,$AA163,IF($AA163='Control Panel'!$F$39,$AA163,IF($AA163='Control Panel'!$F$40,$AA163,IF($AA163='Control Panel'!$F$41,$AA163,"Error -- Availability entered in an incorrect format")))))))) -> N
A164: 152 | B164: Ability to view a 1099 report that identifies vendors that have been associated with a 1099 status but do not have complete 1099 information. | C164: D | F164: N/A | AB164: =IF(LEN($AA164)=0,"N",IF(LEN($AA164)>1,"Error -- Availability entered in an incorrect format",IF($AA164='Control Panel'!$F$36,$AA164,IF($AA164='Control Panel'!$F$37,$AA164,IF($AA164='Control Panel'!$F$38,$AA164,IF($AA164='Control Panel'!$F$39,$AA164,IF($AA164='Control Panel'!$F$40,$AA164,IF($AA164='Control Panel'!$F$41,$AA164,"Error -- Availability entered in an incorrect format")))))))) -> N
A165: 153 | B165: Ability to default 1099 codes based on the general ledger account code. | C165: O | F165: N/A | AB165: =IF(LEN($AA165)=0,"N",IF(LEN($AA165)>1,"Error -- Availability entered in an incorrect format",IF($AA165='Control Panel'!$F$36,$AA165,IF($AA165='Control Panel'!$F$37,$AA165,IF($AA165='Control Panel'!$F$38,$AA165,IF($AA165='Control Panel'!$F$39,$AA165,IF($AA165='Control Panel'!$F$40,$AA165,IF($AA165='Control Panel'!$F$41,$AA165,"Error -- Availability entered in an incorrect format")))))))) -> N
A166: 154 | B166: Reporting | F166: N/A | AB166: =IF(LEN($AA166)=0,"N",IF(LEN($AA166)>1,"Error -- Availability entered in an incorrect format",IF($AA166='Control Panel'!$F$36,$AA166,IF($AA166='Control Panel'!$F$37,$AA166,IF($AA166='Control Panel'!$F$38,$AA166,IF($AA166='Control Panel'!$F$39,$AA166,IF($AA166='Control Panel'!$F$40,$AA166,IF($AA166='Control Panel'!$F$41,$AA166,"Error -- Availability entered in an incorrect format")))))))) -> N
A167: 155 | B167: A system with the ability to track and report payments by department, by vendor, by account distribution, by check or ACH number, by date and by amount. | C167: R | F167: N/A | AB167: =IF(LEN($AA167)=0,"N",IF(LEN($AA167)>1,"Error -- Availability entered in an incorrect format",IF($AA167='Control Panel'!$F$36,$AA167,IF($AA167='Control Panel'!$F$37,$AA167,IF($AA167='Control Panel'!$F$38,$AA167,IF($AA167='Control Panel'!$F$39,$AA167,IF($AA167='Control Panel'!$F$40,$AA167,IF($AA167='Control Panel'!$F$41,$AA167,"Error -- Availability entered in an incorrect format")))))))) -> N
A168: 156 | B168: Ability to automatically generate performance measures on the AP process (e.g., number of errors on invoice entry, time to process an invoice, etc.). | C168: D | F168: N/A | AB168: =IF(LEN($AA168)=0,"N",IF(LEN($AA168)>1,"Error -- Availability entered in an incorrect format",IF($AA168='Control Panel'!$F$36,$AA168,IF($AA168='Control Panel'!$F$37,$AA168,IF($AA168='Control Panel'!$F$38,$AA168,IF($AA168='Control Panel'!$F$39,$AA168,IF($AA168='Control Panel'!$F$40,$AA168,IF($AA168='Control Panel'!$F$41,$AA168,"Error -- Availability entered in an incorrect format")))))))) -> N
A169: 157 | B169: Ability to allow P-card data to be defined (including who has possession of card). | C169: D | F169: N/A | AB169: =IF(LEN($AA169)=0,"N",IF(LEN($AA169)>1,"Error -- Availability entered in an incorrect format",IF($AA169='Control Panel'!$F$36,$AA169,IF($AA169='Control Panel'!$F$37,$AA169,IF($AA169='Control Panel'!$F$38,$AA169,IF($AA169='Control Panel'!$F$39,$AA169,IF($AA169='Control Panel'!$F$40,$AA169,IF($AA169='Control Panel'!$F$41,$AA169,"Error -- Availability entered in an incorrect format")))))))) -> N
A170: 158 | B170: Ability of the system to include full drill-down capabilities from summary levels to detail levels for vendor, encumbrance and invoice/payment information. | C170: R | F170: N/A | AB170: =IF(LEN($AA170)=0,"N",IF(LEN($AA170)>1,"Error -- Availability entered in an incorrect format",IF($AA170='Control Panel'!$F$36,$AA170,IF($AA170='Control Panel'!$F$37,$AA170,IF($AA170='Control Panel'!$F$38,$AA170,IF($AA170='Control Panel'!$F$39,$AA170,IF($AA170='Control Panel'!$F$40,$AA170,IF($AA170='Control Panel'!$F$41,$AA170,"Error -- Availability entered in an incorrect format")))))))) -> N
A171: 159 | B171: Ability to perform ad hoc reporting. | C171: R | F171: N/A | AB171: =IF(LEN($AA171)=0,"N",IF(LEN($AA171)>1,"Error -- Availability entered in an incorrect format",IF($AA171='Control Panel'!$F$36,$AA171,IF($AA171='Control Panel'!$F$37,$AA171,IF($AA171='Control Panel'!$F$38,$AA171,IF($AA171='Control Panel'!$F$39,$AA171,IF($AA171='Control Panel'!$F$40,$AA171,IF($AA171='Control Panel'!$F$41,$AA171,"Error -- Availability entered in an incorrect format")))))))) -> N
A172: 160 | B172: Ability to define specific search criteria (summary and detail) and limits while performing an inquiry. | C172: R | F172: N/A | AB172: =IF(LEN($AA172)=0,"N",IF(LEN($AA172)>1,"Error -- Availability entered in an incorrect format",IF($AA172='Control Panel'!$F$36,$AA172,IF($AA172='Control Panel'!$F$37,$AA172,IF($AA172='Control Panel'!$F$38,$AA172,IF($AA172='Control Panel'!$F$39,$AA172,IF($AA172='Control Panel'!$F$40,$AA172,IF($AA172='Control Panel'!$F$41,$AA172,"Error -- Availability entered in an incorrect format")))))))) -> N
A173: 161 | B173: Ability for departments to print their own reports. | C173: R | F173: N/A | AB173: =IF(LEN($AA173)=0,"N",IF(LEN($AA173)>1,"Error -- Availability entered in an incorrect format",IF($AA173='Control Panel'!$F$36,$AA173,IF($AA173='Control Panel'!$F$37,$AA173,IF($AA173='Control Panel'!$F$38,$AA173,IF($AA173='Control Panel'!$F$39,$AA173,IF($AA173='Control Panel'!$F$40,$AA173,IF($AA173='Control Panel'!$F$41,$AA173,"Error -- Availability entered in an incorrect format")))))))) -> N
A174: 162 | B174: Ability to print a Capital Asset Expenditure report which includes daily reporting from Accounts Payable to show those assets that were coded towards capital accounts. | C174: R | F174: N/A | AB174: =IF(LEN($AA174)=0,"N",IF(LEN($AA174)>1,"Error -- Availability entered in an incorrect format",IF($AA174='Control Panel'!$F$36,$AA174,IF($AA174='Control Panel'!$F$37,$AA174,IF($AA174='Control Panel'!$F$38,$AA174,IF($AA174='Control Panel'!$F$39,$AA174,IF($AA174='Control Panel'!$F$40,$AA174,IF($AA174='Control Panel'!$F$41,$AA174,"Error -- Availability entered in an incorrect format")))))))) -> N
A175: 163 | B175: Ability to provide document history retrieval linking requisitions to purchase orders, invoices, and checks. | C175: R | F175: N/A | AB175: =IF(LEN($AA175)=0,"N",IF(LEN($AA175)>1,"Error -- Availability entered in an incorrect format",IF($AA175='Control Panel'!$F$36,$AA175,IF($AA175='Control Panel'!$F$37,$AA175,IF($AA175='Control Panel'!$F$38,$AA175,IF($AA175='Control Panel'!$F$39,$AA175,IF($AA175='Control Panel'!$F$40,$AA175,IF($AA175='Control Panel'!$F$41,$AA175,"Error -- Availability entered in an incorrect format")))))))) -> N
A176: 164 | B176: Link payments in AP which update other modules (i.e. inventory, fixed assets, grant reporting). | C176: R | F176: N/A | AB176: =IF(LEN($AA176)=0,"N",IF(LEN($AA176)>1,"Error -- Availability entered in an incorrect format",IF($AA176='Control Panel'!$F$36,$AA176,IF($AA176='Control Panel'!$F$37,$AA176,IF($AA176='Control Panel'!$F$38,$AA176,IF($AA176='Control Panel'!$F$39,$AA176,IF($AA176='Control Panel'!$F$40,$AA176,IF($AA176='Control Panel'!$F$41,$AA176,"Error -- Availability entered in an incorrect format")))))))) -> N
A177: 165 | B177: Ability to view a Check Register for multiple accounts, which contains a cumulative list of all checks issued, including those later canceled, and must be updateable with information received electronically from the bank. | C177: D | F177: N/A | AB177: =IF(LEN($AA177)=0,"N",IF(LEN($AA177)>1,"Error -- Availability entered in an incorrect format",IF($AA177='Control Panel'!$F$36,$AA177,IF($AA177='Control Panel'!$F$37,$AA177,IF($AA177='Control Panel'!$F$38,$AA177,IF($AA177='Control Panel'!$F$39,$AA177,IF($AA177='Control Panel'!$F$40,$AA177,IF($AA177='Control Panel'!$F$41,$AA177,"Error -- Availability entered in an incorrect format")))))))) -> N
A178: 166 | B178: Ability to view Check Register daily to certify check funds. | C178: R | F178: N/A | AB178: =IF(LEN($AA178)=0,"N",IF(LEN($AA178)>1,"Error -- Availability entered in an incorrect format",IF($AA178='Control Panel'!$F$36,$AA178,IF($AA178='Control Panel'!$F$37,$AA178,IF($AA178='Control Panel'!$F$38,$AA178,IF($AA178='Control Panel'!$F$39,$AA178,IF($AA178='Control Panel'!$F$40,$AA178,IF($AA178='Control Panel'!$F$41,$AA178,"Error -- Availability entered in an incorrect format")))))))) -> N
A179: 167 | B179: Ability to view a Check Register for multiple payment methods i.e. garnishments, welfare. | C179: D | F179: N/A | AB179: =IF(LEN($AA179)=0,"N",IF(LEN($AA179)>1,"Error -- Availability entered in an incorrect format",IF($AA179='Control Panel'!$F$36,$AA179,IF($AA179='Control Panel'!$F$37,$AA179,IF($AA179='Control Panel'!$F$38,$AA179,IF($AA179='Control Panel'!$F$39,$AA179,IF($AA179='Control Panel'!$F$40,$AA179,IF($AA179='Control Panel'!$F$41,$AA179,"Error -- Availability entered in an incorrect format")))))))) -> N
A180: 168 | B180: Ability to view Check Register with full VOID dollar amount not zero as is current. | C180: D | F180: N/A | AB180: =IF(LEN($AA180)=0,"N",IF(LEN($AA180)>1,"Error -- Availability entered in an incorrect format",IF($AA180='Control Panel'!$F$36,$AA180,IF($AA180='Control Panel'!$F$37,$AA180,IF($AA180='Control Panel'!$F$38,$AA180,IF($AA180='Control Panel'!$F$39,$AA180,IF($AA180='Control Panel'!$F$40,$AA180,IF($AA180='Control Panel'!$F$41,$AA180,"Error -- Availability entered in an incorrect format")))))))) -> N
A181: 169 | B181: Ability to designate a workflow substitute that is easily identified (to locate the current approver when staff are out of the office). | C181: R | F181: N/A | AB181: =IF(LEN($AA181)=0,"N",IF(LEN($AA181)>1,"Error -- Availability entered in an incorrect format",IF($AA181='Control Panel'!$F$36,$AA181,IF($AA181='Control Panel'!$F$37,$AA181,IF($AA181='Control Panel'!$F$38,$AA181,IF($AA181='Control Panel'!$F$39,$AA181,IF($AA181='Control Panel'!$F$40,$AA181,IF($AA181='Control Panel'!$F$41,$AA181,"Error -- Availability entered in an incorrect format")))))))) -> N

Sheet Bank Reconciliation
A1: ='Accounts Payable'!A1 -> Replace this text with vendor name in the first module.
A2: ='Accounts Payable'!A2 -> Code | B2: ='Accounts Payable'!B2 -> Availability Definition | C2: ='Accounts Payable'!C2 -> 0 | D2: ='Accounts Payable'!D2 -> 0 | E2: ='Accounts Payable'!E2 -> 0 | G2: ='Accounts Payable'!G2 -> 0 | AB2: Count: | AC2: =SUBTOTAL(3,A13:A53) -> 41
A3: ='Control Panel'!F36 -> Y | B3: ='Control Panel'!H36 -> Functionality is provided out of the box through the completion of a task associated with a routine configurable area that includes, but is not limited to, user-defined fields, delivered or configurable workflows, alerts or notifications, standard import/export, table driven setups and standard reports with no changes. These configuration areas will not be affected by a future upgrade. The proposed services include implementation and training on this functionality, unless specifically excluded in the Statement of Work, as part of the deployment of the solution.
A4: ='Control Panel'!F37 -> R | B4: ='Control Panel'!H37 -> Functionality is provided through reports generated using proposed Reporting Tools.
A5: ='Control Panel'!F38 -> T | B5: ='Control Panel'!H38 -> Functionality is provided by proposed third party functionality (i.e., third party is defined as a separate software vendor from the primary software vendor). The pricing of all third party products that provide this functionality MUST be included in the cost proposal.
A6: ='Control Panel'!F39 -> M | B6: ='Control Panel'!H39 -> Functionality is provided through customization to the application, including creation of a new workflow or development of a custom interface, that may have an impact on future upgradability.
A7: ='Control Panel'!F40 -> F | B7: ='Control Panel'!H40 -> Functionality is provided through a future general availability (GA) release that is scheduled to occur within 1 year of the proposal response.
A8: ='Control Panel'!F41 -> N | B8: ='Control Panel'!H41 -> Functionality is not provided.
A9: ='Control Panel'!I25 -> Replace this text with the primary product name(s) which satisfy requirements.
A10: ='Control Panel'!F48&" - "&'Control Panel'!E48 -> 4.3 - Bank Reconciliation | D10: =A9 -> Replace this text with the primary product name(s) which satisfy requirements.
A11: Objective: To provide automation with the bank reconciliation process including outgoing City payments, incoming deposits and providing for the inclusion of adjustments by full integration to other modules. | AA11: (note: if errors exist look through column AB to identify)
A12: ='Accounts Payable'!A12 -> Number | B12: ='Accounts Payable'!B12 -> Application Requirements | C12: ='Accounts Payable'!C12 -> Priority | D12: ='Accounts Payable'!D12 -> Availability | E12: ='Accounts Payable'!E12 -> Cost | F12: ='Accounts Payable'!F12 -> Required Product(s) | G12: ='Accounts Payable'!G12 -> Comments | AA12: # of Errors: | AC12: =COUNTIF(AB:AB,"Error -- Availability entered in an incorrect format") -> 0
A13: 1 | B13: General Information | F13: =IF($D$10=$A$9,"N/A",$D$10) -> N/A | AA13: =TRIM($D13) ->  | AB13: =IF(LEN($AA13)=0,"N",IF(LEN($AA13)>1,"Error -- Availability entered in an incorrect format",IF($AA13='Control Panel'!$F$36,$AA13,IF($AA13='Control Panel'!$F$37,$AA13,IF($AA13='Control Panel'!$F$38,$AA13,IF($AA13='Control Panel'!$F$39,$AA13,IF($AA13='Control Panel'!$F$40,$AA13,IF($AA13='Control Panel'!$F$41,$AA13,"Error -- Availability entered in an incorrect format")))))))) -> N
A14: 2 | B14: Ability to identify multiple cash accounts. | C14: R | F14: =IF($D$10=$A$9,"N/A",$D$10) -> N/A | AA14: =TRIM($D14) ->  | AB14: =IF(LEN($AA14)=0,"N",IF(LEN($AA14)>1,"Error -- Availability entered in an incorrect format",IF($AA14='Control Panel'!$F$36,$AA14,IF($AA14='Control Panel'!$F$37,$AA14,IF($AA14='Control Panel'!$F$38,$AA14,IF($AA14='Control Panel'!$F$39,$AA14,IF($AA14='Control Panel'!$F$40,$AA14,IF($AA14='Control Panel'!$F$41,$AA14,"Error -- Availability entered in an incorrect format")))))))) -> N
A15: 3 | B15: Ability to associate the cash account with a project. | C15: D | F15: N/A | AB15: =IF(LEN($AA15)=0,"N",IF(LEN($AA15)>1,"Error -- Availability entered in an incorrect format",IF($AA15='Control Panel'!$F$36,$AA15,IF($AA15='Control Panel'!$F$37,$AA15,IF($AA15='Control Panel'!$F$38,$AA15,IF($AA15='Control Panel'!$F$39,$AA15,IF($AA15='Control Panel'!$F$40,$AA15,IF($AA15='Control Panel'!$F$41,$AA15,"Error -- Availability entered in an incorrect format")))))))) -> N
A16: 4 | B16: Ability to capture the type of payment (cash, check, ACH, wire, credit card) when reconciling on both deposits and withdrawals. | C16: R | F16: N/A | AB16: =IF(LEN($AA16)=0,"N",IF(LEN($AA16)>1,"Error -- Availability entered in an incorrect format",IF($AA16='Control Panel'!$F$36,$AA16,IF($AA16='Control Panel'!$F$37,$AA16,IF($AA16='Control Panel'!$F$38,$AA16,IF($AA16='Control Panel'!$F$39,$AA16,IF($AA16='Control Panel'!$F$40,$AA16,IF($AA16='Control Panel'!$F$41,$AA16,"Error -- Availability entered in an incorrect format")))))))) -> N
A17: 5 | B17: Ability to separately deposit and reconcile credit cards by Visa/MasterCard/Discover and American Express. | C17: D | F17: N/A | AB17: =IF(LEN($AA17)=0,"N",IF(LEN($AA17)>1,"Error -- Availability entered in an incorrect format",IF($AA17='Control Panel'!$F$36,$AA17,IF($AA17='Control Panel'!$F$37,$AA17,IF($AA17='Control Panel'!$F$38,$AA17,IF($AA17='Control Panel'!$F$39,$AA17,IF($AA17='Control Panel'!$F$40,$AA17,IF($AA17='Control Panel'!$F$41,$AA17,"Error -- Availability entered in an incorrect format")))))))) -> N
A18: 6 | B18: Ability to import a list of cleared checks from the bank for each account. | C18: R | F18: N/A | AB18: =IF(LEN($AA18)=0,"N",IF(LEN($AA18)>1,"Error -- Availability entered in an incorrect format",IF($AA18='Control Panel'!$F$36,$AA18,IF($AA18='Control Panel'!$F$37,$AA18,IF($AA18='Control Panel'!$F$38,$AA18,IF($AA18='Control Panel'!$F$39,$AA18,IF($AA18='Control Panel'!$F$40,$AA18,IF($AA18='Control Panel'!$F$41,$AA18,"Error -- Availability entered in an incorrect format")))))))) -> N
A19: 7 | B19: Ability to manually indicate that a check has been cashed and make corrections with an audit trail. | C19: D | F19: N/A | AB19: =IF(LEN($AA19)=0,"N",IF(LEN($AA19)>1,"Error -- Availability entered in an incorrect format",IF($AA19='Control Panel'!$F$36,$AA19,IF($AA19='Control Panel'!$F$37,$AA19,IF($AA19='Control Panel'!$F$38,$AA19,IF($AA19='Control Panel'!$F$39,$AA19,IF($AA19='Control Panel'!$F$40,$AA19,IF($AA19='Control Panel'!$F$41,$AA19,"Error -- Availability entered in an incorrect format")))))))) -> N
A20: 8 | B20: Ability to cancel checks by batch or check number range. | C20: R | F20: N/A | AB20: =IF(LEN($AA20)=0,"N",IF(LEN($AA20)>1,"Error -- Availability entered in an incorrect format",IF($AA20='Control Panel'!$F$36,$AA20,IF($AA20='Control Panel'!$F$37,$AA20,IF($AA20='Control Panel'!$F$38,$AA20,IF($AA20='Control Panel'!$F$39,$AA20,IF($AA20='Control Panel'!$F$40,$AA20,IF($AA20='Control Panel'!$F$41,$AA20,"Error -- Availability entered in an incorrect format")))))))) -> N
A21: 9 | B21: Ability to use drill-down capabilities to see if a check has been issued/cleared for a specified account and originating transaction documentation via a document management program. | C21: R | F21: N/A | AB21: =IF(LEN($AA21)=0,"N",IF(LEN($AA21)>1,"Error -- Availability entered in an incorrect format",IF($AA21='Control Panel'!$F$36,$AA21,IF($AA21='Control Panel'!$F$37,$AA21,IF($AA21='Control Panel'!$F$38,$AA21,IF($AA21='Control Panel'!$F$39,$AA21,IF($AA21='Control Panel'!$F$40,$AA21,IF($AA21='Control Panel'!$F$41,$AA21,"Error -- Availability entered in an incorrect format")))))))) -> N
A22: 10 | B22: Ability to track manual check issues, voids and replacements and original dollar amount of voided check. | C22: R | F22: N/A | AB22: =IF(LEN($AA22)=0,"N",IF(LEN($AA22)>1,"Error -- Availability entered in an incorrect format",IF($AA22='Control Panel'!$F$36,$AA22,IF($AA22='Control Panel'!$F$37,$AA22,IF($AA22='Control Panel'!$F$38,$AA22,IF($AA22='Control Panel'!$F$39,$AA22,IF($AA22='Control Panel'!$F$40,$AA22,IF($AA22='Control Panel'!$F$41,$AA22,"Error -- Availability entered in an incorrect format")))))))) -> N
A23: 11 | B23: Ability to notify, track and monitor the resolution of adjustments that need to be made as a result of an error identified within bank reconciliation. | C23: D | F23: N/A | AB23: =IF(LEN($AA23)=0,"N",IF(LEN($AA23)>1,"Error -- Availability entered in an incorrect format",IF($AA23='Control Panel'!$F$36,$AA23,IF($AA23='Control Panel'!$F$37,$AA23,IF($AA23='Control Panel'!$F$38,$AA23,IF($AA23='Control Panel'!$F$39,$AA23,IF($AA23='Control Panel'!$F$40,$AA23,IF($AA23='Control Panel'!$F$41,$AA23,"Error -- Availability entered in an incorrect format")))))))) -> N
A24: 12 | B24: Ability to enter adjustments through a journal voucher with proper authorization. | C24: R | F24: N/A | AB24: =IF(LEN($AA24)=0,"N",IF(LEN($AA24)>1,"Error -- Availability entered in an incorrect format",IF($AA24='Control Panel'!$F$36,$AA24,IF($AA24='Control Panel'!$F$37,$AA24,IF($AA24='Control Panel'!$F$38,$AA24,IF($AA24='Control Panel'!$F$39,$AA24,IF($AA24='Control Panel'!$F$40,$AA24,IF($AA24='Control Panel'!$F$41,$AA24,"Error -- Availability entered in an incorrect format")))))))) -> N
A25: 13 | B25: Ability to account for missing checks due to issues with printing and $0 checks. | C25: R | F25: N/A | AB25: =IF(LEN($AA25)=0,"N",IF(LEN($AA25)>1,"Error -- Availability entered in an incorrect format",IF($AA25='Control Panel'!$F$36,$AA25,IF($AA25='Control Panel'!$F$37,$AA25,IF($AA25='Control Panel'!$F$38,$AA25,IF($AA25='Control Panel'!$F$39,$AA25,IF($AA25='Control Panel'!$F$40,$AA25,IF($AA25='Control Panel'!$F$41,$AA25,"Error -- Availability entered in an incorrect format")))))))) -> N
A26: 14 | B26: Ability to access data for duration of required 7-year retention period. | C26: R | F26: N/A | AB26: =IF(LEN($AA26)=0,"N",IF(LEN($AA26)>1,"Error -- Availability entered in an incorrect format",IF($AA26='Control Panel'!$F$36,$AA26,IF($AA26='Control Panel'!$F$37,$AA26,IF($AA26='Control Panel'!$F$38,$AA26,IF($AA26='Control Panel'!$F$39,$AA26,IF($AA26='Control Panel'!$F$40,$AA26,IF($AA26='Control Panel'!$F$41,$AA26,"Error -- Availability entered in an incorrect format")))))))) -> N
A27: 15 | B27: Ability to track user performing the reconciliation | C27: R | F27: N/A | AB27: =IF(LEN($AA27)=0,"N",IF(LEN($AA27)>1,"Error -- Availability entered in an incorrect format",IF($AA27='Control Panel'!$F$36,$AA27,IF($AA27='Control Panel'!$F$37,$AA27,IF($AA27='Control Panel'!$F$38,$AA27,IF($AA27='Control Panel'!$F$39,$AA27,IF($AA27='Control Panel'!$F$40,$AA27,IF($AA27='Control Panel'!$F$41,$AA27,"Error -- Availability entered in an incorrect format")))))))) -> N
A28: 16 | B28: System Processes | F28: N/A | AB28: =IF(LEN($AA28)=0,"N",IF(LEN($AA28)>1,"Error -- Availability entered in an incorrect format",IF($AA28='Control Panel'!$F$36,$AA28,IF($AA28='Control Panel'!$F$37,$AA28,IF($AA28='Control Panel'!$F$38,$AA28,IF($AA28='Control Panel'!$F$39,$AA28,IF($AA28='Control Panel'!$F$40,$AA28,IF($AA28='Control Panel'!$F$41,$AA28,"Error -- Availability entered in an incorrect format")))))))) -> N
A29: 17 | B29: Ability to export data into spreadsheets, text files, word documents. | C29: R | F29: N/A | AB29: =IF(LEN($AA29)=0,"N",IF(LEN($AA29)>1,"Error -- Availability entered in an incorrect format",IF($AA29='Control Panel'!$F$36,$AA29,IF($AA29='Control Panel'!$F$37,$AA29,IF($AA29='Control Panel'!$F$38,$AA29,IF($AA29='Control Panel'!$F$39,$AA29,IF($AA29='Control Panel'!$F$40,$AA29,IF($AA29='Control Panel'!$F$41,$AA29,"Error -- Availability entered in an incorrect format")))))))) -> N
A30: 18 | B30: Ability to manage unclaimed/stale dated checks. | C30: R | F30: N/A | AB30: =IF(LEN($AA30)=0,"N",IF(LEN($AA30)>1,"Error -- Availability entered in an incorrect format",IF($AA30='Control Panel'!$F$36,$AA30,IF($AA30='Control Panel'!$F$37,$AA30,IF($AA30='Control Panel'!$F$38,$AA30,IF($AA30='Control Panel'!$F$39,$AA30,IF($AA30='Control Panel'!$F$40,$AA30,IF($AA30='Control Panel'!$F$41,$AA30,"Error -- Availability entered in an incorrect format")))))))) -> N
A31: 19 | B31: Ability to accept paid check image file from bank which will update the appropriate sub-system (check register) in the relevant area. | C31: D | F31: N/A | AB31: =IF(LEN($AA31)=0,"N",IF(LEN($AA31)>1,"Error -- Availability entered in an incorrect format",IF($AA31='Control Panel'!$F$36,$AA31,IF($AA31='Control Panel'!$F$37,$AA31,IF($AA31='Control Panel'!$F$38,$AA31,IF($AA31='Control Panel'!$F$39,$AA31,IF($AA31='Control Panel'!$F$40,$AA31,IF($AA31='Control Panel'!$F$41,$AA31,"Error -- Availability entered in an incorrect format")))))))) -> N
A32: 20 | B32: Ability to identify and replace lost checks and reflect new check numbers (interface information from sub-modules). | C32: R | F32: N/A | AB32: =IF(LEN($AA32)=0,"N",IF(LEN($AA32)>1,"Error -- Availability entered in an incorrect format",IF($AA32='Control Panel'!$F$36,$AA32,IF($AA32='Control Panel'!$F$37,$AA32,IF($AA32='Control Panel'!$F$38,$AA32,IF($AA32='Control Panel'!$F$39,$AA32,IF($AA32='Control Panel'!$F$40,$AA32,IF($AA32='Control Panel'!$F$41,$AA32,"Error -- Availability entered in an incorrect format")))))))) -> N
A33: 21 | B33: Ability to track check status including outstanding, cleared, stale-dated, replaced, returned and voided. | C33: R | F33: N/A | AB33: =IF(LEN($AA33)=0,"N",IF(LEN($AA33)>1,"Error -- Availability entered in an incorrect format",IF($AA33='Control Panel'!$F$36,$AA33,IF($AA33='Control Panel'!$F$37,$AA33,IF($AA33='Control Panel'!$F$38,$AA33,IF($AA33='Control Panel'!$F$39,$AA33,IF($AA33='Control Panel'!$F$40,$AA33,IF($AA33='Control Panel'!$F$41,$AA33,"Error -- Availability entered in an incorrect format")))))))) -> N
A34: 22 | B34: Ability to execute a process to remove stale dated checks from the list of outstanding checks and create the corresponding journal entry. | C34: R | F34: N/A | AB34: =IF(LEN($AA34)=0,"N",IF(LEN($AA34)>1,"Error -- Availability entered in an incorrect format",IF($AA34='Control Panel'!$F$36,$AA34,IF($AA34='Control Panel'!$F$37,$AA34,IF($AA34='Control Panel'!$F$38,$AA34,IF($AA34='Control Panel'!$F$39,$AA34,IF($AA34='Control Panel'!$F$40,$AA34,IF($AA34='Control Panel'!$F$41,$AA34,"Error -- Availability entered in an incorrect format")))))))) -> N
A35: 23 | B35: System Interfaces - it is assumed that the vendor solution is a fully integrated ERP and the modules within the solution are seamlessly integrated | F35: N/A | AB35: =IF(LEN($AA35)=0,"N",IF(LEN($AA35)>1,"Error -- Availability entered in an incorrect format",IF($AA35='Control Panel'!$F$36,$AA35,IF($AA35='Control Panel'!$F$37,$AA35,IF($AA35='Control Panel'!$F$38,$AA35,IF($AA35='Control Panel'!$F$39,$AA35,IF($AA35='Control Panel'!$F$40,$AA35,IF($AA35='Control Panel'!$F$41,$AA35,"Error -- Availability entered in an incorrect format")))))))) -> N
A36: 24 | B36: Ability to import/download bank item activity (BAI transmission) from Financial Institution. | C36: R | F36: N/A | AB36: =IF(LEN($AA36)=0,"N",IF(LEN($AA36)>1,"Error -- Availability entered in an incorrect format",IF($AA36='Control Panel'!$F$36,$AA36,IF($AA36='Control Panel'!$F$37,$AA36,IF($AA36='Control Panel'!$F$38,$AA36,IF($AA36='Control Panel'!$F$39,$AA36,IF($AA36='Control Panel'!$F$40,$AA36,IF($AA36='Control Panel'!$F$41,$AA36,"Error -- Availability entered in an incorrect format")))))))) -> N
A37: 25 | B37: Ability to import any type of payment (i.e., cash, check, ACH, Wire, credit card) from the bank for a from/through date range. | C37: R | F37: N/A | AB37: =IF(LEN($AA37)=0,"N",IF(LEN($AA37)>1,"Error -- Availability entered in an incorrect format",IF($AA37='Control Panel'!$F$36,$AA37,IF($AA37='Control Panel'!$F$37,$AA37,IF($AA37='Control Panel'!$F$38,$AA37,IF($AA37='Control Panel'!$F$39,$AA37,IF($AA37='Control Panel'!$F$40,$AA37,IF($AA37='Control Panel'!$F$41,$AA37,"Error -- Availability entered in an incorrect format")))))))) -> N
A38: 26 | B38: Ability to create automated postings for repetitive imported bank transactions such as ZBA internal transfers (i.e., recurring journal entries with varying dollar amounts based on an original financial institution import, to self-clear a ZBA account). | C38: O | F38: N/A | AB38: =IF(LEN($AA38)=0,"N",IF(LEN($AA38)>1,"Error -- Availability entered in an incorrect format",IF($AA38='Control Panel'!$F$36,$AA38,IF($AA38='Control Panel'!$F$37,$AA38,IF($AA38='Control Panel'!$F$38,$AA38,IF($AA38='Control Panel'!$F$39,$AA38,IF($AA38='Control Panel'!$F$40,$AA38,IF($AA38='Control Panel'!$F$41,$AA38,"Error -- Availability entered in an incorrect format")))))))) -> N
A39: 27 | B39: Ability to perform clearing transactions to match imported bank items to journal entries. | C39: D | F39: N/A | AB39: =IF(LEN($AA39)=0,"N",IF(LEN($AA39)>1,"Error -- Availability entered in an incorrect format",IF($AA39='Control Panel'!$F$36,$AA39,IF($AA39='Control Panel'!$F$37,$AA39,IF($AA39='Control Panel'!$F$38,$AA39,IF($AA39='Control Panel'!$F$39,$AA39,IF($AA39='Control Panel'!$F$40,$AA39,IF($AA39='Control Panel'!$F$41,$AA39,"Error -- Availability entered in an incorrect format")))))))) -> N
A40: 28 | B40: Ability to perform automated clearing transactions between general ledger accounts (i.e., zeroing-out and/or matching balances). | C40: D | F40: N/A | AB40: =IF(LEN($AA40)=0,"N",IF(LEN($AA40)>1,"Error -- Availability entered in an incorrect format",IF($AA40='Control Panel'!$F$36,$AA40,IF($AA40='Control Panel'!$F$37,$AA40,IF($AA40='Control Panel'!$F$38,$AA40,IF($AA40='Control Panel'!$F$39,$AA40,IF($AA40='Control Panel'!$F$40,$AA40,IF($AA40='Control Panel'!$F$41,$AA40,"Error -- Availability entered in an incorrect format")))))))) -> N
A41: 29 | B41: Ability to reset/correct clearing transactions for bank items and journal entries. | C41: D | F41: N/A | AB41: =IF(LEN($AA41)=0,"N",IF(LEN($AA41)>1,"Error -- Availability entered in an incorrect format",IF($AA41='Control Panel'!$F$36,$AA41,IF($AA41='Control Panel'!$F$37,$AA41,IF($AA41='Control Panel'!$F$38,$AA41,IF($AA41='Control Panel'!$F$39,$AA41,IF($AA41='Control Panel'!$F$40,$AA41,IF($AA41='Control Panel'!$F$41,$AA41,"Error -- Availability entered in an incorrect format")))))))) -> N
A42: 30 | B42: Ability to provide an interface from Cash Receipts module that includes daily deposits by payment type by location for reconciliation purposes. | C42: R | F42: N/A | AB42: =IF(LEN($AA42)=0,"N",IF(LEN($AA42)>1,"Error -- Availability entered in an incorrect format",IF($AA42='Control Panel'!$F$36,$AA42,IF($AA42='Control Panel'!$F$37,$AA42,IF($AA42='Control Panel'!$F$38,$AA42,IF($AA42='Control Panel'!$F$39,$AA42,IF($AA42='Control Panel'!$F$40,$AA42,IF($AA42='Control Panel'!$F$41,$AA42,"Error -- Availability entered in an incorrect format")))))))) -> N
A43: 31 | B43: Ability to reconcile deposits with cash receipt details that tie back to a deposit slip with a breakdown by account. | C43: R | F43: N/A | AB43: =IF(LEN($AA43)=0,"N",IF(LEN($AA43)>1,"Error -- Availability entered in an incorrect format",IF($AA43='Control Panel'!$F$36,$AA43,IF($AA43='Control Panel'!$F$37,$AA43,IF($AA43='Control Panel'!$F$38,$AA43,IF($AA43='Control Panel'!$F$39,$AA43,IF($AA43='Control Panel'!$F$40,$AA43,IF($AA43='Control Panel'!$F$41,$AA43,"Error -- Availability entered in an incorrect format")))))))) -> N
A44: 32 | B44: Ability to interface with the Cash Receipting system for accessing scanned checks that were receipted. | C44: D | F44: N/A | AB44: =IF(LEN($AA44)=0,"N",IF(LEN($AA44)>1,"Error -- Availability entered in an incorrect format",IF($AA44='Control Panel'!$F$36,$AA44,IF($AA44='Control Panel'!$F$37,$AA44,IF($AA44='Control Panel'!$F$38,$AA44,IF($AA44='Control Panel'!$F$39,$AA44,IF($AA44='Control Panel'!$F$40,$AA44,IF($AA44='Control Panel'!$F$41,$AA44,"Error -- Availability entered in an incorrect format")))))))) -> N
A45: 33 | B45: Reporting | F45: N/A | AB45: =IF(LEN($AA45)=0,"N",IF(LEN($AA45)>1,"Error -- Availability entered in an incorrect format",IF($AA45='Control Panel'!$F$36,$AA45,IF($AA45='Control Panel'!$F$37,$AA45,IF($AA45='Control Panel'!$F$38,$AA45,IF($AA45='Control Panel'!$F$39,$AA45,IF($AA45='Control Panel'!$F$40,$AA45,IF($AA45='Control Panel'!$F$41,$AA45,"Error -- Availability entered in an incorrect format")))))))) -> N
A46: 34 | B46: Ability to create a report of incoming/outgoing bank items that captures all bank activity. | C46: R | F46: N/A | AB46: =IF(LEN($AA46)=0,"N",IF(LEN($AA46)>1,"Error -- Availability entered in an incorrect format",IF($AA46='Control Panel'!$F$36,$AA46,IF($AA46='Control Panel'!$F$37,$AA46,IF($AA46='Control Panel'!$F$38,$AA46,IF($AA46='Control Panel'!$F$39,$AA46,IF($AA46='Control Panel'!$F$40,$AA46,IF($AA46='Control Panel'!$F$41,$AA46,"Error -- Availability entered in an incorrect format")))))))) -> N
A47: 35 | B47: Ability to generate a Batch Balance Report that lists any errors that require resolution (e.g., non-match, date errors, etc.). This compares the downloaded listing of checks cleared with those generated from the source systems. | C47: R | F47: N/A | AB47: =IF(LEN($AA47)=0,"N",IF(LEN($AA47)>1,"Error -- Availability entered in an incorrect format",IF($AA47='Control Panel'!$F$36,$AA47,IF($AA47='Control Panel'!$F$37,$AA47,IF($AA47='Control Panel'!$F$38,$AA47,IF($AA47='Control Panel'!$F$39,$AA47,IF($AA47='Control Panel'!$F$40,$AA47,IF($AA47='Control Panel'!$F$41,$AA47,"Error -- Availability entered in an incorrect format")))))))) -> N
A48: 36 | B48: Ability to create a Bank Reconciliation Report, listing GL cash balances, payments and deposits for a user-defined time period, and outstanding payments (e.g., checks) and deposits for each bank account. | C48: R | F48: N/A | AB48: =IF(LEN($AA48)=0,"N",IF(LEN($AA48)>1,"Error -- Availability entered in an incorrect format",IF($AA48='Control Panel'!$F$36,$AA48,IF($AA48='Control Panel'!$F$37,$AA48,IF($AA48='Control Panel'!$F$38,$AA48,IF($AA48='Control Panel'!$F$39,$AA48,IF($AA48='Control Panel'!$F$40,$AA48,IF($AA48='Control Panel'!$F$41,$AA48,"Error -- Availability entered in an incorrect format")))))))) -> N
A49: 37 | B49: Additional Cross Reference with Accounts Payable | F49: N/A | AB49: =IF(LEN($AA49)=0,"N",IF(LEN($AA49)>1,"Error -- Availability entered in an incorrect format",IF($AA49='Control Panel'!$F$36,$AA49,IF($AA49='Control Panel'!$F$37,$AA49,IF($AA49='Control Panel'!$F$38,$AA49,IF($AA49='Control Panel'!$F$39,$AA49,IF($AA49='Control Panel'!$F$40,$AA49,IF($AA49='Control Panel'!$F$41,$AA49,"Error -- Availability entered in an incorrect format")))))))) -> N
A50: 38 | B50: Ability to view a Check Register for multiple accounts, which contains a cumulative list of all checks issued, including those later canceled, and must be updateable with information received electronically from the bank. | C50: D | F50: N/A | AB50: =IF(LEN($AA50)=0,"N",IF(LEN($AA50)>1,"Error -- Availability entered in an incorrect format",IF($AA50='Control Panel'!$F$36,$AA50,IF($AA50='Control Panel'!$F$37,$AA50,IF($AA50='Control Panel'!$F$38,$AA50,IF($AA50='Control Panel'!$F$39,$AA50,IF($AA50='Control Panel'!$F$40,$AA50,IF($AA50='Control Panel'!$F$41,$AA50,"Error -- Availability entered in an incorrect format")))))))) -> N
A51: 39 | B51: Additional Cross Reference with Treasury | F51: N/A | AB51: =IF(LEN($AA51)=0,"N",IF(LEN($AA51)>1,"Error -- Availability entered in an incorrect format",IF($AA51='Control Panel'!$F$36,$AA51,IF($AA51='Control Panel'!$F$37,$AA51,IF($AA51='Control Panel'!$F$38,$AA51,IF($AA51='Control Panel'!$F$39,$AA51,IF($AA51='Control Panel'!$F$40,$AA51,IF($AA51='Control Panel'!$F$41,$AA51,"Error -- Availability entered in an incorrect format")))))))) -> N
A52: 40 | B52: Ability to integrate investment functionality with the bank reconciliation process. | C52: R | F52: N/A | AB52: =IF(LEN($AA52)=0,"N",IF(LEN($AA52)>1,"Error -- Availability entered in an incorrect format",IF($AA52='Control Panel'!$F$36,$AA52,IF($AA52='Control Panel'!$F$37,$AA52,IF($AA52='Control Panel'!$F$38,$AA52,IF($AA52='Control Panel'!$F$39,$AA52,IF($AA52='Control Panel'!$F$40,$AA52,IF($AA52='Control Panel'!$F$41,$AA52,"Error -- Availability entered in an incorrect format")))))))) -> N
A53: 41 | B53: Ability to track balances by fund and tie back to posted bank items (To reconcile bank receipts to total of all funds, validate total of all funds to individual funds). | C53: D | F53: N/A | AB53: =IF(LEN($AA53)=0,"N",IF(LEN($AA53)>1,"Error -- Availability entered in an incorrect format",IF($AA53='Control Panel'!$F$36,$AA53,IF($AA53='Control Panel'!$F$37,$AA53,IF($AA53='Control Panel'!$F$38,$AA53,IF($AA53='Control Panel'!$F$39,$AA53,IF($AA53='Control Panel'!$F$40,$AA53,IF($AA53='Control Panel'!$F$41,$AA53,"Error -- Availability entered in an incorrect format")))))))) -> N

Sheet Budgeting
A1: ='Accounts Payable'!A1 -> Replace this text with vendor name in the first module.
A2: Code | B2: Availability Definition | AB2: Count: | AC2: =SUBTOTAL(3,A13:A148) -> 136
A3: ='Control Panel'!F36 -> Y | B3: ='Control Panel'!H36 -> Functionality is provided out of the box through the completion of a task associated with a routine configurable area that includes, but is not limited to, user-defined fields, delivered or configurable workflows, alerts or notifications, standard import/export, table driven setups and standard reports with no changes. These configuration areas will not be affected by a future upgrade. The proposed services include implementation and training on this functionality, unless specifically excluded in the Statement of Work, as part of the deployment of the solution.
A4: ='Control Panel'!F37 -> R | B4: ='Control Panel'!H37 -> Functionality is provided through reports generated using proposed Reporting Tools.
A5: ='Control Panel'!F38 -> T | B5: ='Control Panel'!H38 -> Functionality is provided by proposed third party functionality (i.e., third party is defined as a separate software vendor from the primary software vendor). The pricing of all third party products that provide this functionality MUST be included in the cost proposal.
A6: ='Control Panel'!F39 -> M | B6: ='Control Panel'!H39 -> Functionality is provided through customization to the application, including creation of a new workflow or development of a custom interface, that may have an impact on future upgradability.
A7: ='Control Panel'!F40 -> F | B7: ='Control Panel'!H40 -> Functionality is provided through a future general availability (GA) release that is scheduled to occur within 1 year of the proposal response.
A8: ='Control Panel'!F41 -> N | B8: ='Control Panel'!H41 -> Functionality is not provided.
A9: ='Control Panel'!I25 -> Replace this text with the primary product name(s) which satisfy requirements.
A10: ='Control Panel'!F49&" - "&'Control Panel'!E49 -> 4.4 - Budgeting | D10: =A9 -> Replace this text with the primary product name(s) which satisfy requirements.
A11: Objective: To provide an budget preparation and forecasting system that is intuitive and streamlines the City budget prep and management process. | AA11: (note: if errors exist look through column AB to identify)
A12: ='Accounts Payable'!A12 -> Number | B12: ='Accounts Payable'!B12 -> Application Requirements | C12: ='Accounts Payable'!C12 -> Priority | D12: ='Accounts Payable'!D12 -> Availability | E12: ='Accounts Payable'!E12 -> Cost | F12: ='Accounts Payable'!F12 -> Required Product(s) | G12: ='Accounts Payable'!G12 -> Comments | AA12: # of Errors: | AC12: =COUNTIF(AB:AB,"Error -- Availability entered in an incorrect format") -> 0
A13: 1 | B13: Budget Preparation | F13: =IF($D$10=$A$9,"N/A",$D$10) -> N/A | AA13: =TRIM($D13) ->  | AB13: =IF(LEN($AA13)=0,"N",IF(LEN($AA13)>1,"Error -- Availability entered in an incorrect format",IF($AA13='Control Panel'!$F$36,$AA13,IF($AA13='Control Panel'!$F$37,$AA13,IF($AA13='Control Panel'!$F$38,$AA13,IF($AA13='Control Panel'!$F$39,$AA13,IF($AA13='Control Panel'!$F$40,$AA13,IF($AA13='Control Panel'!$F$41,$AA13,"Error -- Availability entered in an incorrect format")))))))) -> N
A14: 2 | B14: Ability to maintain budget history based on user defined requirements | C14: D | F14: =IF($D$10=$A$9,"N/A",$D$10) -> N/A | AA14: =TRIM($D14) ->  | AB14: =IF(LEN($AA14)=0,"N",IF(LEN($AA14)>1,"Error -- Availability entered in an incorrect format",IF($AA14='Control Panel'!$F$36,$AA14,IF($AA14='Control Panel'!$F$37,$AA14,IF($AA14='Control Panel'!$F$38,$AA14,IF($AA14='Control Panel'!$F$39,$AA14,IF($AA14='Control Panel'!$F$40,$AA14,IF($AA14='Control Panel'!$F$41,$AA14,"Error -- Availability entered in an incorrect format")))))))) -> N
A15: 3 | B15: Ability to support generation of a biennial budget. | C15: O | F15: N/A | AB15: =IF(LEN($AA15)=0,"N",IF(LEN($AA15)>1,"Error -- Availability entered in an incorrect format",IF($AA15='Control Panel'!$F$36,$AA15,IF($AA15='Control Panel'!$F$37,$AA15,IF($AA15='Control Panel'!$F$38,$AA15,IF($AA15='Control Panel'!$F$39,$AA15,IF($AA15='Control Panel'!$F$40,$AA15,IF($AA15='Control Panel'!$F$41,$AA15,"Error -- Availability entered in an incorrect format")))))))) -> N
A16: 4 | B16: Ability to develop budgets and search at all levels of account structure. | C16: R | F16: N/A | AB16: =IF(LEN($AA16)=0,"N",IF(LEN($AA16)>1,"Error -- Availability entered in an incorrect format",IF($AA16='Control Panel'!$F$36,$AA16,IF($AA16='Control Panel'!$F$37,$AA16,IF($AA16='Control Panel'!$F$38,$AA16,IF($AA16='Control Panel'!$F$39,$AA16,IF($AA16='Control Panel'!$F$40,$AA16,IF($AA16='Control Panel'!$F$41,$AA16,"Error -- Availability entered in an incorrect format")))))))) -> N
A17: 5 | B17: Ability to budget and encumber contracts per line items as well as project accounting data. | C17: R | F17: N/A | AB17: =IF(LEN($AA17)=0,"N",IF(LEN($AA17)>1,"Error -- Availability entered in an incorrect format",IF($AA17='Control Panel'!$F$36,$AA17,IF($AA17='Control Panel'!$F$37,$AA17,IF($AA17='Control Panel'!$F$38,$AA17,IF($AA17='Control Panel'!$F$39,$AA17,IF($AA17='Control Panel'!$F$40,$AA17,IF($AA17='Control Panel'!$F$41,$AA17,"Error -- Availability entered in an incorrect format")))))))) -> N
A18: 6 | B18: Ability to describe a budget change (i.e., budget development) item by fiscal year at the account level with narrative explanation or attach supporting documentation | C18: R | F18: N/A | AB18: =IF(LEN($AA18)=0,"N",IF(LEN($AA18)>1,"Error -- Availability entered in an incorrect format",IF($AA18='Control Panel'!$F$36,$AA18,IF($AA18='Control Panel'!$F$37,$AA18,IF($AA18='Control Panel'!$F$38,$AA18,IF($AA18='Control Panel'!$F$39,$AA18,IF($AA18='Control Panel'!$F$40,$AA18,IF($AA18='Control Panel'!$F$41,$AA18,"Error -- Availability entered in an incorrect format")))))))) -> N
A19: 7 | B19: Ability to route budget documents for review and approval. | C19: R | F19: N/A | AB19: =IF(LEN($AA19)=0,"N",IF(LEN($AA19)>1,"Error -- Availability entered in an incorrect format",IF($AA19='Control Panel'!$F$36,$AA19,IF($AA19='Control Panel'!$F$37,$AA19,IF($AA19='Control Panel'!$F$38,$AA19,IF($AA19='Control Panel'!$F$39,$AA19,IF($AA19='Control Panel'!$F$40,$AA19,IF($AA19='Control Panel'!$F$41,$AA19,"Error -- Availability entered in an incorrect format")))))))) -> N
A20: 8 | B20: Ability to produce a Word and PDF budget document including summary sections and tables and departmental summaries. | C20: D | F20: N/A | AB20: =IF(LEN($AA20)=0,"N",IF(LEN($AA20)>1,"Error -- Availability entered in an incorrect format",IF($AA20='Control Panel'!$F$36,$AA20,IF($AA20='Control Panel'!$F$37,$AA20,IF($AA20='Control Panel'!$F$38,$AA20,IF($AA20='Control Panel'!$F$39,$AA20,IF($AA20='Control Panel'!$F$40,$AA20,IF($AA20='Control Panel'!$F$41,$AA20,"Error -- Availability entered in an incorrect format")))))))) -> N
A21: 9 | B21: Ability to describe a budget request (e.g., ongoing budget modifications) item by fiscal year at the account level with narrative explanation or attach supporting documentation | C21: D | F21: N/A | AB21: =IF(LEN($AA21)=0,"N",IF(LEN($AA21)>1,"Error -- Availability entered in an incorrect format",IF($AA21='Control Panel'!$F$36,$AA21,IF($AA21='Control Panel'!$F$37,$AA21,IF($AA21='Control Panel'!$F$38,$AA21,IF($AA21='Control Panel'!$F$39,$AA21,IF($AA21='Control Panel'!$F$40,$AA21,IF($AA21='Control Panel'!$F$41,$AA21,"Error -- Availability entered in an incorrect format")))))))) -> N
A22: 10 | B22: Ability to maintain up to 5 budget versions per fiscal year: (requested, proposed, current, approved, amended, projected/forecast). | C22: D | F22: N/A | AB22: =IF(LEN($AA22)=0,"N",IF(LEN($AA22)>1,"Error -- Availability entered in an incorrect format",IF($AA22='Control Panel'!$F$36,$AA22,IF($AA22='Control Panel'!$F$37,$AA22,IF($AA22='Control Panel'!$F$38,$AA22,IF($AA22='Control Panel'!$F$39,$AA22,IF($AA22='Control Panel'!$F$40,$AA22,IF($AA22='Control Panel'!$F$41,$AA22,"Error -- Availability entered in an incorrect format")))))))) -> N
A23: 11 | B23: Ability to maintain multiple stages of budget development before the final recommended version. (i.e.. Department requested, reduction scenarios, one time vs. recurring) | C23: D | F23: N/A | AB23: =IF(LEN($AA23)=0,"N",IF(LEN($AA23)>1,"Error -- Availability entered in an incorrect format",IF($AA23='Control Panel'!$F$36,$AA23,IF($AA23='Control Panel'!$F$37,$AA23,IF($AA23='Control Panel'!$F$38,$AA23,IF($AA23='Control Panel'!$F$39,$AA23,IF($AA23='Control Panel'!$F$40,$AA23,IF($AA23='Control Panel'!$F$41,$AA23,"Error -- Availability entered in an incorrect format")))))))) -> N
A24: 12 | B24: Ability to maintain, track and report up to 10 discrete budget request types per fiscal year: (department recurring, department non-recurring,5% reduction, etc.). | C24: D | F24: N/A | AB24: =IF(LEN($AA24)=0,"N",IF(LEN($AA24)>1,"Error -- Availability entered in an incorrect format",IF($AA24='Control Panel'!$F$36,$AA24,IF($AA24='Control Panel'!$F$37,$AA24,IF($AA24='Control Panel'!$F$38,$AA24,IF($AA24='Control Panel'!$F$39,$AA24,IF($AA24='Control Panel'!$F$40,$AA24,IF($AA24='Control Panel'!$F$41,$AA24,"Error -- Availability entered in an incorrect format")))))))) -> N
A25: 13 | B25: Ability to allow for departmental budget entry in an account listing style, such as by account, functional area, activity code. | C25: R | F25: N/A | AB25: =IF(LEN($AA25)=0,"N",IF(LEN($AA25)>1,"Error -- Availability entered in an incorrect format",IF($AA25='Control Panel'!$F$36,$AA25,IF($AA25='Control Panel'!$F$37,$AA25,IF($AA25='Control Panel'!$F$38,$AA25,IF($AA25='Control Panel'!$F$39,$AA25,IF($AA25='Control Panel'!$F$40,$AA25,IF($AA25='Control Panel'!$F$41,$AA25,"Error -- Availability entered in an incorrect format")))))))) -> N
A26: 14 | B26: Ability to view progress by departments in budget preparation, as defined in user setup in conjunction with account authority. | C26: D | F26: N/A | AB26: =IF(LEN($AA26)=0,"N",IF(LEN($AA26)>1,"Error -- Availability entered in an incorrect format",IF($AA26='Control Panel'!$F$36,$AA26,IF($AA26='Control Panel'!$F$37,$AA26,IF($AA26='Control Panel'!$F$38,$AA26,IF($AA26='Control Panel'!$F$39,$AA26,IF($AA26='Control Panel'!$F$40,$AA26,IF($AA26='Control Panel'!$F$41,$AA26,"Error -- Availability entered in an incorrect format")))))))) -> N
A27: 15 | B27: Ability to approve all requested budget amounts at the same time. | C27: D | F27: N/A | AB27: =IF(LEN($AA27)=0,"N",IF(LEN($AA27)>1,"Error -- Availability entered in an incorrect format",IF($AA27='Control Panel'!$F$36,$AA27,IF($AA27='Control Panel'!$F$37,$AA27,IF($AA27='Control Panel'!$F$38,$AA27,IF($AA27='Control Panel'!$F$39,$AA27,IF($AA27='Control Panel'!$F$40,$AA27,IF($AA27='Control Panel'!$F$41,$AA27,"Error -- Availability entered in an incorrect format")))))))) -> N
A28: 16 | B28: Ability to implement security related to who has access to budget development and view based on their department and organization. | C28: R | F28: N/A | AB28: =IF(LEN($AA28)=0,"N",IF(LEN($AA28)>1,"Error -- Availability entered in an incorrect format",IF($AA28='Control Panel'!$F$36,$AA28,IF($AA28='Control Panel'!$F$37,$AA28,IF($AA28='Control Panel'!$F$38,$AA28,IF($AA28='Control Panel'!$F$39,$AA28,IF($AA28='Control Panel'!$F$40,$AA28,IF($AA28='Control Panel'!$F$41,$AA28,"Error -- Availability entered in an incorrect format")))))))) -> N
A29: 17 | B29: Ability to customize budget scenarios based on specific department scenarios and global scenarios. | C29: D | F29: N/A | AB29: =IF(LEN($AA29)=0,"N",IF(LEN($AA29)>1,"Error -- Availability entered in an incorrect format",IF($AA29='Control Panel'!$F$36,$AA29,IF($AA29='Control Panel'!$F$37,$AA29,IF($AA29='Control Panel'!$F$38,$AA29,IF($AA29='Control Panel'!$F$39,$AA29,IF($AA29='Control Panel'!$F$40,$AA29,IF($AA29='Control Panel'!$F$41,$AA29,"Error -- Availability entered in an incorrect format")))))))) -> N
A30: 18 | B30: Ability to perform Budget Prep global changes (Fringe Benefits, merit increases, inflation). | C30: R | F30: N/A | AB30: =IF(LEN($AA30)=0,"N",IF(LEN($AA30)>1,"Error -- Availability entered in an incorrect format",IF($AA30='Control Panel'!$F$36,$AA30,IF($AA30='Control Panel'!$F$37,$AA30,IF($AA30='Control Panel'!$F$38,$AA30,IF($AA30='Control Panel'!$F$39,$AA30,IF($AA30='Control Panel'!$F$40,$AA30,IF($AA30='Control Panel'!$F$41,$AA30,"Error -- Availability entered in an incorrect format")))))))) -> N
A31: 19 | B31: Ability to allocate costs globally or to individual departments based upon percentage increase/decrease. | C31: D | F31: N/A | AB31: =IF(LEN($AA31)=0,"N",IF(LEN($AA31)>1,"Error -- Availability entered in an incorrect format",IF($AA31='Control Panel'!$F$36,$AA31,IF($AA31='Control Panel'!$F$37,$AA31,IF($AA31='Control Panel'!$F$38,$AA31,IF($AA31='Control Panel'!$F$39,$AA31,IF($AA31='Control Panel'!$F$40,$AA31,IF($AA31='Control Panel'!$F$41,$AA31,"Error -- Availability entered in an incorrect format")))))))) -> N
A32: 20 | B32: Ability to allow for users to input and view comments per budget item / line. | C32: D | F32: N/A | AB32: =IF(LEN($AA32)=0,"N",IF(LEN($AA32)>1,"Error -- Availability entered in an incorrect format",IF($AA32='Control Panel'!$F$36,$AA32,IF($AA32='Control Panel'!$F$37,$AA32,IF($AA32='Control Panel'!$F$38,$AA32,IF($AA32='Control Panel'!$F$39,$AA32,IF($AA32='Control Panel'!$F$40,$AA32,IF($AA32='Control Panel'!$F$41,$AA32,"Error -- Availability entered in an incorrect format")))))))) -> N
A33: 21 | B33: Ability to allow for configuration of which accounts require line item detail with the budget request. | C33: D | F33: N/A | AB33: =IF(LEN($AA33)=0,"N",IF(LEN($AA33)>1,"Error -- Availability entered in an incorrect format",IF($AA33='Control Panel'!$F$36,$AA33,IF($AA33='Control Panel'!$F$37,$AA33,IF($AA33='Control Panel'!$F$38,$AA33,IF($AA33='Control Panel'!$F$39,$AA33,IF($AA33='Control Panel'!$F$40,$AA33,IF($AA33='Control Panel'!$F$41,$AA33,"Error -- Availability entered in an incorrect format")))))))) -> N
A34: 22 | B34: Ability to identify capital items in the budget with a capital item descriptor, specific to accounts. | C34: D | F34: N/A | AB34: =IF(LEN($AA34)=0,"N",IF(LEN($AA34)>1,"Error -- Availability entered in an incorrect format",IF($AA34='Control Panel'!$F$36,$AA34,IF($AA34='Control Panel'!$F$37,$AA34,IF($AA34='Control Panel'!$F$38,$AA34,IF($AA34='Control Panel'!$F$39,$AA34,IF($AA34='Control Panel'!$F$40,$AA34,IF($AA34='Control Panel'!$F$41,$AA34,"Error -- Availability entered in an incorrect format")))))))) -> N
A35: 23 | B35: Ability to either create an annual budget or single budget amendment request with supporting workflow. | C35: D | F35: N/A | AB35: =IF(LEN($AA35)=0,"N",IF(LEN($AA35)>1,"Error -- Availability entered in an incorrect format",IF($AA35='Control Panel'!$F$36,$AA35,IF($AA35='Control Panel'!$F$37,$AA35,IF($AA35='Control Panel'!$F$38,$AA35,IF($AA35='Control Panel'!$F$39,$AA35,IF($AA35='Control Panel'!$F$40,$AA35,IF($AA35='Control Panel'!$F$41,$AA35,"Error -- Availability entered in an incorrect format")))))))) -> N
A36: 24 | B36: Ability to generate proposed budget data by extrapolating multi-year historical financial data using user-defined criteria/specifications. | C36: D | F36: N/A | AB36: =IF(LEN($AA36)=0,"N",IF(LEN($AA36)>1,"Error -- Availability entered in an incorrect format",IF($AA36='Control Panel'!$F$36,$AA36,IF($AA36='Control Panel'!$F$37,$AA36,IF($AA36='Control Panel'!$F$38,$AA36,IF($AA36='Control Panel'!$F$39,$AA36,IF($AA36='Control Panel'!$F$40,$AA36,IF($AA36='Control Panel'!$F$41,$AA36,"Error -- Availability entered in an incorrect format")))))))) -> N
A37: 25 | B37: Ability to limit changes within the unadopted budget after a certain point in the budget process has been reached, and require appropriate user authorization to implement any changes. | C37: R | F37: N/A | AB37: =IF(LEN($AA37)=0,"N",IF(LEN($AA37)>1,"Error -- Availability entered in an incorrect format",IF($AA37='Control Panel'!$F$36,$AA37,IF($AA37='Control Panel'!$F$37,$AA37,IF($AA37='Control Panel'!$F$38,$AA37,IF($AA37='Control Panel'!$F$39,$AA37,IF($AA37='Control Panel'!$F$40,$AA37,IF($AA37='Control Panel'!$F$41,$AA37,"Error -- Availability entered in an incorrect format")))))))) -> N
A38: 26 | B38: Ability to limit user entry of specific accounts vs. central office budget planning (salaries). | C38: D | F38: N/A | AB38: =IF(LEN($AA38)=0,"N",IF(LEN($AA38)>1,"Error -- Availability entered in an incorrect format",IF($AA38='Control Panel'!$F$36,$AA38,IF($AA38='Control Panel'!$F$37,$AA38,IF($AA38='Control Panel'!$F$38,$AA38,IF($AA38='Control Panel'!$F$39,$AA38,IF($AA38='Control Panel'!$F$40,$AA38,IF($AA38='Control Panel'!$F$41,$AA38,"Error -- Availability entered in an incorrect format")))))))) -> N
A39: 27 | B39: Ability to perform multiple methods (e.g. views) of updating departmental budget requests (e.g. departmental account listing, one account at a time, etc.). | C39: D | F39: N/A | AB39: =IF(LEN($AA39)=0,"N",IF(LEN($AA39)>1,"Error -- Availability entered in an incorrect format",IF($AA39='Control Panel'!$F$36,$AA39,IF($AA39='Control Panel'!$F$37,$AA39,IF($AA39='Control Panel'!$F$38,$AA39,IF($AA39='Control Panel'!$F$39,$AA39,IF($AA39='Control Panel'!$F$40,$AA39,IF($AA39='Control Panel'!$F$41,$AA39,"Error -- Availability entered in an incorrect format")))))))) -> N
A40: 28 | B40: Ability to display two previous year actuals. | C40: R | F40: N/A | AB40: =IF(LEN($AA40)=0,"N",IF(LEN($AA40)>1,"Error -- Availability entered in an incorrect format",IF($AA40='Control Panel'!$F$36,$AA40,IF($AA40='Control Panel'!$F$37,$AA40,IF($AA40='Control Panel'!$F$38,$AA40,IF($AA40='Control Panel'!$F$39,$AA40,IF($AA40='Control Panel'!$F$40,$AA40,IF($AA40='Control Panel'!$F$41,$AA40,"Error -- Availability entered in an incorrect format")))))))) -> N
A41: 29 | B41: Ability to display current year estimated to date. | C41: D | F41: N/A | AB41: =IF(LEN($AA41)=0,"N",IF(LEN($AA41)>1,"Error -- Availability entered in an incorrect format",IF($AA41='Control Panel'!$F$36,$AA41,IF($AA41='Control Panel'!$F$37,$AA41,IF($AA41='Control Panel'!$F$38,$AA41,IF($AA41='Control Panel'!$F$39,$AA41,IF($AA41='Control Panel'!$F$40,$AA41,IF($AA41='Control Panel'!$F$41,$AA41,"Error -- Availability entered in an incorrect format")))))))) -> N
A42: 30 | B42: Ability to display current year actuals to date. | C42: D | F42: N/A | AB42: =IF(LEN($AA42)=0,"N",IF(LEN($AA42)>1,"Error -- Availability entered in an incorrect format",IF($AA42='Control Panel'!$F$36,$AA42,IF($AA42='Control Panel'!$F$37,$AA42,IF($AA42='Control Panel'!$F$38,$AA42,IF($AA42='Control Panel'!$F$39,$AA42,IF($AA42='Control Panel'!$F$40,$AA42,IF($AA42='Control Panel'!$F$41,$AA42,"Error -- Availability entered in an incorrect format")))))))) -> N
A43: 31 | B43: Ability to display current year budget vs. actual (variances). | C43: D | F43: N/A | AB43: =IF(LEN($AA43)=0,"N",IF(LEN($AA43)>1,"Error -- Availability entered in an incorrect format",IF($AA43='Control Panel'!$F$36,$AA43,IF($AA43='Control Panel'!$F$37,$AA43,IF($AA43='Control Panel'!$F$38,$AA43,IF($AA43='Control Panel'!$F$39,$AA43,IF($AA43='Control Panel'!$F$40,$AA43,IF($AA43='Control Panel'!$F$41,$AA43,"Error -- Availability entered in an incorrect format")))))))) -> N
A44: 32 | B44: Ability for users to directly inquire by account on current and prior years actual activity during budget entry (i.e. drilldown on financial detail). | C44: D | F44: N/A | AB44: =IF(LEN($AA44)=0,"N",IF(LEN($AA44)>1,"Error -- Availability entered in an incorrect format",IF($AA44='Control Panel'!$F$36,$AA44,IF($AA44='Control Panel'!$F$37,$AA44,IF($AA44='Control Panel'!$F$38,$AA44,IF($AA44='Control Panel'!$F$39,$AA44,IF($AA44='Control Panel'!$F$40,$AA44,IF($AA44='Control Panel'!$F$41,$AA44,"Error -- Availability entered in an incorrect format")))))))) -> N
A45: 33 | B45: Ability to import off-line developed budget information into the budget planning system. | C45: D | F45: N/A | AB45: =IF(LEN($AA45)=0,"N",IF(LEN($AA45)>1,"Error -- Availability entered in an incorrect format",IF($AA45='Control Panel'!$F$36,$AA45,IF($AA45='Control Panel'!$F$37,$AA45,IF($AA45='Control Panel'!$F$38,$AA45,IF($AA45='Control Panel'!$F$39,$AA45,IF($AA45='Control Panel'!$F$40,$AA45,IF($AA45='Control Panel'!$F$41,$AA45,"Error -- Availability entered in an incorrect format")))))))) -> N
A46: 34 | B46: Ability to generate budget schedules from the system, with support for multiple groupings (i.e., Function, activities, revenue source). | C46: R | F46: N/A | AB46: =IF(LEN($AA46)=0,"N",IF(LEN($AA46)>1,"Error -- Availability entered in an incorrect format",IF($AA46='Control Panel'!$F$36,$AA46,IF($AA46='Control Panel'!$F$37,$AA46,IF($AA46='Control Panel'!$F$38,$AA46,IF($AA46='Control Panel'!$F$39,$AA46,IF($AA46='Control Panel'!$F$40,$AA46,IF($AA46='Control Panel'!$F$41,$AA46,"Error -- Availability entered in an incorrect format")))))))) -> N
A47: 35 | B47: Ability to prepare base budgets from prior year actual expenditures. | C47: D | F47: N/A | AB47: =IF(LEN($AA47)=0,"N",IF(LEN($AA47)>1,"Error -- Availability entered in an incorrect format",IF($AA47='Control Panel'!$F$36,$AA47,IF($AA47='Control Panel'!$F$37,$AA47,IF($AA47='Control Panel'!$F$38,$AA47,IF($AA47='Control Panel'!$F$39,$AA47,IF($AA47='Control Panel'!$F$40,$AA47,IF($AA47='Control Panel'!$F$41,$AA47,"Error -- Availability entered in an incorrect format")))))))) -> N
A48: 36 | B48: Ability to prepare base budgets from prior year baseline, proposed and approved with the ability to add or subtract one time prior year expenditures or revenues. | C48: D | F48: N/A | AB48: =IF(LEN($AA48)=0,"N",IF(LEN($AA48)>1,"Error -- Availability entered in an incorrect format",IF($AA48='Control Panel'!$F$36,$AA48,IF($AA48='Control Panel'!$F$37,$AA48,IF($AA48='Control Panel'!$F$38,$AA48,IF($AA48='Control Panel'!$F$39,$AA48,IF($AA48='Control Panel'!$F$40,$AA48,IF($AA48='Control Panel'!$F$41,$AA48,"Error -- Availability entered in an incorrect format")))))))) -> N
A49: 37 | B49: Ability to plan transfers or change of positions between departments/funds for budget and analytical purposes (What if scenarios). | C49: D | F49: N/A | AB49: =IF(LEN($AA49)=0,"N",IF(LEN($AA49)>1,"Error -- Availability entered in an incorrect format",IF($AA49='Control Panel'!$F$36,$AA49,IF($AA49='Control Panel'!$F$37,$AA49,IF($AA49='Control Panel'!$F$38,$AA49,IF($AA49='Control Panel'!$F$39,$AA49,IF($AA49='Control Panel'!$F$40,$AA49,IF($AA49='Control Panel'!$F$41,$AA49,"Error -- Availability entered in an incorrect format")))))))) -> N
A50: 38 | B50: Ability to provide forecast intervals for short-term (1-2 years), intermediate (3-4 years), and long-term (5 years) for the entire City as well as by object and department. | C50: D | F50: N/A | AB50: =IF(LEN($AA50)=0,"N",IF(LEN($AA50)>1,"Error -- Availability entered in an incorrect format",IF($AA50='Control Panel'!$F$36,$AA50,IF($AA50='Control Panel'!$F$37,$AA50,IF($AA50='Control Panel'!$F$38,$AA50,IF($AA50='Control Panel'!$F$39,$AA50,IF($AA50='Control Panel'!$F$40,$AA50,IF($AA50='Control Panel'!$F$41,$AA50,"Error -- Availability entered in an incorrect format")))))))) -> N
A51: 39 | B51: Ability to complete "what-if" scenarios in five-year forecast. | C51: D | F51: N/A | AB51: =IF(LEN($AA51)=0,"N",IF(LEN($AA51)>1,"Error -- Availability entered in an incorrect format",IF($AA51='Control Panel'!$F$36,$AA51,IF($AA51='Control Panel'!$F$37,$AA51,IF($AA51='Control Panel'!$F$38,$AA51,IF($AA51='Control Panel'!$F$39,$AA51,IF($AA51='Control Panel'!$F$40,$AA51,IF($AA51='Control Panel'!$F$41,$AA51,"Error -- Availability entered in an incorrect format")))))))) -> N
A52: 40 | B52: Ability for distributed departments to perform projections periodically including estimate revisions and reporting of actual to estimates - at varying levels of the chart of accounts. | C52: D | F52: N/A | AB52: =IF(LEN($AA52)=0,"N",IF(LEN($AA52)>1,"Error -- Availability entered in an incorrect format",IF($AA52='Control Panel'!$F$36,$AA52,IF($AA52='Control Panel'!$F$37,$AA52,IF($AA52='Control Panel'!$F$38,$AA52,IF($AA52='Control Panel'!$F$39,$AA52,IF($AA52='Control Panel'!$F$40,$AA52,IF($AA52='Control Panel'!$F$41,$AA52,"Error -- Availability entered in an incorrect format")))))))) -> N
A53: 41 | B53: Ability to enter absolute budget amounts (zero based budgeting), not change over prior year. | C53: D | F53: N/A | AB53: =IF(LEN($AA53)=0,"N",IF(LEN($AA53)>1,"Error -- Availability entered in an incorrect format",IF($AA53='Control Panel'!$F$36,$AA53,IF($AA53='Control Panel'!$F$37,$AA53,IF($AA53='Control Panel'!$F$38,$AA53,IF($AA53='Control Panel'!$F$39,$AA53,IF($AA53='Control Panel'!$F$40,$AA53,IF($AA53='Control Panel'!$F$41,$AA53,"Error -- Availability entered in an incorrect format")))))))) -> N
A54: 42 | B54: Ability to enter a total budget amount and designate a method for the system to spread – for example equal amounts over 12 months. | C54: D | F54: N/A | AB54: =IF(LEN($AA54)=0,"N",IF(LEN($AA54)>1,"Error -- Availability entered in an incorrect format",IF($AA54='Control Panel'!$F$36,$AA54,IF($AA54='Control Panel'!$F$37,$AA54,IF($AA54='Control Panel'!$F$38,$AA54,IF($AA54='Control Panel'!$F$39,$AA54,IF($AA54='Control Panel'!$F$40,$AA54,IF($AA54='Control Panel'!$F$41,$AA54,"Error -- Availability entered in an incorrect format")))))))) -> N
A55: 43 | B55: Ability to enter 12 months of budget data by month (allow zero amounts, if we want to load a budget only into the later months of the year). | C55: D | F55: N/A | AB55: =IF(LEN($AA55)=0,"N",IF(LEN($AA55)>1,"Error -- Availability entered in an incorrect format",IF($AA55='Control Panel'!$F$36,$AA55,IF($AA55='Control Panel'!$F$37,$AA55,IF($AA55='Control Panel'!$F$38,$AA55,IF($AA55='Control Panel'!$F$39,$AA55,IF($AA55='Control Panel'!$F$40,$AA55,IF($AA55='Control Panel'!$F$41,$AA55,"Error -- Availability entered in an incorrect format")))))))) -> N
A56: 44 | B56: Availability of multiple budget fields for the same year – preserve the “Adopted Budget” in one budget field, and have revised budget fields available which would include Carryovers, Encumbrances, and budget transfers throughout the year. | C56: D | F56: N/A | AB56: =IF(LEN($AA56)=0,"N",IF(LEN($AA56)>1,"Error -- Availability entered in an incorrect format",IF($AA56='Control Panel'!$F$36,$AA56,IF($AA56='Control Panel'!$F$37,$AA56,IF($AA56='Control Panel'!$F$38,$AA56,IF($AA56='Control Panel'!$F$39,$AA56,IF($AA56='Control Panel'!$F$40,$AA56,IF($AA56='Control Panel'!$F$41,$AA56,"Error -- Availability entered in an incorrect format")))))))) -> N
A57: 45 | B57: Position Budgeting | F57: N/A | AB57: =IF(LEN($AA57)=0,"N",IF(LEN($AA57)>1,"Error -- Availability entered in an incorrect format",IF($AA57='Control Panel'!$F$36,$AA57,IF($AA57='Control Panel'!$F$37,$AA57,IF($AA57='Control Panel'!$F$38,$AA57,IF($AA57='Control Panel'!$F$39,$AA57,IF($AA57='Control Panel'!$F$40,$AA57,IF($AA57='Control Panel'!$F$41,$AA57,"Error -- Availability entered in an incorrect format")))))))) -> N
A58: 46 | B58: Ability to import position information from a third party Payroll system to perform budget projections. | C58: D | F58: N/A | AB58: =IF(LEN($AA58)=0,"N",IF(LEN($AA58)>1,"Error -- Availability entered in an incorrect format",IF($AA58='Control Panel'!$F$36,$AA58,IF($AA58='Control Panel'!$F$37,$AA58,IF($AA58='Control Panel'!$F$38,$AA58,IF($AA58='Control Panel'!$F$39,$AA58,IF($AA58='Control Panel'!$F$40,$AA58,IF($AA58='Control Panel'!$F$41,$AA58,"Error -- Availability entered in an incorrect format")))))))) -> N
A59: 47 | B59: Ability to develop budgets by position type and specific pay level as well as budgeting by employee & actuals including relational benefits (full cost). | C59: D | F59: N/A | AB59: =IF(LEN($AA59)=0,"N",IF(LEN($AA59)>1,"Error -- Availability entered in an incorrect format",IF($AA59='Control Panel'!$F$36,$AA59,IF($AA59='Control Panel'!$F$37,$AA59,IF($AA59='Control Panel'!$F$38,$AA59,IF($AA59='Control Panel'!$F$39,$AA59,IF($AA59='Control Panel'!$F$40,$AA59,IF($AA59='Control Panel'!$F$41,$AA59,"Error -- Availability entered in an incorrect format")))))))) -> N
A60: 48 | B60: Ability to perform budget forecasting that incorporates planned salary and benefit adjustments by either percentage, flat rate or other variable to salaries and/or benefits provided by position, department, start and end date, or for other groups/all employees. | C60: D | F60: N/A | AB60: =IF(LEN($AA60)=0,"N",IF(LEN($AA60)>1,"Error -- Availability entered in an incorrect format",IF($AA60='Control Panel'!$F$36,$AA60,IF($AA60='Control Panel'!$F$37,$AA60,IF($AA60='Control Panel'!$F$38,$AA60,IF($AA60='Control Panel'!$F$39,$AA60,IF($AA60='Control Panel'!$F$40,$AA60,IF($AA60='Control Panel'!$F$41,$AA60,"Error -- Availability entered in an incorrect format")))))))) -> N
A61: 49 | B61: Ability to perform budget projections for salaries and fringes based on merit date, bargaining unit/fringe group contract dates or other as of dates. | C61: D | F61: N/A | AB61: =IF(LEN($AA61)=0,"N",IF(LEN($AA61)>1,"Error -- Availability entered in an incorrect format",IF($AA61='Control Panel'!$F$36,$AA61,IF($AA61='Control Panel'!$F$37,$AA61,IF($AA61='Control Panel'!$F$38,$AA61,IF($AA61='Control Panel'!$F$39,$AA61,IF($AA61='Control Panel'!$F$40,$AA61,IF($AA61='Control Panel'!$F$41,$AA61,"Error -- Availability entered in an incorrect format")))))))) -> N
A62: 50 | B62: Ability to enter globally or provide calculation-only fields for: | C62: - | F62: N/A | AB62: =IF(LEN($AA62)=0,"N",IF(LEN($AA62)>1,"Error -- Availability entered in an incorrect format",IF($AA62='Control Panel'!$F$36,$AA62,IF($AA62='Control Panel'!$F$37,$AA62,IF($AA62='Control Panel'!$F$38,$AA62,IF($AA62='Control Panel'!$F$39,$AA62,IF($AA62='Control Panel'!$F$40,$AA62,IF($AA62='Control Panel'!$F$41,$AA62,"Error -- Availability entered in an incorrect format")))))))) -> N
A63: 51 | B63: # of pay periods for upcoming budget year | C63: D | F63: N/A | AB63: =IF(LEN($AA63)=0,"N",IF(LEN($AA63)>1,"Error -- Availability entered in an incorrect format",IF($AA63='Control Panel'!$F$36,$AA63,IF($AA63='Control Panel'!$F$37,$AA63,IF($AA63='Control Panel'!$F$38,$AA63,IF($AA63='Control Panel'!$F$39,$AA63,IF($AA63='Control Panel'!$F$40,$AA63,IF($AA63='Control Panel'!$F$41,$AA63,"Error -- Availability entered in an incorrect format")))))))) -> N
A64: 52 | B64: Medicare calculation based on wages | C64: D | F64: N/A | AB64: =IF(LEN($AA64)=0,"N",IF(LEN($AA64)>1,"Error -- Availability entered in an incorrect format",IF($AA64='Control Panel'!$F$36,$AA64,IF($AA64='Control Panel'!$F$37,$AA64,IF($AA64='Control Panel'!$F$38,$AA64,IF($AA64='Control Panel'!$F$39,$AA64,IF($AA64='Control Panel'!$F$40,$AA64,IF($AA64='Control Panel'!$F$41,$AA64,"Error -- Availability entered in an incorrect format")))))))) -> N
A65: 53 | B65: Retirement System calculation based on wages | C65: D | F65: N/A | AB65: =IF(LEN($AA65)=0,"N",IF(LEN($AA65)>1,"Error -- Availability entered in an incorrect format",IF($AA65='Control Panel'!$F$36,$AA65,IF($AA65='Control Panel'!$F$37,$AA65,IF($AA65='Control Panel'!$F$38,$AA65,IF($AA65='Control Panel'!$F$39,$AA65,IF($AA65='Control Panel'!$F$40,$AA65,IF($AA65='Control Panel'!$F$41,$AA65,"Error -- Availability entered in an incorrect format")))))))) -> N
A66: 54 | B66: Worker's Comp calculation based on the combination of wages and a fixed rate (experience) | C66: D | F66: N/A | AB66: =IF(LEN($AA66)=0,"N",IF(LEN($AA66)>1,"Error -- Availability entered in an incorrect format",IF($AA66='Control Panel'!$F$36,$AA66,IF($AA66='Control Panel'!$F$37,$AA66,IF($AA66='Control Panel'!$F$38,$AA66,IF($AA66='Control Panel'!$F$39,$AA66,IF($AA66='Control Panel'!$F$40,$AA66,IF($AA66='Control Panel'!$F$41,$AA66,"Error -- Availability entered in an incorrect format")))))))) -> N
A67: 55 | B67: Health insurance costs | C67: D | F67: N/A | AB67: =IF(LEN($AA67)=0,"N",IF(LEN($AA67)>1,"Error -- Availability entered in an incorrect format",IF($AA67='Control Panel'!$F$36,$AA67,IF($AA67='Control Panel'!$F$37,$AA67,IF($AA67='Control Panel'!$F$38,$AA67,IF($AA67='Control Panel'!$F$39,$AA67,IF($AA67='Control Panel'!$F$40,$AA67,IF($AA67='Control Panel'!$F$41,$AA67,"Error -- Availability entered in an incorrect format")))))))) -> N
A68: 56 | B68: Scheduled merit increases | C68: D | F68: N/A | AB68: =IF(LEN($AA68)=0,"N",IF(LEN($AA68)>1,"Error -- Availability entered in an incorrect format",IF($AA68='Control Panel'!$F$36,$AA68,IF($AA68='Control Panel'!$F$37,$AA68,IF($AA68='Control Panel'!$F$38,$AA68,IF($AA68='Control Panel'!$F$39,$AA68,IF($AA68='Control Panel'!$F$40,$AA68,IF($AA68='Control Panel'!$F$41,$AA68,"Error -- Availability entered in an incorrect format")))))))) -> N
A69: 57 | B69: Scheduled cost-of-living-adjustment (COLA) | C69: D | F69: N/A | AB69: =IF(LEN($AA69)=0,"N",IF(LEN($AA69)>1,"Error -- Availability entered in an incorrect format",IF($AA69='Control Panel'!$F$36,$AA69,IF($AA69='Control Panel'!$F$37,$AA69,IF($AA69='Control Panel'!$F$38,$AA69,IF($AA69='Control Panel'!$F$39,$AA69,IF($AA69='Control Panel'!$F$40,$AA69,IF($AA69='Control Panel'!$F$41,$AA69,"Error -- Availability entered in an incorrect format")))))))) -> N
A70: 58 | B70: Other pay factors as identified by City | C70: D | F70: N/A | AB70: =IF(LEN($AA70)=0,"N",IF(LEN($AA70)>1,"Error -- Availability entered in an incorrect format",IF($AA70='Control Panel'!$F$36,$AA70,IF($AA70='Control Panel'!$F$37,$AA70,IF($AA70='Control Panel'!$F$38,$AA70,IF($AA70='Control Panel'!$F$39,$AA70,IF($AA70='Control Panel'!$F$40,$AA70,IF($AA70='Control Panel'!$F$41,$AA70,"Error -- Availability entered in an incorrect format")))))))) -> N
A71: 59 | B71: Ability to perform position budgeting that includes the calculation of benefits specific to the type of position being budgeted. (i.e.. benefits for extra hire over 30 hours per week). | C71: D | F71: N/A | AB71: =IF(LEN($AA71)=0,"N",IF(LEN($AA71)>1,"Error -- Availability entered in an incorrect format",IF($AA71='Control Panel'!$F$36,$AA71,IF($AA71='Control Panel'!$F$37,$AA71,IF($AA71='Control Panel'!$F$38,$AA71,IF($AA71='Control Panel'!$F$39,$AA71,IF($AA71='Control Panel'!$F$40,$AA71,IF($AA71='Control Panel'!$F$41,$AA71,"Error -- Availability entered in an incorrect format")))))))) -> N
A72: 60 | B72: Ability to support personnel cost projections that include fringe benefit costs (based on existing benefits elected). | C72: D | F72: N/A | AB72: =IF(LEN($AA72)=0,"N",IF(LEN($AA72)>1,"Error -- Availability entered in an incorrect format",IF($AA72='Control Panel'!$F$36,$AA72,IF($AA72='Control Panel'!$F$37,$AA72,IF($AA72='Control Panel'!$F$38,$AA72,IF($AA72='Control Panel'!$F$39,$AA72,IF($AA72='Control Panel'!$F$40,$AA72,IF($AA72='Control Panel'!$F$41,$AA72,"Error -- Availability entered in an incorrect format")))))))) -> N
A73: 61 | B73: Ability to integrate the position budgeting functionality with the Payroll and HR modules. | C73: D | F73: N/A | AB73: =IF(LEN($AA73)=0,"N",IF(LEN($AA73)>1,"Error -- Availability entered in an incorrect format",IF($AA73='Control Panel'!$F$36,$AA73,IF($AA73='Control Panel'!$F$37,$AA73,IF($AA73='Control Panel'!$F$38,$AA73,IF($AA73='Control Panel'!$F$39,$AA73,IF($AA73='Control Panel'!$F$40,$AA73,IF($AA73='Control Panel'!$F$41,$AA73,"Error -- Availability entered in an incorrect format")))))))) -> N
A74: 62 | B74: Ability to assist with managing new budget implications of live payroll changes (e.g. raises & transfers) performed during the budget development cycle. | C74: D | F74: N/A | AB74: =IF(LEN($AA74)=0,"N",IF(LEN($AA74)>1,"Error -- Availability entered in an incorrect format",IF($AA74='Control Panel'!$F$36,$AA74,IF($AA74='Control Panel'!$F$37,$AA74,IF($AA74='Control Panel'!$F$38,$AA74,IF($AA74='Control Panel'!$F$39,$AA74,IF($AA74='Control Panel'!$F$40,$AA74,IF($AA74='Control Panel'!$F$41,$AA74,"Error -- Availability entered in an incorrect format")))))))) -> N
A75: 63 | B75: Ability to perform position budgeting for vacant positions without the need to assign employees to these positions that includes both salary and fringe projections. | C75: D | F75: N/A | AB75: =IF(LEN($AA75)=0,"N",IF(LEN($AA75)>1,"Error -- Availability entered in an incorrect format",IF($AA75='Control Panel'!$F$36,$AA75,IF($AA75='Control Panel'!$F$37,$AA75,IF($AA75='Control Panel'!$F$38,$AA75,IF($AA75='Control Panel'!$F$39,$AA75,IF($AA75='Control Panel'!$F$40,$AA75,IF($AA75='Control Panel'!$F$41,$AA75,"Error -- Availability entered in an incorrect format")))))))) -> N
A76: 64 | B76: Ability to budget based on position type i.e., budget vs. non budget vs. under-filled. | C76: D | F76: N/A | AB76: =IF(LEN($AA76)=0,"N",IF(LEN($AA76)>1,"Error -- Availability entered in an incorrect format",IF($AA76='Control Panel'!$F$36,$AA76,IF($AA76='Control Panel'!$F$37,$AA76,IF($AA76='Control Panel'!$F$38,$AA76,IF($AA76='Control Panel'!$F$39,$AA76,IF($AA76='Control Panel'!$F$40,$AA76,IF($AA76='Control Panel'!$F$41,$AA76,"Error -- Availability entered in an incorrect format")))))))) -> N
A77: 65 | B77: Ability to calculate salary and benefits for unapproved/requested positions. | C77: D | F77: N/A | AB77: =IF(LEN($AA77)=0,"N",IF(LEN($AA77)>1,"Error -- Availability entered in an incorrect format",IF($AA77='Control Panel'!$F$36,$AA77,IF($AA77='Control Panel'!$F$37,$AA77,IF($AA77='Control Panel'!$F$38,$AA77,IF($AA77='Control Panel'!$F$39,$AA77,IF($AA77='Control Panel'!$F$40,$AA77,IF($AA77='Control Panel'!$F$41,$AA77,"Error -- Availability entered in an incorrect format")))))))) -> N
A78: 66 | B78: Ability to perform budget projections for salaries and fringes under different scenarios without the need to use or impact data in the LIVE system (limiting access to authorized users). | C78: D | F78: =IF($D$10=$A$9,"N/A",$D$10) -> N/A | AA78: =TRIM($D78) ->  | AB78: =IF(LEN($AA78)=0,"N",IF(LEN($AA78)>1,"Error -- Availability entered in an incorrect format",IF($AA78='Control Panel'!$F$36,$AA78,IF($AA78='Control Panel'!$F$37,$AA78,IF($AA78='Control Panel'!$F$38,$AA78,IF($AA78='Control Panel'!$F$39,$AA78,IF($AA78='Control Panel'!$F$40,$AA78,IF($AA78='Control Panel'!$F$41,$AA78,"Error -- Availability entered in an incorrect format")))))))) -> N
A79: 67 | B79: Ability to budget for hourly, seasonal partial-year positions and other non-full time positions. | C79: D | F79: N/A | AB79: =IF(LEN($AA79)=0,"N",IF(LEN($AA79)>1,"Error -- Availability entered in an incorrect format",IF($AA79='Control Panel'!$F$36,$AA79,IF($AA79='Control Panel'!$F$37,$AA79,IF($AA79='Control Panel'!$F$38,$AA79,IF($AA79='Control Panel'!$F$39,$AA79,IF($AA79='Control Panel'!$F$40,$AA79,IF($AA79='Control Panel'!$F$41,$AA79,"Error -- Availability entered in an incorrect format")))))))) -> N
A80: 68 | B80: Ability to budget for fixed term and limited term position. | C80: D | F80: N/A | AB80: =IF(LEN($AA80)=0,"N",IF(LEN($AA80)>1,"Error -- Availability entered in an incorrect format",IF($AA80='Control Panel'!$F$36,$AA80,IF($AA80='Control Panel'!$F$37,$AA80,IF($AA80='Control Panel'!$F$38,$AA80,IF($AA80='Control Panel'!$F$39,$AA80,IF($AA80='Control Panel'!$F$40,$AA80,IF($AA80='Control Panel'!$F$41,$AA80,"Error -- Availability entered in an incorrect format")))))))) -> N
A81: 69 | B81: Ability of system to provide budget checking control for creation of new positions. | C81: D | F81: N/A | AB81: =IF(LEN($AA81)=0,"N",IF(LEN($AA81)>1,"Error -- Availability entered in an incorrect format",IF($AA81='Control Panel'!$F$36,$AA81,IF($AA81='Control Panel'!$F$37,$AA81,IF($AA81='Control Panel'!$F$38,$AA81,IF($AA81='Control Panel'!$F$39,$AA81,IF($AA81='Control Panel'!$F$40,$AA81,IF($AA81='Control Panel'!$F$41,$AA81,"Error -- Availability entered in an incorrect format")))))))) -> N
A82: 70 | B82: Capital Budgeting | F82: N/A | AB82: =IF(LEN($AA82)=0,"N",IF(LEN($AA82)>1,"Error -- Availability entered in an incorrect format",IF($AA82='Control Panel'!$F$36,$AA82,IF($AA82='Control Panel'!$F$37,$AA82,IF($AA82='Control Panel'!$F$38,$AA82,IF($AA82='Control Panel'!$F$39,$AA82,IF($AA82='Control Panel'!$F$40,$AA82,IF($AA82='Control Panel'!$F$41,$AA82,"Error -- Availability entered in an incorrect format")))))))) -> N
A83: 71 | B83: Ability to integrate with Fixed Asset module to assist with analyzing equipment replacement (including replacement criteria). | C83: D | F83: N/A | AB83: =IF(LEN($AA83)=0,"N",IF(LEN($AA83)>1,"Error -- Availability entered in an incorrect format",IF($AA83='Control Panel'!$F$36,$AA83,IF($AA83='Control Panel'!$F$37,$AA83,IF($AA83='Control Panel'!$F$38,$AA83,IF($AA83='Control Panel'!$F$39,$AA83,IF($AA83='Control Panel'!$F$40,$AA83,IF($AA83='Control Panel'!$F$41,$AA83,"Error -- Availability entered in an incorrect format")))))))) -> N
A84: 72 | B84: Ability to automate a distributed "capital budget item request" process providing central approval and reporting (i.e., workflow). | C84: D | F84: N/A | AB84: =IF(LEN($AA84)=0,"N",IF(LEN($AA84)>1,"Error -- Availability entered in an incorrect format",IF($AA84='Control Panel'!$F$36,$AA84,IF($AA84='Control Panel'!$F$37,$AA84,IF($AA84='Control Panel'!$F$38,$AA84,IF($AA84='Control Panel'!$F$39,$AA84,IF($AA84='Control Panel'!$F$40,$AA84,IF($AA84='Control Panel'!$F$41,$AA84,"Error -- Availability entered in an incorrect format")))))))) -> N
A85: 73 | B85: Ability to classify capital project requests and provide reporting by classification or type (City can configure the categories). | C85: D | F85: N/A | AB85: =IF(LEN($AA85)=0,"N",IF(LEN($AA85)>1,"Error -- Availability entered in an incorrect format",IF($AA85='Control Panel'!$F$36,$AA85,IF($AA85='Control Panel'!$F$37,$AA85,IF($AA85='Control Panel'!$F$38,$AA85,IF($AA85='Control Panel'!$F$39,$AA85,IF($AA85='Control Panel'!$F$40,$AA85,IF($AA85='Control Panel'!$F$41,$AA85,"Error -- Availability entered in an incorrect format")))))))) -> N
A86: 74 | B86: Ability to enter CIP general information and project categorization (Ex. Description, map reference, notes). | C86: D | F86: N/A | AB86: =IF(LEN($AA86)=0,"N",IF(LEN($AA86)>1,"Error -- Availability entered in an incorrect format",IF($AA86='Control Panel'!$F$36,$AA86,IF($AA86='Control Panel'!$F$37,$AA86,IF($AA86='Control Panel'!$F$38,$AA86,IF($AA86='Control Panel'!$F$39,$AA86,IF($AA86='Control Panel'!$F$40,$AA86,IF($AA86='Control Panel'!$F$41,$AA86,"Error -- Availability entered in an incorrect format")))))))) -> N
A87: 75 | B87: Ability to rank CIP projects based on selected criteria and scoring against this criteria. | C87: D | F87: N/A | AB87: =IF(LEN($AA87)=0,"N",IF(LEN($AA87)>1,"Error -- Availability entered in an incorrect format",IF($AA87='Control Panel'!$F$36,$AA87,IF($AA87='Control Panel'!$F$37,$AA87,IF($AA87='Control Panel'!$F$38,$AA87,IF($AA87='Control Panel'!$F$39,$AA87,IF($AA87='Control Panel'!$F$40,$AA87,IF($AA87='Control Panel'!$F$41,$AA87,"Error -- Availability entered in an incorrect format")))))))) -> N
A88: 76 | B88: Ability to manage a multi-year (e.g. five) CIP program. | C88: D | F88: N/A | AB88: =IF(LEN($AA88)=0,"N",IF(LEN($AA88)>1,"Error -- Availability entered in an incorrect format",IF($AA88='Control Panel'!$F$36,$AA88,IF($AA88='Control Panel'!$F$37,$AA88,IF($AA88='Control Panel'!$F$38,$AA88,IF($AA88='Control Panel'!$F$39,$AA88,IF($AA88='Control Panel'!$F$40,$AA88,IF($AA88='Control Panel'!$F$41,$AA88,"Error -- Availability entered in an incorrect format")))))))) -> N
A89: 77 | B89: Ability to apply inflation factors to costs of CIP projects in years beyond the budget year. | C89: D | F89: N/A | AB89: =IF(LEN($AA89)=0,"N",IF(LEN($AA89)>1,"Error -- Availability entered in an incorrect format",IF($AA89='Control Panel'!$F$36,$AA89,IF($AA89='Control Panel'!$F$37,$AA89,IF($AA89='Control Panel'!$F$38,$AA89,IF($AA89='Control Panel'!$F$39,$AA89,IF($AA89='Control Panel'!$F$40,$AA89,IF($AA89='Control Panel'!$F$41,$AA89,"Error -- Availability entered in an incorrect format")))))))) -> N
A90: 78 | B90: Ability to track budget and expense by CIP project. | C90: D | F90: N/A | AB90: =IF(LEN($AA90)=0,"N",IF(LEN($AA90)>1,"Error -- Availability entered in an incorrect format",IF($AA90='Control Panel'!$F$36,$AA90,IF($AA90='Control Panel'!$F$37,$AA90,IF($AA90='Control Panel'!$F$38,$AA90,IF($AA90='Control Panel'!$F$39,$AA90,IF($AA90='Control Panel'!$F$40,$AA90,IF($AA90='Control Panel'!$F$41,$AA90,"Error -- Availability entered in an incorrect format")))))))) -> N
A91: 79 | B91: Ability to track budget and expense by project, sub-project and by phase. | C91: D | F91: N/A | AB91: =IF(LEN($AA91)=0,"N",IF(LEN($AA91)>1,"Error -- Availability entered in an incorrect format",IF($AA91='Control Panel'!$F$36,$AA91,IF($AA91='Control Panel'!$F$37,$AA91,IF($AA91='Control Panel'!$F$38,$AA91,IF($AA91='Control Panel'!$F$39,$AA91,IF($AA91='Control Panel'!$F$40,$AA91,IF($AA91='Control Panel'!$F$41,$AA91,"Error -- Availability entered in an incorrect format")))))))) -> N
A92: 80 | B92: Ability to track budget and expense of operations and maintenance associated with a CIP project. | C92: D | F92: N/A | AB92: =IF(LEN($AA92)=0,"N",IF(LEN($AA92)>1,"Error -- Availability entered in an incorrect format",IF($AA92='Control Panel'!$F$36,$AA92,IF($AA92='Control Panel'!$F$37,$AA92,IF($AA92='Control Panel'!$F$38,$AA92,IF($AA92='Control Panel'!$F$39,$AA92,IF($AA92='Control Panel'!$F$40,$AA92,IF($AA92='Control Panel'!$F$41,$AA92,"Error -- Availability entered in an incorrect format")))))))) -> N
A93: 81 | B93: Capital Reporting | F93: N/A | AB93: =IF(LEN($AA93)=0,"N",IF(LEN($AA93)>1,"Error -- Availability entered in an incorrect format",IF($AA93='Control Panel'!$F$36,$AA93,IF($AA93='Control Panel'!$F$37,$AA93,IF($AA93='Control Panel'!$F$38,$AA93,IF($AA93='Control Panel'!$F$39,$AA93,IF($AA93='Control Panel'!$F$40,$AA93,IF($AA93='Control Panel'!$F$41,$AA93,"Error -- Availability entered in an incorrect format")))))))) -> N
A94: 82 | B94: Ability to track budget, expense and revenue (actuals, encumbrances, etc.) by fund, org, project, sub-project, phase and contractor/vendor. | C94: D | F94: N/A | AB94: =IF(LEN($AA94)=0,"N",IF(LEN($AA94)>1,"Error -- Availability entered in an incorrect format",IF($AA94='Control Panel'!$F$36,$AA94,IF($AA94='Control Panel'!$F$37,$AA94,IF($AA94='Control Panel'!$F$38,$AA94,IF($AA94='Control Panel'!$F$39,$AA94,IF($AA94='Control Panel'!$F$40,$AA94,IF($AA94='Control Panel'!$F$41,$AA94,"Error -- Availability entered in an incorrect format")))))))) -> N
A95: 83 | B95: Ability to capture accounting data (expenditures and revenues) during the life of the project (over multiple fiscal years). | C95: D | F95: N/A | AB95: =IF(LEN($AA95)=0,"N",IF(LEN($AA95)>1,"Error -- Availability entered in an incorrect format",IF($AA95='Control Panel'!$F$36,$AA95,IF($AA95='Control Panel'!$F$37,$AA95,IF($AA95='Control Panel'!$F$38,$AA95,IF($AA95='Control Panel'!$F$39,$AA95,IF($AA95='Control Panel'!$F$40,$AA95,IF($AA95='Control Panel'!$F$41,$AA95,"Error -- Availability entered in an incorrect format")))))))) -> N
A96: 84 | B96: Ability to create a Project Status report with financial, budget and project completion information. | C96: D | F96: N/A | AB96: =IF(LEN($AA96)=0,"N",IF(LEN($AA96)>1,"Error -- Availability entered in an incorrect format",IF($AA96='Control Panel'!$F$36,$AA96,IF($AA96='Control Panel'!$F$37,$AA96,IF($AA96='Control Panel'!$F$38,$AA96,IF($AA96='Control Panel'!$F$39,$AA96,IF($AA96='Control Panel'!$F$40,$AA96,IF($AA96='Control Panel'!$F$41,$AA96,"Error -- Availability entered in an incorrect format")))))))) -> N
A97: 85 | B97: Ability to create ad hoc reports by project as required by project managers. | C97: D | F97: N/A | AB97: =IF(LEN($AA97)=0,"N",IF(LEN($AA97)>1,"Error -- Availability entered in an incorrect format",IF($AA97='Control Panel'!$F$36,$AA97,IF($AA97='Control Panel'!$F$37,$AA97,IF($AA97='Control Panel'!$F$38,$AA97,IF($AA97='Control Panel'!$F$39,$AA97,IF($AA97='Control Panel'!$F$40,$AA97,IF($AA97='Control Panel'!$F$41,$AA97,"Error -- Availability entered in an incorrect format")))))))) -> N
A98: 86 | B98: Project / Grant Budgeting | F98: N/A | AB98: =IF(LEN($AA98)=0,"N",IF(LEN($AA98)>1,"Error -- Availability entered in an incorrect format",IF($AA98='Control Panel'!$F$36,$AA98,IF($AA98='Control Panel'!$F$37,$AA98,IF($AA98='Control Panel'!$F$38,$AA98,IF($AA98='Control Panel'!$F$39,$AA98,IF($AA98='Control Panel'!$F$40,$AA98,IF($AA98='Control Panel'!$F$41,$AA98,"Error -- Availability entered in an incorrect format")))))))) -> N
A99: 87 | B99: Ability to use project budgeting within or across funds as specified by the user. | C99: D | F99: N/A | AB99: =IF(LEN($AA99)=0,"N",IF(LEN($AA99)>1,"Error -- Availability entered in an incorrect format",IF($AA99='Control Panel'!$F$36,$AA99,IF($AA99='Control Panel'!$F$37,$AA99,IF($AA99='Control Panel'!$F$38,$AA99,IF($AA99='Control Panel'!$F$39,$AA99,IF($AA99='Control Panel'!$F$40,$AA99,IF($AA99='Control Panel'!$F$41,$AA99,"Error -- Availability entered in an incorrect format")))))))) -> N
A100: 88 | B100: Ability to track operating grant budgets and grant funded capital projects to the level needed for annual reporting. | C100: D | F100: N/A | AB100: =IF(LEN($AA100)=0,"N",IF(LEN($AA100)>1,"Error -- Availability entered in an incorrect format",IF($AA100='Control Panel'!$F$36,$AA100,IF($AA100='Control Panel'!$F$37,$AA100,IF($AA100='Control Panel'!$F$38,$AA100,IF($AA100='Control Panel'!$F$39,$AA100,IF($AA100='Control Panel'!$F$40,$AA100,IF($AA100='Control Panel'!$F$41,$AA100,"Error -- Availability entered in an incorrect format")))))))) -> N
A101: 89 | B101: Ability to budget based on Sponsor Class definition (i.e., grouping of GL accounts in a summary form other than what is used for the CAFR). | C101: D | F101: N/A | AB101: =IF(LEN($AA101)=0,"N",IF(LEN($AA101)>1,"Error -- Availability entered in an incorrect format",IF($AA101='Control Panel'!$F$36,$AA101,IF($AA101='Control Panel'!$F$37,$AA101,IF($AA101='Control Panel'!$F$38,$AA101,IF($AA101='Control Panel'!$F$39,$AA101,IF($AA101='Control Panel'!$F$40,$AA101,IF($AA101='Control Panel'!$F$41,$AA101,"Error -- Availability entered in an incorrect format")))))))) -> N
A102: 90 | B102: Ability to time-slice budget differently than City budget fiscal year (e.g., calendar year or Federal fiscal year). | C102: D | F102: N/A | AB102: =IF(LEN($AA102)=0,"N",IF(LEN($AA102)>1,"Error -- Availability entered in an incorrect format",IF($AA102='Control Panel'!$F$36,$AA102,IF($AA102='Control Panel'!$F$37,$AA102,IF($AA102='Control Panel'!$F$38,$AA102,IF($AA102='Control Panel'!$F$39,$AA102,IF($AA102='Control Panel'!$F$40,$AA102,IF($AA102='Control Panel'!$F$41,$AA102,"Error -- Availability entered in an incorrect format")))))))) -> N
A103: 91 | B103: Multi-Year Budgeting | F103: N/A | AB103: =IF(LEN($AA103)=0,"N",IF(LEN($AA103)>1,"Error -- Availability entered in an incorrect format",IF($AA103='Control Panel'!$F$36,$AA103,IF($AA103='Control Panel'!$F$37,$AA103,IF($AA103='Control Panel'!$F$38,$AA103,IF($AA103='Control Panel'!$F$39,$AA103,IF($AA103='Control Panel'!$F$40,$AA103,IF($AA103='Control Panel'!$F$41,$AA103,"Error -- Availability entered in an incorrect format")))))))) -> N
A104: 92 | B104: Ability to facilitate a biennial budget. | C104: O | F104: N/A | AB104: =IF(LEN($AA104)=0,"N",IF(LEN($AA104)>1,"Error -- Availability entered in an incorrect format",IF($AA104='Control Panel'!$F$36,$AA104,IF($AA104='Control Panel'!$F$37,$AA104,IF($AA104='Control Panel'!$F$38,$AA104,IF($AA104='Control Panel'!$F$39,$AA104,IF($AA104='Control Panel'!$F$40,$AA104,IF($AA104='Control Panel'!$F$41,$AA104,"Error -- Availability entered in an incorrect format")))))))) -> N
A105: 93 | B105: Budget Maintenance | F105: N/A | AB105: =IF(LEN($AA105)=0,"N",IF(LEN($AA105)>1,"Error -- Availability entered in an incorrect format",IF($AA105='Control Panel'!$F$36,$AA105,IF($AA105='Control Panel'!$F$37,$AA105,IF($AA105='Control Panel'!$F$38,$AA105,IF($AA105='Control Panel'!$F$39,$AA105,IF($AA105='Control Panel'!$F$40,$AA105,IF($AA105='Control Panel'!$F$41,$AA105,"Error -- Availability entered in an incorrect format")))))))) -> N
A106: 94 | B106: Ability to track changes that occur from one authorization point to another, who made the change, and when the change was made, by producing an audit "change trail". | C106: D | F106: N/A | AB106: =IF(LEN($AA106)=0,"N",IF(LEN($AA106)>1,"Error -- Availability entered in an incorrect format",IF($AA106='Control Panel'!$F$36,$AA106,IF($AA106='Control Panel'!$F$37,$AA106,IF($AA106='Control Panel'!$F$38,$AA106,IF($AA106='Control Panel'!$F$39,$AA106,IF($AA106='Control Panel'!$F$40,$AA106,IF($AA106='Control Panel'!$F$41,$AA106,"Error -- Availability entered in an incorrect format")))))))) -> N
A107: 95 | B107: Ability to prevent or indicate out-of-balance conditions for budget requests with corrections to actuals defined by the user. | C107: D | F107: N/A | AB107: =IF(LEN($AA107)=0,"N",IF(LEN($AA107)>1,"Error -- Availability entered in an incorrect format",IF($AA107='Control Panel'!$F$36,$AA107,IF($AA107='Control Panel'!$F$37,$AA107,IF($AA107='Control Panel'!$F$38,$AA107,IF($AA107='Control Panel'!$F$39,$AA107,IF($AA107='Control Panel'!$F$40,$AA107,IF($AA107='Control Panel'!$F$41,$AA107,"Error -- Availability entered in an incorrect format")))))))) -> N
A108: 96 | B108: Ability to request/approve budget adjustments, through workflow. | C108: D | F108: N/A | AB108: =IF(LEN($AA108)=0,"N",IF(LEN($AA108)>1,"Error -- Availability entered in an incorrect format",IF($AA108='Control Panel'!$F$36,$AA108,IF($AA108='Control Panel'!$F$37,$AA108,IF($AA108='Control Panel'!$F$38,$AA108,IF($AA108='Control Panel'!$F$39,$AA108,IF($AA108='Control Panel'!$F$40,$AA108,IF($AA108='Control Panel'!$F$41,$AA108,"Error -- Availability entered in an incorrect format")))))))) -> N
A109: 97 | B109: Ability to manage position changes within system, through workflow. | C109: D | F109: N/A | AB109: =IF(LEN($AA109)=0,"N",IF(LEN($AA109)>1,"Error -- Availability entered in an incorrect format",IF($AA109='Control Panel'!$F$36,$AA109,IF($AA109='Control Panel'!$F$37,$AA109,IF($AA109='Control Panel'!$F$38,$AA109,IF($AA109='Control Panel'!$F$39,$AA109,IF($AA109='Control Panel'!$F$40,$AA109,IF($AA109='Control Panel'!$F$41,$AA109,"Error -- Availability entered in an incorrect format")))))))) -> N
A110: 98 | B110: Ability to configure the system to allow for distributed (departmental) entry of budget transfer requests - with configurable multi-level approval functionality. | C110: D | F110: N/A | AB110: =IF(LEN($AA110)=0,"N",IF(LEN($AA110)>1,"Error -- Availability entered in an incorrect format",IF($AA110='Control Panel'!$F$36,$AA110,IF($AA110='Control Panel'!$F$37,$AA110,IF($AA110='Control Panel'!$F$38,$AA110,IF($AA110='Control Panel'!$F$39,$AA110,IF($AA110='Control Panel'!$F$40,$AA110,IF($AA110='Control Panel'!$F$41,$AA110,"Error -- Availability entered in an incorrect format")))))))) -> N
A111: 99 | B111: Ability to provide extended comments with budget revision requests. | C111: D | F111: N/A | AB111: =IF(LEN($AA111)=0,"N",IF(LEN($AA111)>1,"Error -- Availability entered in an incorrect format",IF($AA111='Control Panel'!$F$36,$AA111,IF($AA111='Control Panel'!$F$37,$AA111,IF($AA111='Control Panel'!$F$38,$AA111,IF($AA111='Control Panel'!$F$39,$AA111,IF($AA111='Control Panel'!$F$40,$AA111,IF($AA111='Control Panel'!$F$41,$AA111,"Error -- Availability entered in an incorrect format")))))))) -> N
A112: 100 | B112: Ability to enter budget amendments during the fiscal year (appropriations or revenue estimates). | C112: D | F112: N/A | AB112: =IF(LEN($AA112)=0,"N",IF(LEN($AA112)>1,"Error -- Availability entered in an incorrect format",IF($AA112='Control Panel'!$F$36,$AA112,IF($AA112='Control Panel'!$F$37,$AA112,IF($AA112='Control Panel'!$F$38,$AA112,IF($AA112='Control Panel'!$F$39,$AA112,IF($AA112='Control Panel'!$F$40,$AA112,IF($AA112='Control Panel'!$F$41,$AA112,"Error -- Availability entered in an incorrect format")))))))) -> N
A113: 101 | B113: Ability to record and track multiple budget amendments requests during the year and inquire on the adjustments after the fact. | C113: D | F113: N/A | AB113: =IF(LEN($AA113)=0,"N",IF(LEN($AA113)>1,"Error -- Availability entered in an incorrect format",IF($AA113='Control Panel'!$F$36,$AA113,IF($AA113='Control Panel'!$F$37,$AA113,IF($AA113='Control Panel'!$F$38,$AA113,IF($AA113='Control Panel'!$F$39,$AA113,IF($AA113='Control Panel'!$F$40,$AA113,IF($AA113='Control Panel'!$F$41,$AA113,"Error -- Availability entered in an incorrect format")))))))) -> N
A114: 102 | B114: Ability to record and track 10 different budget amendment types during the year and inquire on the adjustments after the fact (one-time vs. recurring, Board Letter, etc.). | C114: D | F114: N/A | AB114: =IF(LEN($AA114)=0,"N",IF(LEN($AA114)>1,"Error -- Availability entered in an incorrect format",IF($AA114='Control Panel'!$F$36,$AA114,IF($AA114='Control Panel'!$F$37,$AA114,IF($AA114='Control Panel'!$F$38,$AA114,IF($AA114='Control Panel'!$F$39,$AA114,IF($AA114='Control Panel'!$F$40,$AA114,IF($AA114='Control Panel'!$F$41,$AA114,"Error -- Availability entered in an incorrect format")))))))) -> N
A115: 103 | B115: Ability to identify a budget adjustment as one-time (temporary) or permanent (affect future base budgets). | C115: D | F115: N/A | AB115: =IF(LEN($AA115)=0,"N",IF(LEN($AA115)>1,"Error -- Availability entered in an incorrect format",IF($AA115='Control Panel'!$F$36,$AA115,IF($AA115='Control Panel'!$F$37,$AA115,IF($AA115='Control Panel'!$F$38,$AA115,IF($AA115='Control Panel'!$F$39,$AA115,IF($AA115='Control Panel'!$F$40,$AA115,IF($AA115='Control Panel'!$F$41,$AA115,"Error -- Availability entered in an incorrect format")))))))) -> N
A116: 104 | B116: Ability to have multi-level budget approvals for establishing budgets, line item transfers, budget adjustments (i.e., workflow). | C116: D | F116: N/A | AB116: =IF(LEN($AA116)=0,"N",IF(LEN($AA116)>1,"Error -- Availability entered in an incorrect format",IF($AA116='Control Panel'!$F$36,$AA116,IF($AA116='Control Panel'!$F$37,$AA116,IF($AA116='Control Panel'!$F$38,$AA116,IF($AA116='Control Panel'!$F$39,$AA116,IF($AA116='Control Panel'!$F$40,$AA116,IF($AA116='Control Panel'!$F$41,$AA116,"Error -- Availability entered in an incorrect format")))))))) -> N
A117: 105 | B117: Budget Checking and Controls | F117: N/A | AB117: =IF(LEN($AA117)=0,"N",IF(LEN($AA117)>1,"Error -- Availability entered in an incorrect format",IF($AA117='Control Panel'!$F$36,$AA117,IF($AA117='Control Panel'!$F$37,$AA117,IF($AA117='Control Panel'!$F$38,$AA117,IF($AA117='Control Panel'!$F$39,$AA117,IF($AA117='Control Panel'!$F$40,$AA117,IF($AA117='Control Panel'!$F$41,$AA117,"Error -- Availability entered in an incorrect format")))))))) -> N
A118: 106 | B118: Ability to perform funds availability checking at the project level or account level. | C118: D | F118: N/A | AB118: =IF(LEN($AA118)=0,"N",IF(LEN($AA118)>1,"Error -- Availability entered in an incorrect format",IF($AA118='Control Panel'!$F$36,$AA118,IF($AA118='Control Panel'!$F$37,$AA118,IF($AA118='Control Panel'!$F$38,$AA118,IF($AA118='Control Panel'!$F$39,$AA118,IF($AA118='Control Panel'!$F$40,$AA118,IF($AA118='Control Panel'!$F$41,$AA118,"Error -- Availability entered in an incorrect format")))))))) -> N
A119: 107 | B119: Ability to perform funds availability checking by WBS/Phases/Tasks (sub-units of project). | C119: D | F119: N/A | AB119: =IF(LEN($AA119)=0,"N",IF(LEN($AA119)>1,"Error -- Availability entered in an incorrect format",IF($AA119='Control Panel'!$F$36,$AA119,IF($AA119='Control Panel'!$F$37,$AA119,IF($AA119='Control Panel'!$F$38,$AA119,IF($AA119='Control Panel'!$F$39,$AA119,IF($AA119='Control Panel'!$F$40,$AA119,IF($AA119='Control Panel'!$F$41,$AA119,"Error -- Availability entered in an incorrect format")))))))) -> N
A120: 108 | B120: Ability to perform funds availability checking by account series. | C120: R | F120: N/A | AB120: =IF(LEN($AA120)=0,"N",IF(LEN($AA120)>1,"Error -- Availability entered in an incorrect format",IF($AA120='Control Panel'!$F$36,$AA120,IF($AA120='Control Panel'!$F$37,$AA120,IF($AA120='Control Panel'!$F$38,$AA120,IF($AA120='Control Panel'!$F$39,$AA120,IF($AA120='Control Panel'!$F$40,$AA120,IF($AA120='Control Panel'!$F$41,$AA120,"Error -- Availability entered in an incorrect format")))))))) -> N
A121: 109 | B121: Ability to perform funds availability checking by grant. | C121: D | F121: N/A | AB121: =IF(LEN($AA121)=0,"N",IF(LEN($AA121)>1,"Error -- Availability entered in an incorrect format",IF($AA121='Control Panel'!$F$36,$AA121,IF($AA121='Control Panel'!$F$37,$AA121,IF($AA121='Control Panel'!$F$38,$AA121,IF($AA121='Control Panel'!$F$39,$AA121,IF($AA121='Control Panel'!$F$40,$AA121,IF($AA121='Control Panel'!$F$41,$AA121,"Error -- Availability entered in an incorrect format")))))))) -> N
A122: 110 | B122: Ability to perform funds availability checking by user defined budget unit (i.e. program). | C122: D | F122: N/A | AB122: =IF(LEN($AA122)=0,"N",IF(LEN($AA122)>1,"Error -- Availability entered in an incorrect format",IF($AA122='Control Panel'!$F$36,$AA122,IF($AA122='Control Panel'!$F$37,$AA122,IF($AA122='Control Panel'!$F$38,$AA122,IF($AA122='Control Panel'!$F$39,$AA122,IF($AA122='Control Panel'!$F$40,$AA122,IF($AA122='Control Panel'!$F$41,$AA122,"Error -- Availability entered in an incorrect format")))))))) -> N
A123: 111 | B123: Ability to view “available budget” during requisition/purchase order entry for any type of purchase order, journal entry, or accounts payable invoice transaction. | C123: D | F123: N/A | AB123: =IF(LEN($AA123)=0,"N",IF(LEN($AA123)>1,"Error -- Availability entered in an incorrect format",IF($AA123='Control Panel'!$F$36,$AA123,IF($AA123='Control Panel'!$F$37,$AA123,IF($AA123='Control Panel'!$F$38,$AA123,IF($AA123='Control Panel'!$F$39,$AA123,IF($AA123='Control Panel'!$F$40,$AA123,IF($AA123='Control Panel'!$F$41,$AA123,"Error -- Availability entered in an incorrect format")))))))) -> N
A124: 112 | B124: Ability to have budget control rules by account (e.g. payroll accounts can be overspent). | C124: D | F124: N/A | AB124: =IF(LEN($AA124)=0,"N",IF(LEN($AA124)>1,"Error -- Availability entered in an incorrect format",IF($AA124='Control Panel'!$F$36,$AA124,IF($AA124='Control Panel'!$F$37,$AA124,IF($AA124='Control Panel'!$F$38,$AA124,IF($AA124='Control Panel'!$F$39,$AA124,IF($AA124='Control Panel'!$F$40,$AA124,IF($AA124='Control Panel'!$F$41,$AA124,"Error -- Availability entered in an incorrect format")))))))) -> N
A125: 113 | B125: Ability to have budget control rules by user defined account segment within the chart of accounts. | C125: D | F125: N/A | AB125: =IF(LEN($AA125)=0,"N",IF(LEN($AA125)>1,"Error -- Availability entered in an incorrect format",IF($AA125='Control Panel'!$F$36,$AA125,IF($AA125='Control Panel'!$F$37,$AA125,IF($AA125='Control Panel'!$F$38,$AA125,IF($AA125='Control Panel'!$F$39,$AA125,IF($AA125='Control Panel'!$F$40,$AA125,IF($AA125='Control Panel'!$F$41,$AA125,"Error -- Availability entered in an incorrect format")))))))) -> N
A126: 114 | B126: Ability to optionally configure budget control at the account level, in addition to the category level.- i.e. controlling at fund, program, series or GL level (account level) or requiring balanced entries for budgeted transfers or interdepartmental allocations (category level) as desired. | C126: D | F126: N/A | AB126: =IF(LEN($AA126)=0,"N",IF(LEN($AA126)>1,"Error -- Availability entered in an incorrect format",IF($AA126='Control Panel'!$F$36,$AA126,IF($AA126='Control Panel'!$F$37,$AA126,IF($AA126='Control Panel'!$F$38,$AA126,IF($AA126='Control Panel'!$F$39,$AA126,IF($AA126='Control Panel'!$F$40,$AA126,IF($AA126='Control Panel'!$F$41,$AA126,"Error -- Availability entered in an incorrect format")))))))) -> N
A127: 115 | B127: Ability to have budget warnings at the account level and project level. | C127: D | F127: N/A | AB127: =IF(LEN($AA127)=0,"N",IF(LEN($AA127)>1,"Error -- Availability entered in an incorrect format",IF($AA127='Control Panel'!$F$36,$AA127,IF($AA127='Control Panel'!$F$37,$AA127,IF($AA127='Control Panel'!$F$38,$AA127,IF($AA127='Control Panel'!$F$39,$AA127,IF($AA127='Control Panel'!$F$40,$AA127,IF($AA127='Control Panel'!$F$41,$AA127,"Error -- Availability entered in an incorrect format")))))))) -> N
A128: 116 | B128: Ability to have budget checking and warnings performed on all system transactions (requisitions, purchase orders, journal entries, budget change requests, etc.). | C128: D | F128: N/A | AB128: =IF(LEN($AA128)=0,"N",IF(LEN($AA128)>1,"Error -- Availability entered in an incorrect format",IF($AA128='Control Panel'!$F$36,$AA128,IF($AA128='Control Panel'!$F$37,$AA128,IF($AA128='Control Panel'!$F$38,$AA128,IF($AA128='Control Panel'!$F$39,$AA128,IF($AA128='Control Panel'!$F$40,$AA128,IF($AA128='Control Panel'!$F$41,$AA128,"Error -- Availability entered in an incorrect format")))))))) -> N
A129: 117 | B129: Ability to restrict transfers to/from specific accounts (e.g., Payroll). | C129: R | F129: N/A | AB129: =IF(LEN($AA129)=0,"N",IF(LEN($AA129)>1,"Error -- Availability entered in an incorrect format",IF($AA129='Control Panel'!$F$36,$AA129,IF($AA129='Control Panel'!$F$37,$AA129,IF($AA129='Control Panel'!$F$38,$AA129,IF($AA129='Control Panel'!$F$39,$AA129,IF($AA129='Control Panel'!$F$40,$AA129,IF($AA129='Control Panel'!$F$41,$AA129,"Error -- Availability entered in an incorrect format")))))))) -> N
A130: 118 | B130: Ability to prevent users from requesting budget transfers from other departments' budgets. | C130: R | F130: N/A | AB130: =IF(LEN($AA130)=0,"N",IF(LEN($AA130)>1,"Error -- Availability entered in an incorrect format",IF($AA130='Control Panel'!$F$36,$AA130,IF($AA130='Control Panel'!$F$37,$AA130,IF($AA130='Control Panel'!$F$38,$AA130,IF($AA130='Control Panel'!$F$39,$AA130,IF($AA130='Control Panel'!$F$40,$AA130,IF($AA130='Control Panel'!$F$41,$AA130,"Error -- Availability entered in an incorrect format")))))))) -> N
A131: 119 | B131: Ability to create negative budget on specified accounts (e.g., contra-revenues and contra-expenses, such as expense reimbursement accounts). | C131: D | F131: N/A | AB131: =IF(LEN($AA131)=0,"N",IF(LEN($AA131)>1,"Error -- Availability entered in an incorrect format",IF($AA131='Control Panel'!$F$36,$AA131,IF($AA131='Control Panel'!$F$37,$AA131,IF($AA131='Control Panel'!$F$38,$AA131,IF($AA131='Control Panel'!$F$39,$AA131,IF($AA131='Control Panel'!$F$40,$AA131,IF($AA131='Control Panel'!$F$41,$AA131,"Error -- Availability entered in an incorrect format")))))))) -> N
A132: 120 | B132: Performance Measurement /Non-Financial Budgeting | F132: N/A | AB132: =IF(LEN($AA132)=0,"N",IF(LEN($AA132)>1,"Error -- Availability entered in an incorrect format",IF($AA132='Control Panel'!$F$36,$AA132,IF($AA132='Control Panel'!$F$37,$AA132,IF($AA132='Control Panel'!$F$38,$AA132,IF($AA132='Control Panel'!$F$39,$AA132,IF($AA132='Control Panel'!$F$40,$AA132,IF($AA132='Control Panel'!$F$41,$AA132,"Error -- Availability entered in an incorrect format")))))))) -> N
A133: 121 | B133: Ability to develop tables to accommodate input of performance measures (e.g., transactions per, number of staff/customer, etc.). | C133: R | F133: N/A | AB133: =IF(LEN($AA133)=0,"N",IF(LEN($AA133)>1,"Error -- Availability entered in an incorrect format",IF($AA133='Control Panel'!$F$36,$AA133,IF($AA133='Control Panel'!$F$37,$AA133,IF($AA133='Control Panel'!$F$38,$AA133,IF($AA133='Control Panel'!$F$39,$AA133,IF($AA133='Control Panel'!$F$40,$AA133,IF($AA133='Control Panel'!$F$41,$AA133,"Error -- Availability entered in an incorrect format")))))))) -> N
A134: 122 | B134: Ability to establish non-financial strategic objectives and track actual performance against these objectives. | C134: R | F134: N/A | AB134: =IF(LEN($AA134)=0,"N",IF(LEN($AA134)>1,"Error -- Availability entered in an incorrect format",IF($AA134='Control Panel'!$F$36,$AA134,IF($AA134='Control Panel'!$F$37,$AA134,IF($AA134='Control Panel'!$F$38,$AA134,IF($AA134='Control Panel'!$F$39,$AA134,IF($AA134='Control Panel'!$F$40,$AA134,IF($AA134='Control Panel'!$F$41,$AA134,"Error -- Availability entered in an incorrect format")))))))) -> N
A135: 123 | B135: Ability to import files with defined file formats from other external systems into the performance budgeting system to reflect actual performance tracked in other external systems. | C135: R | F135: N/A | AB135: =IF(LEN($AA135)=0,"N",IF(LEN($AA135)>1,"Error -- Availability entered in an incorrect format",IF($AA135='Control Panel'!$F$36,$AA135,IF($AA135='Control Panel'!$F$37,$AA135,IF($AA135='Control Panel'!$F$38,$AA135,IF($AA135='Control Panel'!$F$39,$AA135,IF($AA135='Control Panel'!$F$40,$AA135,IF($AA135='Control Panel'!$F$41,$AA135,"Error -- Availability entered in an incorrect format")))))))) -> N
A136: 124 | B136: Ability to associate performance indicators and metrics to chart of accounts segments. | C136: D | F136: N/A | AB136: =IF(LEN($AA136)=0,"N",IF(LEN($AA136)>1,"Error -- Availability entered in an incorrect format",IF($AA136='Control Panel'!$F$36,$AA136,IF($AA136='Control Panel'!$F$37,$AA136,IF($AA136='Control Panel'!$F$38,$AA136,IF($AA136='Control Panel'!$F$39,$AA136,IF($AA136='Control Panel'!$F$40,$AA136,IF($AA136='Control Panel'!$F$41,$AA136,"Error -- Availability entered in an incorrect format")))))))) -> N
A137: 125 | B137: Reporting | F137: N/A | AB137: =IF(LEN($AA137)=0,"N",IF(LEN($AA137)>1,"Error -- Availability entered in an incorrect format",IF($AA137='Control Panel'!$F$36,$AA137,IF($AA137='Control Panel'!$F$37,$AA137,IF($AA137='Control Panel'!$F$38,$AA137,IF($AA137='Control Panel'!$F$39,$AA137,IF($AA137='Control Panel'!$F$40,$AA137,IF($AA137='Control Panel'!$F$41,$AA137,"Error -- Availability entered in an incorrect format")))))))) -> N
A138: 126 | B138: A system with user-friendly budget reports. | C138: D | F138: N/A | AB138: =IF(LEN($AA138)=0,"N",IF(LEN($AA138)>1,"Error -- Availability entered in an incorrect format",IF($AA138='Control Panel'!$F$36,$AA138,IF($AA138='Control Panel'!$F$37,$AA138,IF($AA138='Control Panel'!$F$38,$AA138,IF($AA138='Control Panel'!$F$39,$AA138,IF($AA138='Control Panel'!$F$40,$AA138,IF($AA138='Control Panel'!$F$41,$AA138,"Error -- Availability entered in an incorrect format")))))))) -> N
A139: 127 | B139: A report that shows each employee’s salaries, benefits, and totals, for both extra hires and full hires. | C139: D | F139: N/A | AB139: =IF(LEN($AA139)=0,"N",IF(LEN($AA139)>1,"Error -- Availability entered in an incorrect format",IF($AA139='Control Panel'!$F$36,$AA139,IF($AA139='Control Panel'!$F$37,$AA139,IF($AA139='Control Panel'!$F$38,$AA139,IF($AA139='Control Panel'!$F$39,$AA139,IF($AA139='Control Panel'!$F$40,$AA139,IF($AA139='Control Panel'!$F$41,$AA139,"Error -- Availability entered in an incorrect format")))))))) -> N
A140: 128 | B140: Ability to maintain the following history for the current and multiple previous years: | C140: - | F140: N/A | AB140: =IF(LEN($AA140)=0,"N",IF(LEN($AA140)>1,"Error -- Availability entered in an incorrect format",IF($AA140='Control Panel'!$F$36,$AA140,IF($AA140='Control Panel'!$F$37,$AA140,IF($AA140='Control Panel'!$F$38,$AA140,IF($AA140='Control Panel'!$F$39,$AA140,IF($AA140='Control Panel'!$F$40,$AA140,IF($AA140='Control Panel'!$F$41,$AA140,"Error -- Availability entered in an incorrect format")))))))) -> N
A141: 129 | B141: Original and Current Budget Amounts | C141: R | F141: N/A | AB141: =IF(LEN($AA141)=0,"N",IF(LEN($AA141)>1,"Error -- Availability entered in an incorrect format",IF($AA141='Control Panel'!$F$36,$AA141,IF($AA141='Control Panel'!$F$37,$AA141,IF($AA141='Control Panel'!$F$38,$AA141,IF($AA141='Control Panel'!$F$39,$AA141,IF($AA141='Control Panel'!$F$40,$AA141,IF($AA141='Control Panel'!$F$41,$AA141,"Error -- Availability entered in an incorrect format")))))))) -> N
A142: 130 | B142: Amount Requested | C142: R | F142: =IF($D$10=$A$9,"N/A",$D$10) -> N/A | AA142: =TRIM($D142) ->  | AB142: =IF(LEN($AA142)=0,"N",IF(LEN($AA142)>1,"Error -- Availability entered in an incorrect format",IF($AA142='Control Panel'!$F$36,$AA142,IF($AA142='Control Panel'!$F$37,$AA142,IF($AA142='Control Panel'!$F$38,$AA142,IF($AA142='Control Panel'!$F$39,$AA142,IF($AA142='Control Panel'!$F$40,$AA142,IF($AA142='Control Panel'!$F$41,$AA142,"Error -- Availability entered in an incorrect format")))))))) -> N
A143: 131 | B143: Amount Recommended | C143: R | F143: N/A | AB143: =IF(LEN($AA143)=0,"N",IF(LEN($AA143)>1,"Error -- Availability entered in an incorrect format",IF($AA143='Control Panel'!$F$36,$AA143,IF($AA143='Control Panel'!$F$37,$AA143,IF($AA143='Control Panel'!$F$38,$AA143,IF($AA143='Control Panel'!$F$39,$AA143,IF($AA143='Control Panel'!$F$40,$AA143,IF($AA143='Control Panel'!$F$41,$AA143,"Error -- Availability entered in an incorrect format")))))))) -> N
A144: 132 | B144: Amount Approved | C144: R | F144: N/A | AB144: =IF(LEN($AA144)=0,"N",IF(LEN($AA144)>1,"Error -- Availability entered in an incorrect format",IF($AA144='Control Panel'!$F$36,$AA144,IF($AA144='Control Panel'!$F$37,$AA144,IF($AA144='Control Panel'!$F$38,$AA144,IF($AA144='Control Panel'!$F$39,$AA144,IF($AA144='Control Panel'!$F$40,$AA144,IF($AA144='Control Panel'!$F$41,$AA144,"Error -- Availability entered in an incorrect format")))))))) -> N
A145: 133 | B145: Ability to report out on any budget version or type for current plus 5 years. | C145: D | F145: N/A | AB145: =IF(LEN($AA145)=0,"N",IF(LEN($AA145)>1,"Error -- Availability entered in an incorrect format",IF($AA145='Control Panel'!$F$36,$AA145,IF($AA145='Control Panel'!$F$37,$AA145,IF($AA145='Control Panel'!$F$38,$AA145,IF($AA145='Control Panel'!$F$39,$AA145,IF($AA145='Control Panel'!$F$40,$AA145,IF($AA145='Control Panel'!$F$41,$AA145,"Error -- Availability entered in an incorrect format")))))))) -> N
A146: 134 | B146: Ability to report on budget change (i.e., budget development) and request (i.e., ongoing budget activity) text notes. | C146: D | F146: N/A | AB146: =IF(LEN($AA146)=0,"N",IF(LEN($AA146)>1,"Error -- Availability entered in an incorrect format",IF($AA146='Control Panel'!$F$36,$AA146,IF($AA146='Control Panel'!$F$37,$AA146,IF($AA146='Control Panel'!$F$38,$AA146,IF($AA146='Control Panel'!$F$39,$AA146,IF($AA146='Control Panel'!$F$40,$AA146,IF($AA146='Control Panel'!$F$41,$AA146,"Error -- Availability entered in an incorrect format")))))))) -> N
